{"text_format":"1","workbook":"xlsx","n_sheets":18,"sheets":["Paso 1 Índice","Paso 2 Identificar Riesgos","Paso 3 Mitigantes","Resultados","Definiciones","Análisis detallado","Retroalimentación Individual","Retroalimentación Múltiple","Matriz Gravedad Probabilidad EO","Matriz Gravedad Probabilidad FV","DESVEST Cuestionario Probabilid","DESVEST Cuestionario Gravedad","Matriz Gravedad Probabilidad MH","Cuestionario Eólica","Cuestionario FV","Cuestionario MiniHidro","Mitigación","PASOS LISTS"],"not_rendered":{"charts":3,"images":7,"macros":1,"external_links":0,"defined_names":1,"comments":1,"pivot_tables":0},"unopened":[],"bounds":{"document_bytes":16777216,"sheet_cells":100000,"rows_first":2000,"rows_last":500,"rows_between":2000,"halvings":0,"cell_chars":16384,"cell_head_chars":4096},"cells_cut":0,"cells_raw":0,"read":"whole","date_system":"1900"}

{"sheet":"Paso 1 Índice","index":0,"n_rows":27,"n_cols":4,"rows_kept":27,"cut":false,"hidden":false,"merged":[[1,1,1,6],[3,1,3,6],[6,3,6,6],[7,4,7,6],[8,4,8,6],[7,1,9,1],[12,1,14,1],[11,4,11,6],[12,4,12,6],[13,4,13,6],[9,4,9,6],[10,4,10,6]]}
[]
[null,"Metodología para valorar el impacto de riesgos relacionados a aspectos sociales"]
[]
[null,"La herramienta presente tiene como objetivo apoyar ene el análisis y aplicación de la MEVIMS, para desarrollar el análisis se deberán seguir los siguientes pasos:"]
[]
[]
[null,"Paso 1: Perfil de Proyecto",null,"Perfil del proyecto"]
[null,"Llenar la información general del proyecto",null,"Nombre"]
[null,null,null,"Desarrollador"]
[null,null,null,"Estado"]
[null,null,null,"Municipio"]
[null,"Paso 2: Identificar Riesgos",null,"Clave de Ficha UGAS"]
[null,"Basado en la información obtenida de la Ficha de Caracterización, el analista deberá identificar los riesgos que pueden impactar financieramente el proyecto",null,"Tecnología"]
[null,null,null,"Fecha de inicio de operación esperada"]
[]
[]
[null,"Paso 3: Mitigantes"]
[null,"En caso de existir un mecanismo de mitigación para los riesgos identificados, el analista deberá capturar, después de analizar la ficha de mitigación de la MEDIRSE, y basado en su experiencia, el porcentaje de ajuste al riesgo por mitigación"]
[]
[null,"Paso 4: Resultados"]
[null,"En esta pestaña se podrá observar el resumen de los resultados del análisis"]
[]
[null,"Añadir nuevo proyecto a base de datos"]
[null,"Sigue a esta pestaña para añadir un nuevo proyecto"]
[]
[null,"Añadir múltiples proyectos de un desarrollador a base de datos"]
[null,"Sigue a esta pestaña para añadir un nuevo proyecto"]

{"sheet":"Paso 2 Identificar Riesgos","index":1,"n_rows":46,"n_cols":8,"rows_kept":46,"cut":false,"hidden":false,"merged":[[38,4,41,4],[42,4,45,4],[9,4,10,4],[11,4,14,4],[15,4,17,4],[18,4,20,4],[21,4,22,4],[23,4,26,4],[27,4,30,4],[31,4,33,4],[34,4,37,4],[31,1,37,1],[31,2,33,2],[31,3,33,3],[34,2,37,2],[34,3,37,3],[38,1,45,1],[38,2,41,2],[38,3,41,3],[42,2,45,2],[42,3,45,3],[18,3,20,3],[21,2,22,2],[21,3,22,3],[23,1,30,1],[23,2,26,2],[23,3,26,3],[27,2,30,2],[27,3,30,3],[9,1,22,1],[9,2,10,2],[9,3,10,3],[11,2,14,2],[11,3,14,3],[15,2,17,2],[15,3,17,3],[18,2,20,2]]}
[]
[null,"Metodología para valorar Impactos Sociales (MEVIMS)"]
[null,"Basado en Matriz de impactos y riesgos genéricos de la MEDIRSE*"]
[]
[null,"Nombre del Proyecto",null,{"$f":"'Paso 1 Índice'!$E$8","v":0}]
[]
[null,"Tipo de Proyecto",null,{"$f":"'Paso 1 Índice'!$E$13","v":0}]
[null,null,null,null,null,null,"PASO 1"]
[null,"Dimensión","ID","Impacto Genérico","Relación Impacto - Riesgo","Riesgo Genérico Asociado","Impacto: Aplica / No Aplica","Nota del Analista"]
[null,"Dimensión Socioeconómica","R1.1","1. Producción de bienes y servicios en lugares específicos","Riesgos derivados de la modificación del área","C1 Retraso"]
[null,null,null,null,null,"C2 Conflicto"]
[null,null,"R1.2","2. Derrama económica por el usufructo y contraprestación de espacios o prestación de servicios. ","Riesgos derivados de renta o compra-venta del área dónde se desarrollará el proyecto","C1 Retraso"]
[null,null,null,null,null,"C2 Conflicto"]
[null,null,null,null,null,"C3 Sanciones"]
[null,null,null,null,null,"C4 Cancelación"]
[null,null,"R1.3","3. Salud y Seguridad","Riesgos derivados de las condiciones de seguridad del personal involucrado en el proyecto y la población cercana","C1 Retraso"]
[null,null,null,null,null,"C2 Conflicto"]
[null,null,null,null,null,"C3 Sanciones"]
[null,null,"R1.4","4. Entorno laboral","Riesgos derivados de las condiciones Laborales del personal involucrado en el proyecto","C1 Retraso"]
[null,null,null,null,null,"C2 Conflicto"]
[null,null,null,null,null,"C3 Sanciones"]
[null,null,"R1.5","5. Inversión Social","Riesgos derivados de la negación de inversión social en la población con la que interactúa.","C1 Retraso"]
[null,null,null,null,null,"C2 Conflicto"]
[null,"Dimensión Sociopolítica","R2.1","1. Mecanismos de Participación / 2. Representatividad / 3. Uso del territorio y libertad para decidir sobre él. ","Riesgo derivado de los procedimientos que permiten a los individuos de una sociedad  involucrase en las decisiones relacionadas con el desarrollo del proyecto.","C1 Retraso"]
[null,null,null,null,null,"C2 Conflicto"]
[null,null,null,null,null,"C3 Sanciones"]
[null,null,null,null,null,"C4 Cancelación"]
[null,null,"R2.2","4. Formas de organización: Ejidos, comunidades agrarias, pueblos y comunidades indígenas y personas como propietarias del territorio. ","Riesgo derivado de ignorar las formas de organización\nlocal de: ejidos, comunidades agrarias, pueblos y comunidades indígenas.","C1 Retraso"]
[null,null,null,null,null,"C2 Conflicto"]
[null,null,null,null,null,"C3 Sanciones"]
[null,null,null,null,null,"C4 Cancelación"]
[null,"Dimensión Socioambiental","R3.1","1. Uso y aprovechamiento de los recursos naturales / 2. Regulación de los recursos naturales","Riesgo derivado del manejo sustentable y eficiente de\nlos recursos existentes.","C1 Retraso"]
[null,null,null,null,null,"C2 Conflicto"]
[null,null,null,null,null,"C3 Sanciones"]
[null,null,"R3.2","3. Manejo de Residuos / 4. Salud","Riesgo derivado de problemas de salud por incorrecto manejo de residuos.","C1 Retraso"]
[null,null,null,null,null,"C2 Conflicto"]
[null,null,null,null,null,"C3 Sanciones"]
[null,null,null,null,null,"C4 Cancelación"]
[null,"Dimensión Sociocultural","R4.1","1. Población Indígena","Riesgo por no realizar correctamente una consulta indígena.","C1 Retraso"]
[null,null,null,null,null,"C2 Conflicto"]
[null,null,null,null,null,"C3 Sanciones"]
[null,null,null,null,null,"C4 Cancelación"]
[null,null,"R4.2","2. Patrimonio cultural material / 3. Patrimonio Cultural Arqueológico / 4. Producción y reproducción del patrimonio cultural","Riesgo derivado de no identificar ni implementar mecanismos de resguardo y conservación al patrimonio cultural que tiene contacto con el proyecto. ","C1 Retraso"]
[null,null,null,null,null,"C2 Conflicto"]
[null,null,null,null,null,"C3 Sanciones"]
[null,null,null,null,null,"C4 Cancelación"]

{"sheet":"Paso 3 Mitigantes","index":2,"n_rows":46,"n_cols":17,"rows_kept":46,"cut":false,"hidden":false,"merged":[[9,1,22,1],[9,2,10,2],[9,3,10,3],[9,4,10,4],[11,2,14,2],[11,3,14,3],[11,4,14,4],[15,2,17,2],[15,3,17,3],[15,4,17,4],[18,2,20,2],[18,3,20,3],[18,4,20,4],[21,2,22,2],[21,3,22,3],[21,4,22,4],[23,1,30,1],[23,2,26,2],[23,3,26,3],[23,4,26,4],[27,2,30,2],[27,3,30,3],[27,4,30,4],[31,1,37,1],[31,2,33,2],[31,3,33,3],[31,4,33,4],[34,2,37,2],[34,3,37,3],[34,4,37,4],[38,1,45,1],[38,2,41,2],[38,3,41,3],[38,4,41,4],[42,2,45,2],[42,3,45,3],[42,4,45,4]]}
[]
[null,"Metodología para valorar Impactos Sociales (MEVIMS)"]
[null,"Basado en Matriz de impactos y riesgos genéricos de la MEDIRSE*"]
[]
[null,"Nombre del Proyecto",null,{"$f":"'Paso 1 Índice'!$E$8","v":0}]
[]
[null,"Tipo de Proyecto",null,{"$f":"'Paso 1 Índice'!$E$13","v":0}]
[]
[null,"Dimensión","ID","Impacto Genérico","Relación Impacto - Riesgo","Riesgo Genérico Asociado","% de Ajuste al Riesgo ",null,"% de Ajuste al Riesgo","Descripción de la Mitigación Genérica",null,null,"ID","Posible actividad de Mitigación","Descripción","Impacto","Rango de Reducción de Riesgo (%)"]
[null,"Dimensión Socioeconómica","R1.1","1. Producción de bienes y servicios en lugares específicos","Riesgos derivados de la modificación del área",{"$f":"IF('Paso 2 Identificar Riesgos'!G10=\"Aplica\",'Paso 2 Identificar Riesgos'!F10,\"\")","v":""},{"$f":"IF(F10=\"\",\"\",I10)","v":""},null,null,null,null,null,"M1 Fondo de Contingencia","Establecer un fondo de contingencia por el acreditado.","Cantidad reservada para resolver imprevistos. ","Bajo","1% - 33%"]
[null,null,null,null,null,{"$f":"IF('Paso 2 Identificar Riesgos'!G11=\"Aplica\",'Paso 2 Identificar Riesgos'!F11,\"\")","v":""},{"$f":"IF(F11=\"\",\"\",I11)","v":""},null,null,null,null,null,"M2 Garantías","Definir montos de garantía.","Cantidad definida en el contrato de crédito para dotar de una mayor seguridad al cumplimiento de ciertas condiciones.","Bajo","1% - 33%"]
[null,null,"R1.2","2. Derrama económica por el usufructo y contraprestación de espacios o prestación de servicios. ","Riesgos derivados de renta o compra-venta del área dónde se desarrollará el proyecto",{"$f":"IF('Paso 2 Identificar Riesgos'!G12=\"Aplica\",'Paso 2 Identificar Riesgos'!F12,\"\")","v":""},"",null,null,null,null,null,"M3 Acciones Correctivas","Presupuesto Asignado a Acciones Correctivas","Una vez que el riesgo ha sido detectado o ha ocurrido, el acreditado deberá de demostrar que ha asignado recursos para aplicar medidas correctivas y dar seguimiento.","Bajo","1% - 33%"]
[null,null,null,null,null,{"$f":"IF('Paso 2 Identificar Riesgos'!G13=\"Aplica\",'Paso 2 Identificar Riesgos'!F13,\"\")","v":""},"",null,null,null,null,null,"M4 Seguro (Si aplicable)","Seguro Aplicable","La organización deberá contar con un seguro que contemple futuro incidentes donde tenga que pagar o liquidar a la fecha de protocolo del siniestro, constituye la primera valoración de la reserva.","Medio","34% - 66%"]
[null,null,null,null,null,{"$f":"IF('Paso 2 Identificar Riesgos'!G14=\"Aplica\",'Paso 2 Identificar Riesgos'!F14,\"\")","v":""},"",null,null,null,null,null,"M5 Programas de Atención y Prevención","Programas o campañas de atención y prevención","El programa está relacionado con una inversión social definida por el acreditado, con el propósito de reducir los riesgos laborales y de salud. Estos programas están relacionados con los programas internos.","Medio","34% - 66%"]
[null,null,null,null,null,{"$f":"IF('Paso 2 Identificar Riesgos'!G15=\"Aplica\",'Paso 2 Identificar Riesgos'!F15,\"\")","v":""},{"$f":"IF(F15=\"\",\"\",I15)","v":""},null,null,null,null,null,"M6 Canales efectivos de comunicación","Definir canales de comunicación con la comunidad/personal","Mantener diversos canales de comunicación que le permitan acreditado identificar posibles riesgos e inconformidades previo a y durante el desarrollo del proyecto.","Medio","34% - 66%"]
[null,null,"R1.3","3. Seguridad","Riesgos derivados de las condiciones de seguridad del personal involucrado en el proyecto y la población cercana",{"$f":"IF('Paso 2 Identificar Riesgos'!G16=\"Aplica\",'Paso 2 Identificar Riesgos'!F16,\"\")","v":""},"",null,null,"El cliente deberá presentar para su implementación los planes y políticas de Salud y Seguridad para los trabajadores, plan de respuesta a emergencias, así como planes de monitoreo a EPC en salud y seguridad.",null,null,"M7 Establecimiento de proyectos, programas y acciones Sociales ","Establecer proyectos sociales por el acreditado.","Definir proyectos en materia de salud, seguridad, ambiental, etc. para generar capacidades y habilidades determinadas con el fin de prevenir y disminuir riesgos que interrumpan el proyecto. ","Alto","67% - 100%"]
[null,null,null,null,null,{"$f":"IF('Paso 2 Identificar Riesgos'!G17=\"Aplica\",'Paso 2 Identificar Riesgos'!F17,\"\")","v":""},"",null,null,"El cliente deberá presentar el plan de gestión de la seguridad privada conforme a los lineamientos internacionales del Corporación Financiera Internacional y los cuerpos de seguridad deberán recibir capacitación permanente en legislación existente en los tres niveles de gobierno y en derechos humanos.",null,null,"M8 Programa de Monitoreo de Cumplimiento Regulatorio","Acciones de monitoreo de cumplimiento regulatorio por parte del acreditado.","Definición de un sistema de gestión por parte del acreditado que permita confirmar que los riesgos sociales se están atendiendo y no existen riesgos.","Alto","67% - 100%"]
[null,null,null,null,null,{"$f":"IF('Paso 2 Identificar Riesgos'!G18=\"Aplica\",'Paso 2 Identificar Riesgos'!F18,\"\")","v":""},"",null,null,"El cliente deberá presentar para su implementación los planes y políticas de Salud y Seguridad para los trabajadores, plan de respuesta a emergencias, así como planes de monitoreo a EPC en salud y seguridad."]
[null,null,"R1.4","4. Entorno laboral","Riesgos derivados de las condiciones Laborales del personal involucrado en el proyecto",{"$f":"IF('Paso 2 Identificar Riesgos'!G19=\"Aplica\",'Paso 2 Identificar Riesgos'!F19,\"\")","v":""},"",null,null,"El cliente deberá priorizar sus necesidades laborales con habitantes del área de influencia o áreas colindantes, además de clarificar a la población local las condiciones de trabajo temporal."]
[null,null,null,null,null,{"$f":"IF('Paso 2 Identificar Riesgos'!G20=\"Aplica\",'Paso 2 Identificar Riesgos'!F20,\"\")","v":""},"",null,null,"El cliente deberá priorizar sus necesidades laborales con habitantes del área de influencia o áreas colindantes, además de clarificar a la población local las condiciones de trabajo temporal."]
[null,null,null,null,null,{"$f":"IF('Paso 2 Identificar Riesgos'!G21=\"Aplica\",'Paso 2 Identificar Riesgos'!F21,\"\")","v":""},""]
[null,null,"R1.5","5. Inversión Social","Riesgos derivados de la negación de inversión social en la población con la que interactúa.",{"$f":"IF('Paso 2 Identificar Riesgos'!G22=\"Aplica\",'Paso 2 Identificar Riesgos'!F22,\"\")","v":""},"",null,null,"El cliente deberá difundir entre la población idetificada los procedimientos, requisitos y los criteriosde selección para acceder y participaren estos programas. "]
[null,null,null,null,null,{"$f":"IF('Paso 2 Identificar Riesgos'!G23=\"Aplica\",'Paso 2 Identificar Riesgos'!F23,\"\")","v":""},"",null,null,"El cliente deberá difundir entre la población idetificada los procedimientos, requisitos y los criteriosde selección para acceder y participaren estos programas. "]
[null,"Dimensión Sociopolítica","R2.1","1. Mecanismos de Participación / 2. Representatividad / 3. Uso del territorio y libertad para decidir sobre él. ","Riesgo derivado de los procedimientos que permiten a los individuos de una sociedad  involucrase en las decisiones relacionadas con el desarrollo del proyecto.",{"$f":"IF('Paso 2 Identificar Riesgos'!G24=\"Aplica\",'Paso 2 Identificar Riesgos'!F24,\"\")","v":""},""]
[null,null,null,null,null,{"$f":"IF('Paso 2 Identificar Riesgos'!G25=\"Aplica\",'Paso 2 Identificar Riesgos'!F25,\"\")","v":""},""]
[null,null,null,null,null,{"$f":"IF('Paso 2 Identificar Riesgos'!G26=\"Aplica\",'Paso 2 Identificar Riesgos'!F26,\"\")","v":""},""]
[null,null,null,null,null,{"$f":"IF('Paso 2 Identificar Riesgos'!G27=\"Aplica\",'Paso 2 Identificar Riesgos'!F27,\"\")","v":""},""]
[null,null,"R2.2","4. Formas de organización: Ejidos, comunidades agrarias, pueblos y comunidades indígenas y personas como propietarias del territorio. ","Riesgo derivado de ignorar las formas de organización\nlocal de: ejidos, comunidades agrarias, pueblos y comunidades indígenas.",{"$f":"IF('Paso 2 Identificar Riesgos'!G28=\"Aplica\",'Paso 2 Identificar Riesgos'!F28,\"\")","v":""},"",null,null,"El cliente deberá implementar un Plan de participación de Grupos de Interés considerando las principales preocupaciones de la población respecto a su salud y operación del parque fotovoltaico y acreditar que la población indígena en el área cercana al proyecto, no es susceptible de un proceso de consulta indígena."]
[null,null,null,null,null,{"$f":"IF('Paso 2 Identificar Riesgos'!G29=\"Aplica\",'Paso 2 Identificar Riesgos'!F29,\"\")","v":""},""]
[null,null,null,null,null,{"$f":"IF('Paso 2 Identificar Riesgos'!G30=\"Aplica\",'Paso 2 Identificar Riesgos'!F30,\"\")","v":""},""]
[null,null,null,null,null,{"$f":"IF('Paso 2 Identificar Riesgos'!G31=\"Aplica\",'Paso 2 Identificar Riesgos'!F31,\"\")","v":""},""]
[null,"Dimensión Socioambiental","R3.1","1. Uso y aprovechamiento de los recursos naturales / 2. Regulación de los recursos naturales","Riesgo derivado del manejo sustentable y eficiente de\nlos recursos existentes.",{"$f":"IF('Paso 2 Identificar Riesgos'!G32=\"Aplica\",'Paso 2 Identificar Riesgos'!F32,\"\")","v":""},"",null,null,"El cliente deberá implementar los planes para la prevención y/o mitigación de la erosión del suelo, así como desarrollar los planes de gestión de tráfico e informar a la comunidad sobre el aumento de niveles de ruido y tráfico."]
[null,null,null,null,null,{"$f":"IF('Paso 2 Identificar Riesgos'!G33=\"Aplica\",'Paso 2 Identificar Riesgos'!F33,\"\")","v":""},"",null,null,"Identificar la relación del proyecto con la ANP y de existir una relación directa establecer los mecanismos de atención de medidas de compensación y socializar su cumplimiento."]
[null,null,null,null,null,{"$f":"IF('Paso 2 Identificar Riesgos'!G34=\"Aplica\",'Paso 2 Identificar Riesgos'!F34,\"\")","v":""},"",null,null,"Identificar la fuente de agua de abastecimiento del proyecto durante las fases de construcción y operación incluyendo la elaboración e implantación de un programa de protección a los cuerpos de agua superficiales."]
[null,null,"R3.2","3. Manejo de Residuos / 4. Salud","Riesgo derivado de problemas de salud por incorrecto manejo de residuos.",{"$f":"IF('Paso 2 Identificar Riesgos'!G35=\"Aplica\",'Paso 2 Identificar Riesgos'!F35,\"\")","v":""},""]
[null,null,null,null,null,{"$f":"IF('Paso 2 Identificar Riesgos'!G36=\"Aplica\",'Paso 2 Identificar Riesgos'!F36,\"\")","v":""},""]
[null,null,null,null,null,{"$f":"IF('Paso 2 Identificar Riesgos'!G37=\"Aplica\",'Paso 2 Identificar Riesgos'!F37,\"\")","v":""},""]
[null,null,null,null,null,{"$f":"IF('Paso 2 Identificar Riesgos'!G38=\"Aplica\",'Paso 2 Identificar Riesgos'!F38,\"\")","v":""},""]
[null,"Dimensión Sociocultural","R4.1","1. Población Indígena","Riesgo por no realizar correctamente una consulta indígena.",{"$f":"IF('Paso 2 Identificar Riesgos'!G39=\"Aplica\",'Paso 2 Identificar Riesgos'!F39,\"\")","v":""},""]
[null,null,null,null,null,{"$f":"IF('Paso 2 Identificar Riesgos'!G40=\"Aplica\",'Paso 2 Identificar Riesgos'!F40,\"\")","v":""},""]
[null,null,null,null,null,{"$f":"IF('Paso 2 Identificar Riesgos'!G41=\"Aplica\",'Paso 2 Identificar Riesgos'!F41,\"\")","v":""},""]
[null,null,null,null,null,{"$f":"IF('Paso 2 Identificar Riesgos'!G42=\"Aplica\",'Paso 2 Identificar Riesgos'!F42,\"\")","v":""},""]
[null,null,"R4.2","2. Patrimonio cultural material / 3. Patrimonio Cultural Arqueológico / 4. Producción y reproducción del patrimonio cultural","Riesgo derivado de no identificar ni implementar mecanismos de resguardo y conservación al patrimonio cultural que tiene contacto con el proyecto. ",{"$f":"IF('Paso 2 Identificar Riesgos'!G43=\"Aplica\",'Paso 2 Identificar Riesgos'!F43,\"\")","v":""},"",null,null,"Identificar la relación del proyecto con el sitio arqueológico y ya que el mismo INAH estableció que existe una relación directa entre el sitio y el proyecto, el cliente debe establecer los mecanismos de socialización para la protección del patrimonio cultural y así evitar conflictos derivados de la desinformación."]
[null,null,null,null,null,{"$f":"IF('Paso 2 Identificar Riesgos'!G44=\"Aplica\",'Paso 2 Identificar Riesgos'!F44,\"\")","v":""},"",null,null,"Identificar la relación del proyecto con el sitio arqueológico y ya que el mismo INAH estableció que existe una relación directa entre el sitio y el proyecto, el cliente debe establecer los mecanismos de socialización para la protección del patrimonio cultural y así evitar conflictos derivados de la desinformación."]
[null,null,null,null,null,{"$f":"IF('Paso 2 Identificar Riesgos'!G45=\"Aplica\",'Paso 2 Identificar Riesgos'!F45,\"\")","v":""},""]
[null,null,null,null,null,{"$f":"IF('Paso 2 Identificar Riesgos'!G46=\"Aplica\",'Paso 2 Identificar Riesgos'!F46,\"\")","v":""},""]

{"sheet":"Resultados","index":3,"n_rows":23,"n_cols":4,"rows_kept":23,"cut":false,"hidden":false,"merged":[[13,1,13,3],[14,1,15,1],[14,2,15,2],[14,3,15,3],[16,1,17,1],[16,2,17,2],[16,3,17,3],[22,1,23,1],[22,2,23,2],[22,3,23,3],[18,1,19,1],[18,2,19,2],[18,3,19,3],[20,1,21,1],[20,2,21,2],[20,3,21,3]]}
[]
[null,"Metodología para valorar el impacto de riesgos relacionados a aspectos sociales"]
[null,"Resumen de Resultados"]
[]
[null,"Nombre del Proyecto",null,{"$f":"'Paso 2 Identificar Riesgos'!D5","v":0}]
[null,"Tipo de Proyecto",null,{"$f":"'Paso 2 Identificar Riesgos'!D7","v":0}]
[]
[null,"% de Riesgos Totales Presentes en el Proyecto",null,{"$f":"'Análisis detallado'!Q10","v":{"$error":"#DIV/0!"}}]
[null,"Calificación del Proyecto",null,{"$f":"'Análisis detallado'!R10","v":{"$error":"#DIV/0!"}}]
[]
[null,"Calificaciones"]
[]
[]
[null,"Calificación del Proyecto"]
[null,"81 - 100%","V","Riesgo Muy Alto"]
[]
[null,"61 - 80%","IV","Riesgo Alto"]
[]
[null,"41 - 60","III","Riesgo Medio"]
[]
[null,"21 - 40%","II","Riesgo Bajo"]
[]
[null,"1 - 20%","I","Riesgo Muy Bajo"]

{"sheet":"Definiciones","index":4,"n_rows":43,"n_cols":4,"rows_kept":43,"cut":false,"hidden":true,"merged":[]}
[]
[null,"Clasificación de Riesgos"]
[null,"Clasificación de Riesgos Genéricos Cuantificables, Posibles Complicaciones ($) y Etapas del Proyecto"]
[null,"INPUT: ","Matriz de Impactos y Riesgos Genéricos del Componente A de la Medirse / Ficha UGAS"]
[]
[null,"Socioeconómica","Clasificación Genérica (Anexo 3 MEDIRSE)"]
[null,"R1.1","1. Producción de bienes y servicios en lugares específicos","[C1,C2/E(1-4)]"]
[null,"R1.2","2. Derrama económica por el usufructo y contraprestación de espacios o prestación de servicios","[C1, C2, C3, C4 / E(1-4)]"]
[null,"R1.3","3. Seguridad","[C1, C2/E(1-4)]"]
[null,"R1.4","4. Entorno laboral","[C1, C2, C5 / E(1-4)]"]
[null,"R1.5","5. Inversión Social","[C1, C2, C5 / E(1-4)]"]
[null,null,null,"[C1,C2/E(1-4)]"]
[]
[null,"Sociopolítica"]
[null,"R2.1","1. Mecanismos de Participación / 2. Representatividad / 3. Uso del territorio y libertad para decidir sobre el . ","[C1,C2,C3,C4/E(1-4)]"]
[null,"R2.2","4. Formas de organización: Ejidos, comunidades agrarias, pueblos y comunidades indígenas y personas como propietarias del territorio. ","[C1,C2,C3,C4/E(1-4)]"]
[]
[null,"Socioambiental"]
[null,"R3.1","1. Uso y aprovechamiento de los recursos naturales / 2. Regulación de los recursos naturales","[C1,C2,C3/E(1-4)]"]
[null,"R3.2","3. Manejo de Residuos / 4. Salud","[C1,C2,C3,C5/E(1-4)]"]
[]
[null,"Sociocultural"]
[null,"R4.1","1. Población Indígena","[C1,C2,C3,C4/E(1-4)]"]
[null,"R4.2","2. Patrimonio cultural material / 3. Patrimonio cultural arqueológico / 4. Producción y reproducción del patrimonio cultural","[C1,C2,C3,C4/E(1-4)]"]
[]
[]
[null,"Complicaciones"]
[]
[null,null,"Clave"]
[null,"1. Retraso","C1"]
[null,"2. Conflicto","C2"]
[null,"3. Sanciones","C3"]
[null,"4. Cancelación","C4"]
[]
[]
[null,"C1 Retraso"]
[null,"Retraso o suspensión de operaciones que se derive en un impacto económico para el proyecto"]
[null,"C2 Conflicto"]
[null,"Conflicto con terceras partes que se derive en costos adicionales significativos para resolverlo."]
[null,"C3 Sanciones"]
[null,"Sanciones económicas impuestas por algún organismo regulador derivadas de actividades relacionadas con el proyecto. Retrasos derivados de las mismas. Incluye Laboral"]
[null,"C4 Cancelación"]
[null,"Cancelación del proyecto por violaciones graves a la regulación vigente, o por contingencias económicas más allá del poder de los inversionistas en el proyecto. "]

{"sheet":"Análisis detallado","index":5,"n_rows":53,"n_cols":18,"rows_kept":53,"cut":false,"hidden":false,"merged":[[21,2,22,2],[21,3,22,3],[23,1,30,1],[23,2,26,2],[23,3,26,3],[27,2,30,2],[27,3,30,3],[9,1,22,1],[18,2,20,2],[9,2,10,2],[9,3,10,3],[11,2,14,2],[11,3,14,3],[15,2,17,2],[15,3,17,3],[18,3,20,3],[31,1,37,1],[31,2,33,2],[31,3,33,3],[34,2,37,2],[34,3,37,3],[38,1,45,1],[38,2,41,2],[38,3,41,3],[42,2,45,2],[42,3,45,3]]}
[]
[null,"Metodología para valorar Impactos Sociales (MEVIMS)"]
[null,"Basado en Matriz de impactos y riesgos genéricos de la MEDIRSE*"]
[]
[null,"Nombre del Proyecto",null,{"$f":"'Paso 1 Índice'!E8","v":0}]
[]
[null,"Tipo de Proyecto",null,{"$f":"'Paso 1 Índice'!E13","v":0}]
[]
[null,"Dimensión","ID","Impacto Genérico","Posible Riesgo",null,"i","Aplica al proyecto analizado?","Factor de Riesgo I: Gravedad","Factor de Riesgo II: Frecuencia","Ajuste por Mitigación del riesgo i","Índice de Riesgo del riesgo i","Índice de Riesgo del riesgo i, de los riesgos aplicables al proyecto por analizar",null,null,null,"IRk","Calificación General del Proyecto"]
[null,"Dimensión Socioeconómica","R1.1","1. Producción de bienes y servicios en lugares específicos",{"$f":"IF('Paso 2 Identificar Riesgos'!G10=\"Aplica\",'Paso 2 Identificar Riesgos'!F10,\"\")","v":""},{"$f":"IF(E10=\"\",\"\",'Matriz Gravedad Probabilidad FV'!F6)","v":""},1,{"$f":"IF(F10=\"\",\"\",\"Si\")","v":""},{"$f":"IF($D$7=\"Fotovoltaica\",'Matriz Gravedad Probabilidad FV'!G6,IF('Análisis detallado'!$D$7=\"Eólica\",'Matriz Gravedad Probabilidad EO'!G6,IF('Análisis detallado'!$D$7=\"Mini-Hidro\",\"\")))","v":false},{"$f":"IF($D$7=\"Fotovoltaica\",'Matriz Gravedad Probabilidad FV'!H6,IF('Análisis detallado'!$D$7=\"Eólica\",'Matriz Gravedad Probabilidad EO'!H6,IF('Análisis detallado'!$D$7=\"Mini-Hidro\",\"\")))","v":false},{"$f":"IF('Paso 3 Mitigantes'!G10=\"\",0,'Paso 3 Mitigantes'!G10)","v":0},{"$f":"I10*J10*(1-K10)","v":0},{"$f":"IF(H10=\"Si\", L10,0)","v":0},null,null,null,{"$f":"L53","v":{"$error":"#DIV/0!"}},{"$f":"IF(AND(Q10>=0.01,Q10<=0.2),Resultados!$C$23,IF(AND(Q10>=0.21,Q10<=0.4),Resultados!$C$21,IF(AND(Q10>=0.41,Q10<=0.6),Resultados!$C$19,IF(AND(Q10>=0.61,Q10<=0.8),Resultados!$C$17,IF(AND(Q10>=0.81,Q10<=1),Resultados!$C$15,IF(Q10=0,\"No Risk Identified\"))))))","v":{"$error":"#DIV/0!"}}]
[null,null,null,null,{"$f":"IF('Paso 2 Identificar Riesgos'!G11=\"Aplica\",'Paso 2 Identificar Riesgos'!F11,\"\")","v":""},{"$f":"IF(E11=\"\",\"\",'Matriz Gravedad Probabilidad FV'!F7)","v":""},2,{"$f":"IF(F11=\"\",\"\",\"Si\")","v":""},{"$f":"IF($D$7=\"Fotovoltaica\",'Matriz Gravedad Probabilidad FV'!G7,IF('Análisis detallado'!$D$7=\"Eólica\",'Matriz Gravedad Probabilidad EO'!G7,IF('Análisis detallado'!$D$7=\"Mini-Hidro\",\"\")))","v":false},{"$f":"IF($D$7=\"Fotovoltaica\",'Matriz Gravedad Probabilidad FV'!H7,IF('Análisis detallado'!$D$7=\"Eólica\",'Matriz Gravedad Probabilidad EO'!H7,IF('Análisis detallado'!$D$7=\"Mini-Hidro\",\"\")))","v":false},{"$f":"IF('Paso 3 Mitigantes'!G11=\"\",0,'Paso 3 Mitigantes'!G11)","v":0},{"$f":"I11*J11*(1-K11)","v":0},{"$f":"IF(H11=\"Si\", L11,0)","v":0}]
[null,null,"R1.2","2. Derrama económica por el usufructo y contraprestación de espacios o prestación de servicios. ",{"$f":"IF('Paso 2 Identificar Riesgos'!G12=\"Aplica\",'Paso 2 Identificar Riesgos'!F12,\"\")","v":""},{"$f":"IF(E12=\"\",\"\",'Matriz Gravedad Probabilidad FV'!F8)","v":""},3,"",{"$f":"IF($D$7=\"Fotovoltaica\",'Matriz Gravedad Probabilidad FV'!G8,IF('Análisis detallado'!$D$7=\"Eólica\",'Matriz Gravedad Probabilidad EO'!G8,IF('Análisis detallado'!$D$7=\"Mini-Hidro\",\"\")))","v":false},{"$f":"IF($D$7=\"Fotovoltaica\",'Matriz Gravedad Probabilidad FV'!H8,IF('Análisis detallado'!$D$7=\"Eólica\",'Matriz Gravedad Probabilidad EO'!H8,IF('Análisis detallado'!$D$7=\"Mini-Hidro\",\"\")))","v":false},{"$f":"IF('Paso 3 Mitigantes'!G12=\"\",0,'Paso 3 Mitigantes'!G12)","v":0},0,0]
[null,null,null,null,{"$f":"IF('Paso 2 Identificar Riesgos'!G13=\"Aplica\",'Paso 2 Identificar Riesgos'!F13,\"\")","v":""},{"$f":"IF(E13=\"\",\"\",'Matriz Gravedad Probabilidad FV'!F9)","v":""},4,"",{"$f":"IF($D$7=\"Fotovoltaica\",'Matriz Gravedad Probabilidad FV'!G9,IF('Análisis detallado'!$D$7=\"Eólica\",'Matriz Gravedad Probabilidad EO'!G9,IF('Análisis detallado'!$D$7=\"Mini-Hidro\",\"\")))","v":false},{"$f":"IF($D$7=\"Fotovoltaica\",'Matriz Gravedad Probabilidad FV'!H9,IF('Análisis detallado'!$D$7=\"Eólica\",'Matriz Gravedad Probabilidad EO'!H9,IF('Análisis detallado'!$D$7=\"Mini-Hidro\",\"\")))","v":false},{"$f":"IF('Paso 3 Mitigantes'!G13=\"\",0,'Paso 3 Mitigantes'!G13)","v":0},0,0]
[null,null,null,null,{"$f":"IF('Paso 2 Identificar Riesgos'!G14=\"Aplica\",'Paso 2 Identificar Riesgos'!F14,\"\")","v":""},{"$f":"IF(E14=\"\",\"\",'Matriz Gravedad Probabilidad FV'!F10)","v":""},5,"",{"$f":"IF($D$7=\"Fotovoltaica\",'Matriz Gravedad Probabilidad FV'!G10,IF('Análisis detallado'!$D$7=\"Eólica\",'Matriz Gravedad Probabilidad EO'!G10,IF('Análisis detallado'!$D$7=\"Mini-Hidro\",\"\")))","v":false},{"$f":"IF($D$7=\"Fotovoltaica\",'Matriz Gravedad Probabilidad FV'!H10,IF('Análisis detallado'!$D$7=\"Eólica\",'Matriz Gravedad Probabilidad EO'!H10,IF('Análisis detallado'!$D$7=\"Mini-Hidro\",\"\")))","v":false},{"$f":"IF('Paso 3 Mitigantes'!G14=\"\",0,'Paso 3 Mitigantes'!G14)","v":0},0,0]
[null,null,null,null,{"$f":"IF('Paso 2 Identificar Riesgos'!G15=\"Aplica\",'Paso 2 Identificar Riesgos'!F15,\"\")","v":""},{"$f":"IF(E15=\"\",\"\",'Matriz Gravedad Probabilidad FV'!F11)","v":""},6,"",{"$f":"IF($D$7=\"Fotovoltaica\",'Matriz Gravedad Probabilidad FV'!G11,IF('Análisis detallado'!$D$7=\"Eólica\",'Matriz Gravedad Probabilidad EO'!G11,IF('Análisis detallado'!$D$7=\"Mini-Hidro\",\"\")))","v":false},{"$f":"IF($D$7=\"Fotovoltaica\",'Matriz Gravedad Probabilidad FV'!H11,IF('Análisis detallado'!$D$7=\"Eólica\",'Matriz Gravedad Probabilidad EO'!H11,IF('Análisis detallado'!$D$7=\"Mini-Hidro\",\"\")))","v":false},{"$f":"IF('Paso 3 Mitigantes'!G15=\"\",0,'Paso 3 Mitigantes'!G15)","v":0},0,0]
[null,null,"R1.3","3. Seguridad",{"$f":"IF('Paso 2 Identificar Riesgos'!G16=\"Aplica\",'Paso 2 Identificar Riesgos'!F16,\"\")","v":""},{"$f":"IF(E16=\"\",\"\",'Matriz Gravedad Probabilidad FV'!F12)","v":""},7,"",{"$f":"IF($D$7=\"Fotovoltaica\",'Matriz Gravedad Probabilidad FV'!G12,IF('Análisis detallado'!$D$7=\"Eólica\",'Matriz Gravedad Probabilidad EO'!G12,IF('Análisis detallado'!$D$7=\"Mini-Hidro\",\"\")))","v":false},{"$f":"IF($D$7=\"Fotovoltaica\",'Matriz Gravedad Probabilidad FV'!H12,IF('Análisis detallado'!$D$7=\"Eólica\",'Matriz Gravedad Probabilidad EO'!H12,IF('Análisis detallado'!$D$7=\"Mini-Hidro\",\"\")))","v":false},{"$f":"IF('Paso 3 Mitigantes'!G16=\"\",0,'Paso 3 Mitigantes'!G16)","v":0},0,0]
[null,null,null,null,{"$f":"IF('Paso 2 Identificar Riesgos'!G17=\"Aplica\",'Paso 2 Identificar Riesgos'!F17,\"\")","v":""},{"$f":"IF(E17=\"\",\"\",'Matriz Gravedad Probabilidad FV'!F13)","v":""},8,"",{"$f":"IF($D$7=\"Fotovoltaica\",'Matriz Gravedad Probabilidad FV'!G13,IF('Análisis detallado'!$D$7=\"Eólica\",'Matriz Gravedad Probabilidad EO'!G13,IF('Análisis detallado'!$D$7=\"Mini-Hidro\",\"\")))","v":false},{"$f":"IF($D$7=\"Fotovoltaica\",'Matriz Gravedad Probabilidad FV'!H13,IF('Análisis detallado'!$D$7=\"Eólica\",'Matriz Gravedad Probabilidad EO'!H13,IF('Análisis detallado'!$D$7=\"Mini-Hidro\",\"\")))","v":false},{"$f":"IF('Paso 3 Mitigantes'!G17=\"\",0,'Paso 3 Mitigantes'!G17)","v":0},0,0]
[null,null,null,null,{"$f":"IF('Paso 2 Identificar Riesgos'!G18=\"Aplica\",'Paso 2 Identificar Riesgos'!F18,\"\")","v":""},{"$f":"IF(E18=\"\",\"\",'Matriz Gravedad Probabilidad FV'!F14)","v":""},9,"",{"$f":"IF($D$7=\"Fotovoltaica\",'Matriz Gravedad Probabilidad FV'!G14,IF('Análisis detallado'!$D$7=\"Eólica\",'Matriz Gravedad Probabilidad EO'!G14,IF('Análisis detallado'!$D$7=\"Mini-Hidro\",\"\")))","v":false},{"$f":"IF($D$7=\"Fotovoltaica\",'Matriz Gravedad Probabilidad FV'!H14,IF('Análisis detallado'!$D$7=\"Eólica\",'Matriz Gravedad Probabilidad EO'!H14,IF('Análisis detallado'!$D$7=\"Mini-Hidro\",\"\")))","v":false},{"$f":"IF('Paso 3 Mitigantes'!G18=\"\",0,'Paso 3 Mitigantes'!G18)","v":0},0,0]
[null,null,"R1.4","4. Entorno laboral",{"$f":"IF('Paso 2 Identificar Riesgos'!G19=\"Aplica\",'Paso 2 Identificar Riesgos'!F19,\"\")","v":""},{"$f":"IF(E19=\"\",\"\",'Matriz Gravedad Probabilidad FV'!F15)","v":""},10,"",{"$f":"IF($D$7=\"Fotovoltaica\",'Matriz Gravedad Probabilidad FV'!G15,IF('Análisis detallado'!$D$7=\"Eólica\",'Matriz Gravedad Probabilidad EO'!G15,IF('Análisis detallado'!$D$7=\"Mini-Hidro\",\"\")))","v":false},{"$f":"IF($D$7=\"Fotovoltaica\",'Matriz Gravedad Probabilidad FV'!H15,IF('Análisis detallado'!$D$7=\"Eólica\",'Matriz Gravedad Probabilidad EO'!H15,IF('Análisis detallado'!$D$7=\"Mini-Hidro\",\"\")))","v":false},{"$f":"IF('Paso 3 Mitigantes'!G19=\"\",0,'Paso 3 Mitigantes'!G19)","v":0},0,0]
[null,null,null,null,{"$f":"IF('Paso 2 Identificar Riesgos'!G20=\"Aplica\",'Paso 2 Identificar Riesgos'!F20,\"\")","v":""},{"$f":"IF(E20=\"\",\"\",'Matriz Gravedad Probabilidad FV'!F16)","v":""},11,"",{"$f":"IF($D$7=\"Fotovoltaica\",'Matriz Gravedad Probabilidad FV'!G16,IF('Análisis detallado'!$D$7=\"Eólica\",'Matriz Gravedad Probabilidad EO'!G16,IF('Análisis detallado'!$D$7=\"Mini-Hidro\",\"\")))","v":false},{"$f":"IF($D$7=\"Fotovoltaica\",'Matriz Gravedad Probabilidad FV'!H16,IF('Análisis detallado'!$D$7=\"Eólica\",'Matriz Gravedad Probabilidad EO'!H16,IF('Análisis detallado'!$D$7=\"Mini-Hidro\",\"\")))","v":false},{"$f":"IF('Paso 3 Mitigantes'!G20=\"\",0,'Paso 3 Mitigantes'!G20)","v":0},0,0]
[null,null,null,null,{"$f":"IF('Paso 2 Identificar Riesgos'!G21=\"Aplica\",'Paso 2 Identificar Riesgos'!F21,\"\")","v":""},{"$f":"IF(E21=\"\",\"\",'Matriz Gravedad Probabilidad FV'!F17)","v":""},12,"",{"$f":"IF($D$7=\"Fotovoltaica\",'Matriz Gravedad Probabilidad FV'!G17,IF('Análisis detallado'!$D$7=\"Eólica\",'Matriz Gravedad Probabilidad EO'!G17,IF('Análisis detallado'!$D$7=\"Mini-Hidro\",\"\")))","v":false},{"$f":"IF($D$7=\"Fotovoltaica\",'Matriz Gravedad Probabilidad FV'!H17,IF('Análisis detallado'!$D$7=\"Eólica\",'Matriz Gravedad Probabilidad EO'!H17,IF('Análisis detallado'!$D$7=\"Mini-Hidro\",\"\")))","v":false},{"$f":"IF('Paso 3 Mitigantes'!G21=\"\",0,'Paso 3 Mitigantes'!G21)","v":0},0,0]
[null,null,"R1.5","5. Inversión Social",{"$f":"IF('Paso 2 Identificar Riesgos'!G22=\"Aplica\",'Paso 2 Identificar Riesgos'!F22,\"\")","v":""},{"$f":"IF(E22=\"\",\"\",'Matriz Gravedad Probabilidad FV'!F18)","v":""},13,"",{"$f":"IF($D$7=\"Fotovoltaica\",'Matriz Gravedad Probabilidad FV'!G18,IF('Análisis detallado'!$D$7=\"Eólica\",'Matriz Gravedad Probabilidad EO'!G18,IF('Análisis detallado'!$D$7=\"Mini-Hidro\",\"\")))","v":false},{"$f":"IF($D$7=\"Fotovoltaica\",'Matriz Gravedad Probabilidad FV'!H18,IF('Análisis detallado'!$D$7=\"Eólica\",'Matriz Gravedad Probabilidad EO'!H18,IF('Análisis detallado'!$D$7=\"Mini-Hidro\",\"\")))","v":false},{"$f":"IF('Paso 3 Mitigantes'!G22=\"\",0,'Paso 3 Mitigantes'!G22)","v":0},0,0]
[null,null,null,null,{"$f":"IF('Paso 2 Identificar Riesgos'!G23=\"Aplica\",'Paso 2 Identificar Riesgos'!F23,\"\")","v":""},{"$f":"IF(E23=\"\",\"\",'Matriz Gravedad Probabilidad FV'!F19)","v":""},14,"",{"$f":"IF($D$7=\"Fotovoltaica\",'Matriz Gravedad Probabilidad FV'!G19,IF('Análisis detallado'!$D$7=\"Eólica\",'Matriz Gravedad Probabilidad EO'!G19,IF('Análisis detallado'!$D$7=\"Mini-Hidro\",\"\")))","v":false},{"$f":"IF($D$7=\"Fotovoltaica\",'Matriz Gravedad Probabilidad FV'!H19,IF('Análisis detallado'!$D$7=\"Eólica\",'Matriz Gravedad Probabilidad EO'!H19,IF('Análisis detallado'!$D$7=\"Mini-Hidro\",\"\")))","v":false},{"$f":"IF('Paso 3 Mitigantes'!G23=\"\",0,'Paso 3 Mitigantes'!G23)","v":0},0,0]
[null,"Dimensión Sociopolítica","R2.1","1. Mecanismos de Participación / 2. Representatividad / 3. Uso del territorio y libertad para decidir sobre él. ",{"$f":"IF('Paso 2 Identificar Riesgos'!G24=\"Aplica\",'Paso 2 Identificar Riesgos'!F24,\"\")","v":""},{"$f":"IF(E24=\"\",\"\",'Matriz Gravedad Probabilidad FV'!F20)","v":""},15,"",{"$f":"IF($D$7=\"Fotovoltaica\",'Matriz Gravedad Probabilidad FV'!G20,IF('Análisis detallado'!$D$7=\"Eólica\",'Matriz Gravedad Probabilidad EO'!G20,IF('Análisis detallado'!$D$7=\"Mini-Hidro\",\"\")))","v":false},{"$f":"IF($D$7=\"Fotovoltaica\",'Matriz Gravedad Probabilidad FV'!H20,IF('Análisis detallado'!$D$7=\"Eólica\",'Matriz Gravedad Probabilidad EO'!H20,IF('Análisis detallado'!$D$7=\"Mini-Hidro\",\"\")))","v":false},{"$f":"IF('Paso 3 Mitigantes'!G24=\"\",0,'Paso 3 Mitigantes'!G24)","v":0},0,0]
[null,null,null,null,{"$f":"IF('Paso 2 Identificar Riesgos'!G25=\"Aplica\",'Paso 2 Identificar Riesgos'!F25,\"\")","v":""},{"$f":"IF(E25=\"\",\"\",'Matriz Gravedad Probabilidad FV'!F21)","v":""},16,"",{"$f":"IF($D$7=\"Fotovoltaica\",'Matriz Gravedad Probabilidad FV'!G21,IF('Análisis detallado'!$D$7=\"Eólica\",'Matriz Gravedad Probabilidad EO'!G21,IF('Análisis detallado'!$D$7=\"Mini-Hidro\",\"\")))","v":false},{"$f":"IF($D$7=\"Fotovoltaica\",'Matriz Gravedad Probabilidad FV'!H21,IF('Análisis detallado'!$D$7=\"Eólica\",'Matriz Gravedad Probabilidad EO'!H21,IF('Análisis detallado'!$D$7=\"Mini-Hidro\",\"\")))","v":false},{"$f":"IF('Paso 3 Mitigantes'!G25=\"\",0,'Paso 3 Mitigantes'!G25)","v":0},{"$f":"I25*J25*(1-K25)","v":0},0]
[null,null,null,null,{"$f":"IF('Paso 2 Identificar Riesgos'!G26=\"Aplica\",'Paso 2 Identificar Riesgos'!F26,\"\")","v":""},{"$f":"IF(E26=\"\",\"\",'Matriz Gravedad Probabilidad FV'!F22)","v":""},17,"",{"$f":"IF($D$7=\"Fotovoltaica\",'Matriz Gravedad Probabilidad FV'!G22,IF('Análisis detallado'!$D$7=\"Eólica\",'Matriz Gravedad Probabilidad EO'!G22,IF('Análisis detallado'!$D$7=\"Mini-Hidro\",\"\")))","v":false},{"$f":"IF($D$7=\"Fotovoltaica\",'Matriz Gravedad Probabilidad FV'!H22,IF('Análisis detallado'!$D$7=\"Eólica\",'Matriz Gravedad Probabilidad EO'!H22,IF('Análisis detallado'!$D$7=\"Mini-Hidro\",\"\")))","v":false},{"$f":"IF('Paso 3 Mitigantes'!G26=\"\",0,'Paso 3 Mitigantes'!G26)","v":0},0,0]
[null,null,null,null,{"$f":"IF('Paso 2 Identificar Riesgos'!G27=\"Aplica\",'Paso 2 Identificar Riesgos'!F27,\"\")","v":""},{"$f":"IF(E27=\"\",\"\",'Matriz Gravedad Probabilidad FV'!F23)","v":""},18,"",{"$f":"IF($D$7=\"Fotovoltaica\",'Matriz Gravedad Probabilidad FV'!G23,IF('Análisis detallado'!$D$7=\"Eólica\",'Matriz Gravedad Probabilidad EO'!G23,IF('Análisis detallado'!$D$7=\"Mini-Hidro\",\"\")))","v":false},{"$f":"IF($D$7=\"Fotovoltaica\",'Matriz Gravedad Probabilidad FV'!H23,IF('Análisis detallado'!$D$7=\"Eólica\",'Matriz Gravedad Probabilidad EO'!H23,IF('Análisis detallado'!$D$7=\"Mini-Hidro\",\"\")))","v":false},{"$f":"IF('Paso 3 Mitigantes'!G27=\"\",0,'Paso 3 Mitigantes'!G27)","v":0},0,0]
[null,null,"R2.2","4. Formas de organización: Ejidos, comunidades agrarias, pueblos y comunidades indígenas y personas como propietarias del territorio. ",{"$f":"IF('Paso 2 Identificar Riesgos'!G28=\"Aplica\",'Paso 2 Identificar Riesgos'!F28,\"\")","v":""},{"$f":"IF(E28=\"\",\"\",'Matriz Gravedad Probabilidad FV'!F24)","v":""},19,"",{"$f":"IF($D$7=\"Fotovoltaica\",'Matriz Gravedad Probabilidad FV'!G24,IF('Análisis detallado'!$D$7=\"Eólica\",'Matriz Gravedad Probabilidad EO'!G24,IF('Análisis detallado'!$D$7=\"Mini-Hidro\",\"\")))","v":false},{"$f":"IF($D$7=\"Fotovoltaica\",'Matriz Gravedad Probabilidad FV'!H24,IF('Análisis detallado'!$D$7=\"Eólica\",'Matriz Gravedad Probabilidad EO'!H24,IF('Análisis detallado'!$D$7=\"Mini-Hidro\",\"\")))","v":false},{"$f":"IF('Paso 3 Mitigantes'!G28=\"\",0,'Paso 3 Mitigantes'!G28)","v":0},0,0]
[null,null,null,null,{"$f":"IF('Paso 2 Identificar Riesgos'!G29=\"Aplica\",'Paso 2 Identificar Riesgos'!F29,\"\")","v":""},{"$f":"IF(E29=\"\",\"\",'Matriz Gravedad Probabilidad FV'!F25)","v":""},20,"",{"$f":"IF($D$7=\"Fotovoltaica\",'Matriz Gravedad Probabilidad FV'!G25,IF('Análisis detallado'!$D$7=\"Eólica\",'Matriz Gravedad Probabilidad EO'!G25,IF('Análisis detallado'!$D$7=\"Mini-Hidro\",\"\")))","v":false},{"$f":"IF($D$7=\"Fotovoltaica\",'Matriz Gravedad Probabilidad FV'!H25,IF('Análisis detallado'!$D$7=\"Eólica\",'Matriz Gravedad Probabilidad EO'!H25,IF('Análisis detallado'!$D$7=\"Mini-Hidro\",\"\")))","v":false},{"$f":"IF('Paso 3 Mitigantes'!G29=\"\",0,'Paso 3 Mitigantes'!G29)","v":0},0,0]
[null,null,null,null,{"$f":"IF('Paso 2 Identificar Riesgos'!G30=\"Aplica\",'Paso 2 Identificar Riesgos'!F30,\"\")","v":""},{"$f":"IF(E30=\"\",\"\",'Matriz Gravedad Probabilidad FV'!F26)","v":""},21,"",{"$f":"IF($D$7=\"Fotovoltaica\",'Matriz Gravedad Probabilidad FV'!G26,IF('Análisis detallado'!$D$7=\"Eólica\",'Matriz Gravedad Probabilidad EO'!G26,IF('Análisis detallado'!$D$7=\"Mini-Hidro\",\"\")))","v":false},{"$f":"IF($D$7=\"Fotovoltaica\",'Matriz Gravedad Probabilidad FV'!H26,IF('Análisis detallado'!$D$7=\"Eólica\",'Matriz Gravedad Probabilidad EO'!H26,IF('Análisis detallado'!$D$7=\"Mini-Hidro\",\"\")))","v":false},{"$f":"IF('Paso 3 Mitigantes'!G30=\"\",0,'Paso 3 Mitigantes'!G30)","v":0},0,0]
[null,null,null,null,{"$f":"IF('Paso 2 Identificar Riesgos'!G31=\"Aplica\",'Paso 2 Identificar Riesgos'!F31,\"\")","v":""},{"$f":"IF(E31=\"\",\"\",'Matriz Gravedad Probabilidad FV'!F27)","v":""},22,"",{"$f":"IF($D$7=\"Fotovoltaica\",'Matriz Gravedad Probabilidad FV'!G27,IF('Análisis detallado'!$D$7=\"Eólica\",'Matriz Gravedad Probabilidad EO'!G27,IF('Análisis detallado'!$D$7=\"Mini-Hidro\",\"\")))","v":false},{"$f":"IF($D$7=\"Fotovoltaica\",'Matriz Gravedad Probabilidad FV'!H27,IF('Análisis detallado'!$D$7=\"Eólica\",'Matriz Gravedad Probabilidad EO'!H27,IF('Análisis detallado'!$D$7=\"Mini-Hidro\",\"\")))","v":false},{"$f":"IF('Paso 3 Mitigantes'!G31=\"\",0,'Paso 3 Mitigantes'!G31)","v":0},0,0]
[null,"Dimensión Socioambiental","R3.1","1. Uso y aprovechamiento de los recursos naturales / 2. Regulación de los recursos naturales",{"$f":"IF('Paso 2 Identificar Riesgos'!G32=\"Aplica\",'Paso 2 Identificar Riesgos'!F32,\"\")","v":""},{"$f":"IF(E32=\"\",\"\",'Matriz Gravedad Probabilidad FV'!F28)","v":""},23,"",{"$f":"IF($D$7=\"Fotovoltaica\",'Matriz Gravedad Probabilidad FV'!G28,IF('Análisis detallado'!$D$7=\"Eólica\",'Matriz Gravedad Probabilidad EO'!G28,IF('Análisis detallado'!$D$7=\"Mini-Hidro\",\"\")))","v":false},{"$f":"IF($D$7=\"Fotovoltaica\",'Matriz Gravedad Probabilidad FV'!H28,IF('Análisis detallado'!$D$7=\"Eólica\",'Matriz Gravedad Probabilidad EO'!H28,IF('Análisis detallado'!$D$7=\"Mini-Hidro\",\"\")))","v":false},{"$f":"IF('Paso 3 Mitigantes'!G32=\"\",0,'Paso 3 Mitigantes'!G32)","v":0},0,0]
[null,null,null,null,{"$f":"IF('Paso 2 Identificar Riesgos'!G33=\"Aplica\",'Paso 2 Identificar Riesgos'!F33,\"\")","v":""},{"$f":"IF(E33=\"\",\"\",'Matriz Gravedad Probabilidad FV'!F29)","v":""},24,"",{"$f":"IF($D$7=\"Fotovoltaica\",'Matriz Gravedad Probabilidad FV'!G29,IF('Análisis detallado'!$D$7=\"Eólica\",'Matriz Gravedad Probabilidad EO'!G29,IF('Análisis detallado'!$D$7=\"Mini-Hidro\",\"\")))","v":false},{"$f":"IF($D$7=\"Fotovoltaica\",'Matriz Gravedad Probabilidad FV'!H29,IF('Análisis detallado'!$D$7=\"Eólica\",'Matriz Gravedad Probabilidad EO'!H29,IF('Análisis detallado'!$D$7=\"Mini-Hidro\",\"\")))","v":false},{"$f":"IF('Paso 3 Mitigantes'!G33=\"\",0,'Paso 3 Mitigantes'!G33)","v":0},0,0]
[null,null,null,null,{"$f":"IF('Paso 2 Identificar Riesgos'!G34=\"Aplica\",'Paso 2 Identificar Riesgos'!F34,\"\")","v":""},{"$f":"IF(E34=\"\",\"\",'Matriz Gravedad Probabilidad FV'!F30)","v":""},25,"",{"$f":"IF($D$7=\"Fotovoltaica\",'Matriz Gravedad Probabilidad FV'!G30,IF('Análisis detallado'!$D$7=\"Eólica\",'Matriz Gravedad Probabilidad EO'!G30,IF('Análisis detallado'!$D$7=\"Mini-Hidro\",\"\")))","v":false},{"$f":"IF($D$7=\"Fotovoltaica\",'Matriz Gravedad Probabilidad FV'!H30,IF('Análisis detallado'!$D$7=\"Eólica\",'Matriz Gravedad Probabilidad EO'!H30,IF('Análisis detallado'!$D$7=\"Mini-Hidro\",\"\")))","v":false},{"$f":"IF('Paso 3 Mitigantes'!G34=\"\",0,'Paso 3 Mitigantes'!G34)","v":0},0,0]
[null,null,"R3.2","3. Manejo de Residuos / 4. Salud",{"$f":"IF('Paso 2 Identificar Riesgos'!G35=\"Aplica\",'Paso 2 Identificar Riesgos'!F35,\"\")","v":""},{"$f":"IF(E35=\"\",\"\",'Matriz Gravedad Probabilidad FV'!F31)","v":""},26,"",{"$f":"IF($D$7=\"Fotovoltaica\",'Matriz Gravedad Probabilidad FV'!G31,IF('Análisis detallado'!$D$7=\"Eólica\",'Matriz Gravedad Probabilidad EO'!G31,IF('Análisis detallado'!$D$7=\"Mini-Hidro\",\"\")))","v":false},{"$f":"IF($D$7=\"Fotovoltaica\",'Matriz Gravedad Probabilidad FV'!H31,IF('Análisis detallado'!$D$7=\"Eólica\",'Matriz Gravedad Probabilidad EO'!H31,IF('Análisis detallado'!$D$7=\"Mini-Hidro\",\"\")))","v":false},{"$f":"IF('Paso 3 Mitigantes'!G35=\"\",0,'Paso 3 Mitigantes'!G35)","v":0},0,0]
[null,null,null,null,{"$f":"IF('Paso 2 Identificar Riesgos'!G36=\"Aplica\",'Paso 2 Identificar Riesgos'!F36,\"\")","v":""},{"$f":"IF(E36=\"\",\"\",'Matriz Gravedad Probabilidad FV'!F32)","v":""},27,"",{"$f":"IF($D$7=\"Fotovoltaica\",'Matriz Gravedad Probabilidad FV'!G32,IF('Análisis detallado'!$D$7=\"Eólica\",'Matriz Gravedad Probabilidad EO'!G32,IF('Análisis detallado'!$D$7=\"Mini-Hidro\",\"\")))","v":false},{"$f":"IF($D$7=\"Fotovoltaica\",'Matriz Gravedad Probabilidad FV'!H32,IF('Análisis detallado'!$D$7=\"Eólica\",'Matriz Gravedad Probabilidad EO'!H32,IF('Análisis detallado'!$D$7=\"Mini-Hidro\",\"\")))","v":false},{"$f":"IF('Paso 3 Mitigantes'!G36=\"\",0,'Paso 3 Mitigantes'!G36)","v":0},0,0]
[null,null,null,null,{"$f":"IF('Paso 2 Identificar Riesgos'!G37=\"Aplica\",'Paso 2 Identificar Riesgos'!F37,\"\")","v":""},{"$f":"IF(E37=\"\",\"\",'Matriz Gravedad Probabilidad FV'!F33)","v":""},28,"",{"$f":"IF($D$7=\"Fotovoltaica\",'Matriz Gravedad Probabilidad FV'!G33,IF('Análisis detallado'!$D$7=\"Eólica\",'Matriz Gravedad Probabilidad EO'!G33,IF('Análisis detallado'!$D$7=\"Mini-Hidro\",\"\")))","v":false},{"$f":"IF($D$7=\"Fotovoltaica\",'Matriz Gravedad Probabilidad FV'!H33,IF('Análisis detallado'!$D$7=\"Eólica\",'Matriz Gravedad Probabilidad EO'!H33,IF('Análisis detallado'!$D$7=\"Mini-Hidro\",\"\")))","v":false},{"$f":"IF('Paso 3 Mitigantes'!G37=\"\",0,'Paso 3 Mitigantes'!G37)","v":0},0,0]
[null,null,null,null,{"$f":"IF('Paso 2 Identificar Riesgos'!G38=\"Aplica\",'Paso 2 Identificar Riesgos'!F38,\"\")","v":""},{"$f":"IF(E38=\"\",\"\",'Matriz Gravedad Probabilidad FV'!F34)","v":""},29,"",{"$f":"IF($D$7=\"Fotovoltaica\",'Matriz Gravedad Probabilidad FV'!G34,IF('Análisis detallado'!$D$7=\"Eólica\",'Matriz Gravedad Probabilidad EO'!G34,IF('Análisis detallado'!$D$7=\"Mini-Hidro\",\"\")))","v":false},{"$f":"IF($D$7=\"Fotovoltaica\",'Matriz Gravedad Probabilidad FV'!H34,IF('Análisis detallado'!$D$7=\"Eólica\",'Matriz Gravedad Probabilidad EO'!H34,IF('Análisis detallado'!$D$7=\"Mini-Hidro\",\"\")))","v":false},{"$f":"IF('Paso 3 Mitigantes'!G38=\"\",0,'Paso 3 Mitigantes'!G38)","v":0},0,0]
[null,"Dimensión Sociocultural","R4.1","1. Población Indígena",{"$f":"IF('Paso 2 Identificar Riesgos'!G39=\"Aplica\",'Paso 2 Identificar Riesgos'!F39,\"\")","v":""},{"$f":"IF(E39=\"\",\"\",'Matriz Gravedad Probabilidad FV'!F35)","v":""},30,"",{"$f":"IF($D$7=\"Fotovoltaica\",'Matriz Gravedad Probabilidad FV'!G35,IF('Análisis detallado'!$D$7=\"Eólica\",'Matriz Gravedad Probabilidad EO'!G35,IF('Análisis detallado'!$D$7=\"Mini-Hidro\",\"\")))","v":false},{"$f":"IF($D$7=\"Fotovoltaica\",'Matriz Gravedad Probabilidad FV'!H35,IF('Análisis detallado'!$D$7=\"Eólica\",'Matriz Gravedad Probabilidad EO'!H35,IF('Análisis detallado'!$D$7=\"Mini-Hidro\",\"\")))","v":false},{"$f":"IF('Paso 3 Mitigantes'!G39=\"\",0,'Paso 3 Mitigantes'!G39)","v":0},0,0]
[null,null,null,null,{"$f":"IF('Paso 2 Identificar Riesgos'!G40=\"Aplica\",'Paso 2 Identificar Riesgos'!F40,\"\")","v":""},{"$f":"IF(E40=\"\",\"\",'Matriz Gravedad Probabilidad FV'!F36)","v":""},31,"",{"$f":"IF($D$7=\"Fotovoltaica\",'Matriz Gravedad Probabilidad FV'!G36,IF('Análisis detallado'!$D$7=\"Eólica\",'Matriz Gravedad Probabilidad EO'!G36,IF('Análisis detallado'!$D$7=\"Mini-Hidro\",\"\")))","v":false},{"$f":"IF($D$7=\"Fotovoltaica\",'Matriz Gravedad Probabilidad FV'!H36,IF('Análisis detallado'!$D$7=\"Eólica\",'Matriz Gravedad Probabilidad EO'!H36,IF('Análisis detallado'!$D$7=\"Mini-Hidro\",\"\")))","v":false},{"$f":"IF('Paso 3 Mitigantes'!G40=\"\",0,'Paso 3 Mitigantes'!G40)","v":0},0,0]
[null,null,null,null,{"$f":"IF('Paso 2 Identificar Riesgos'!G41=\"Aplica\",'Paso 2 Identificar Riesgos'!F41,\"\")","v":""},{"$f":"IF(E41=\"\",\"\",'Matriz Gravedad Probabilidad FV'!F37)","v":""},32,"",{"$f":"IF($D$7=\"Fotovoltaica\",'Matriz Gravedad Probabilidad FV'!G37,IF('Análisis detallado'!$D$7=\"Eólica\",'Matriz Gravedad Probabilidad EO'!G37,IF('Análisis detallado'!$D$7=\"Mini-Hidro\",\"\")))","v":false},{"$f":"IF($D$7=\"Fotovoltaica\",'Matriz Gravedad Probabilidad FV'!H37,IF('Análisis detallado'!$D$7=\"Eólica\",'Matriz Gravedad Probabilidad EO'!H37,IF('Análisis detallado'!$D$7=\"Mini-Hidro\",\"\")))","v":false},{"$f":"IF('Paso 3 Mitigantes'!G41=\"\",0,'Paso 3 Mitigantes'!G41)","v":0},0,0]
[null,null,null,null,{"$f":"IF('Paso 2 Identificar Riesgos'!G42=\"Aplica\",'Paso 2 Identificar Riesgos'!F42,\"\")","v":""},{"$f":"IF(E42=\"\",\"\",'Matriz Gravedad Probabilidad FV'!F38)","v":""},33,"",{"$f":"IF($D$7=\"Fotovoltaica\",'Matriz Gravedad Probabilidad FV'!G38,IF('Análisis detallado'!$D$7=\"Eólica\",'Matriz Gravedad Probabilidad EO'!G38,IF('Análisis detallado'!$D$7=\"Mini-Hidro\",\"\")))","v":false},{"$f":"IF($D$7=\"Fotovoltaica\",'Matriz Gravedad Probabilidad FV'!H38,IF('Análisis detallado'!$D$7=\"Eólica\",'Matriz Gravedad Probabilidad EO'!H38,IF('Análisis detallado'!$D$7=\"Mini-Hidro\",\"\")))","v":false},{"$f":"IF('Paso 3 Mitigantes'!G42=\"\",0,'Paso 3 Mitigantes'!G42)","v":0},0,0]
[null,null,"R4.2","2. Patrimonio cultural material / 3. Patrimonio Cultural Arqueológico / 4. Producción y reproducción del patrimonio cultural",{"$f":"IF('Paso 2 Identificar Riesgos'!G43=\"Aplica\",'Paso 2 Identificar Riesgos'!F43,\"\")","v":""},{"$f":"IF(E43=\"\",\"\",'Matriz Gravedad Probabilidad FV'!F39)","v":""},34,"",{"$f":"IF($D$7=\"Fotovoltaica\",'Matriz Gravedad Probabilidad FV'!G39,IF('Análisis detallado'!$D$7=\"Eólica\",'Matriz Gravedad Probabilidad EO'!G39,IF('Análisis detallado'!$D$7=\"Mini-Hidro\",\"\")))","v":false},{"$f":"IF($D$7=\"Fotovoltaica\",'Matriz Gravedad Probabilidad FV'!H39,IF('Análisis detallado'!$D$7=\"Eólica\",'Matriz Gravedad Probabilidad EO'!H39,IF('Análisis detallado'!$D$7=\"Mini-Hidro\",\"\")))","v":false},{"$f":"IF('Paso 3 Mitigantes'!G43=\"\",0,'Paso 3 Mitigantes'!G43)","v":0},0,0]
[null,null,null,null,{"$f":"IF('Paso 2 Identificar Riesgos'!G44=\"Aplica\",'Paso 2 Identificar Riesgos'!F44,\"\")","v":""},{"$f":"IF(E44=\"\",\"\",'Matriz Gravedad Probabilidad FV'!F40)","v":""},35,"",{"$f":"IF($D$7=\"Fotovoltaica\",'Matriz Gravedad Probabilidad FV'!G40,IF('Análisis detallado'!$D$7=\"Eólica\",'Matriz Gravedad Probabilidad EO'!G40,IF('Análisis detallado'!$D$7=\"Mini-Hidro\",\"\")))","v":false},{"$f":"IF($D$7=\"Fotovoltaica\",'Matriz Gravedad Probabilidad FV'!H40,IF('Análisis detallado'!$D$7=\"Eólica\",'Matriz Gravedad Probabilidad EO'!H40,IF('Análisis detallado'!$D$7=\"Mini-Hidro\",\"\")))","v":false},{"$f":"IF('Paso 3 Mitigantes'!G44=\"\",0,'Paso 3 Mitigantes'!G44)","v":0},0,0]
[null,null,null,null,{"$f":"IF('Paso 2 Identificar Riesgos'!G45=\"Aplica\",'Paso 2 Identificar Riesgos'!F45,\"\")","v":""},{"$f":"IF(E45=\"\",\"\",'Matriz Gravedad Probabilidad FV'!F41)","v":""},36,"",{"$f":"IF($D$7=\"Fotovoltaica\",'Matriz Gravedad Probabilidad FV'!G41,IF('Análisis detallado'!$D$7=\"Eólica\",'Matriz Gravedad Probabilidad EO'!G41,IF('Análisis detallado'!$D$7=\"Mini-Hidro\",\"\")))","v":false},{"$f":"IF($D$7=\"Fotovoltaica\",'Matriz Gravedad Probabilidad FV'!H41,IF('Análisis detallado'!$D$7=\"Eólica\",'Matriz Gravedad Probabilidad EO'!H41,IF('Análisis detallado'!$D$7=\"Mini-Hidro\",\"\")))","v":false},{"$f":"IF('Paso 3 Mitigantes'!G45=\"\",0,'Paso 3 Mitigantes'!G45)","v":0},0,0]
[null,null,null,null,{"$f":"IF('Paso 2 Identificar Riesgos'!G46=\"Aplica\",'Paso 2 Identificar Riesgos'!F46,\"\")","v":""},{"$f":"IF(E46=\"\",\"\",'Matriz Gravedad Probabilidad FV'!F42)","v":""},37,"",{"$f":"IF($D$7=\"Fotovoltaica\",'Matriz Gravedad Probabilidad FV'!G42,IF('Análisis detallado'!$D$7=\"Eólica\",'Matriz Gravedad Probabilidad EO'!G42,IF('Análisis detallado'!$D$7=\"Mini-Hidro\",\"\")))","v":false},{"$f":"IF($D$7=\"Fotovoltaica\",'Matriz Gravedad Probabilidad FV'!H42,IF('Análisis detallado'!$D$7=\"Eólica\",'Matriz Gravedad Probabilidad EO'!H42,IF('Análisis detallado'!$D$7=\"Mini-Hidro\",\"\")))","v":false},{"$f":"IF('Paso 3 Mitigantes'!G46=\"\",0,'Paso 3 Mitigantes'!G46)","v":0},0,0]
[]
[]
[null,null,null,null,null,null,null,null,null,null,null,{"$f":"SUM(L10:L46)","v":0},{"$f":"SUM(M10:M46)","v":0}]
[]
[]
[]
[null,null,null,null,null,null,null,null,null,null,null,{"$f":"M49/L49","v":{"$error":"#DIV/0!"}}]

{"sheet":"Retroalimentación Individual","index":6,"n_rows":52,"n_cols":10,"rows_kept":52,"cut":false,"hidden":false,"merged":[[15,1,28,1],[15,2,16,2],[15,3,16,3],[15,4,16,4],[17,2,20,2],[17,3,20,3],[17,4,20,4],[21,2,23,2],[21,3,23,3],[21,4,23,4],[24,2,26,2],[24,3,26,3],[24,4,26,4],[27,2,28,2],[27,3,28,3],[27,4,28,4],[29,1,36,1],[29,2,32,2],[29,3,32,3],[29,4,32,4],[33,2,36,2],[33,3,36,3],[33,4,36,4],[37,1,43,1],[37,2,39,2],[37,3,39,3],[37,4,39,4],[40,2,43,2],[40,3,43,3],[40,4,43,4],[44,1,51,1],[44,2,47,2],[44,3,47,3],[44,4,47,4],[48,2,51,2],[48,3,51,3],[48,4,51,4],[4,1,4,4],[5,2,5,4],[6,2,6,4],[7,2,7,4],[8,2,8,4],[13,9,14,12],[11,2,11,4],[5,9,5,12],[8,9,8,12],[11,9,11,12],[9,2,9,4],[10,2,10,4]]}
[]
[null,"Formato para agregar un proyecto individual a la base de datos"]
[]
[]
[null,"Perfil del proyecto",null,null,null,null,null,null,null,"Paso 1: Perfil de Proyecto"]
[null,"Nombre","La noria 2",null,null,null,null,null,null,"Llenar la información general del proyecto"]
[null,"Desarrollador","Acciona"]
[null,"Estado","Durango",null,null,null,null,null,null,"Paso 2: Llenar Matriz de Gravedad"]
[null,"Municipio","Durango",null,null,null,null,null,null,"Llenar la información general del proyecto"]
[null,"Clave de Ficha UGAS","02-504"]
[null,"Tecnología","Fotovoltaica",null,null,null,null,null,null,"Paso 3: Dar Click en botón de \"Agregar\""]
[null,"Fecha de inicio de operación esperada",9684,null,null,null,null,null,null,"Llenar la información general del proyecto"]
[]
[null,null,null,null,null,null,null,null,null,"Dar Click en botón de \"Limpiar Base\" para resetear la información en esta pestaña"]
[null,"Dimensión","ID","Impacto Genérico","Relación Impacto - Riesgo","Riesgo Genérico Asociado","Gravedad"]
[null,"Dimensión Socioeconómica","R1.1","1. Producción de bienes y servicios en lugares específicos","Riesgos derivados de la modificación del área","C1 Retraso","No ocurrió"]
[null,null,null,null,null,"C2 Conflicto","No ocurrió"]
[null,null,"R1.2","2. Derrama económica por el usufructo y contraprestación de espacios. ","Riesgos derivados de renta o compra-venta del área dónde se desarrollará el proyecto","C1 Retraso","No ocurrió"]
[null,null,null,null,null,"C2 Conflicto","No ocurrió"]
[null,null,null,null,null,"C3 Sanciones","No ocurrió"]
[null,null,null,null,null,"C4 Cancelación","No ocurrió"]
[null,null,"R1.3","3. Seguridad","Riesgos derivados de las condiciones de seguridad del personal involucrado en el proyecto y la población cercana","C1 Retraso","No ocurrió"]
[null,null,null,null,null,"C2 Conflicto","No ocurrió"]
[null,null,null,null,null,"C3 Sanciones","No ocurrió"]
[null,null,"R1.4","4. Entorno laboral","Riesgos derivados de las condiciones Laborales del personal involucrado en el proyecto","C1 Retraso","No ocurrió"]
[null,null,null,null,null,"C2 Conflicto","No ocurrió"]
[null,null,null,null,null,"C3 Sanciones","No ocurrió"]
[null,null,"R1.5","5. Inversión Social","Riesgos derivados de la negación de inversión social en la población con la que interactúa.","C1 Retraso","No ocurrió"]
[null,null,null,null,null,"C2 Conflicto","No ocurrió"]
[null,"Dimensión Sociopolítica","R2.1","1. Mecanismos de Participación / 2. Representatividad / 3. Uso del territorio y libertad para decidir sobre él. ","Riesgo derivado de los procedimientos que permiten a los individuos de una sociedad  involucrase en las decisiones relacionadas con el desarrollo del proyecto.","C1 Retraso","No ocurrió"]
[null,null,null,null,null,"C2 Conflicto","No ocurrió"]
[null,null,null,null,null,"C3 Sanciones","No ocurrió"]
[null,null,null,null,null,"C4 Cancelación","No ocurrió"]
[null,null,"R2.2","4. Formas de organización: Ejidos, comunidades agrarias, pueblos y comunidades indígenas y personas como propietarias del territorio. ","Riesgo derivado de ignorar las formas de organización\nlocal de: ejidos, comunidades agrarias, pueblos y comunidades indígenas.","C1 Retraso","No ocurrió"]
[null,null,null,null,null,"C2 Conflicto","No ocurrió"]
[null,null,null,null,null,"C3 Sanciones","No ocurrió"]
[null,null,null,null,null,"C4 Cancelación","No ocurrió"]
[null,"Dimensión Socioambiental","R3.1","1. Uso y aprovechamiento de los recursos naturales / 2. Regulación de los recursos naturales","Riesgo derivado del manejo sustentable y eficiente de\nlos recursos existentes.","C1 Retraso","No ocurrió"]
[null,null,null,null,null,"C2 Conflicto","No ocurrió"]
[null,null,null,null,null,"C3 Sanciones","No ocurrió"]
[null,null,"R3.2","3. Manejo de Residuos / 4. Salud","Riesgo derivado de problemas de salud por incorrecto manejo de residuos.","C1 Retraso","No ocurrió"]
[null,null,null,null,null,"C2 Conflicto","No ocurrió"]
[null,null,null,null,null,"C3 Sanciones","No ocurrió"]
[null,null,null,null,null,"C4 Cancelación","No ocurrió"]
[null,"Dimensión Sociocultural","R4.1","1. Población Indígena","Riesgo por no realizar correctamente una consulta indígena.","C1 Retraso","No ocurrió"]
[null,null,null,null,null,"C2 Conflicto","No ocurrió"]
[null,null,null,null,null,"C3 Sanciones","No ocurrió"]
[null,null,null,null,null,"C4 Cancelación","No ocurrió"]
[null,null,"R4.2","2. Patrimonio cultural material / 3. Patrimonio Cultural Arqueológico / 4. Producción y reproducción del patrimonio cultural","Riesgo derivado de no identificar ni implementar mecanismos de resguardo y conservación al patrimonio cultural que tiene contacto con el proyecto. ","C1 Retraso","No ocurrió"]
[null,null,null,null,null,"C2 Conflicto","No ocurrió"]
[null,null,null,null,null,"C3 Sanciones","No ocurrió"]
[null,null,null,null,null,"C4 Cancelación","No ocurrió"]

{"sheet":"Retroalimentación Múltiple","index":7,"n_rows":52,"n_cols":11,"rows_kept":52,"cut":false,"hidden":false,"merged":[[9,2,9,4],[4,1,4,4],[5,2,5,4],[6,2,6,4],[7,2,7,4],[8,2,8,4],[15,1,28,1],[15,2,16,2],[15,3,16,3],[15,4,16,4],[17,2,20,2],[17,3,20,3],[17,4,20,4],[21,2,23,2],[27,2,28,2],[27,3,28,3],[27,4,28,4],[10,2,10,4],[11,2,11,4],[21,3,23,3],[21,4,23,4],[24,2,26,2],[24,3,26,3],[24,4,26,4],[40,3,43,3],[40,4,43,4],[29,1,36,1],[29,2,32,2],[29,3,32,3],[29,4,32,4],[33,2,36,2],[33,3,36,3],[33,4,36,4],[5,10,5,13],[8,10,8,13],[11,10,11,13],[13,10,14,13],[44,1,51,1],[44,2,47,2],[44,3,47,3],[44,4,47,4],[48,2,51,2],[48,3,51,3],[48,4,51,4],[37,1,43,1],[37,2,39,2],[37,3,39,3],[37,4,39,4],[40,2,43,2]]}
[]
[null,"Formato para agregar un proyecto a la base de datos"]
[]
[]
[null,"Perfil del proyecto",null,null,null,null,null,null,null,null,"Paso 1: Perfil de Proyecto"]
[null,"Número de proyectos",null,null,null,null,null,null,null,null,"Llenar la información general del proyecto"]
[null,"Desarrollador"]
[null,"Estado",null,null,null,null,null,null,null,null,"Paso 2: Llenar Matriz de Gravedad y Frecuencia"]
[null,"Municipio",null,null,null,null,null,null,null,null,"Llenar la información general del proyecto"]
[null,"Clave de Ficha UGAS"]
[null,"Tecnología",null,null,null,null,null,null,null,null,"Paso 3: Dar Click en botón de \"Agregar\""]
[null,"Fecha de inicio de operación esperada",null,null,null,null,null,null,null,null,"Llenar la información general del proyecto"]
[]
[null,null,null,null,null,null,null,null,null,null,"Dar Click en botón de \"Limpiar Base\" para resetear la información en esta pestaña"]
[null,"Dimensión","ID","Impacto Genérico","Relación Impacto - Riesgo","Riesgo Genérico Asociado","Gravedad","Frecuencia"]
[null,"Dimensión Socioeconómica","R1.1","1. Producción de bienes y servicios en lugares específicos","Riesgos derivados de la modificación del área","C1 Retraso"]
[null,null,null,null,null,"C2 Conflicto"]
[null,null,"R1.2","2. Derrama económica por el usufructo y contraprestación de espacios. ","Riesgos derivados de renta o compra-venta del área dónde se desarrollará el proyecto","C1 Retraso"]
[null,null,null,null,null,"C2 Conflicto"]
[null,null,null,null,null,"C3 Sanciones"]
[null,null,null,null,null,"C4 Cancelación"]
[null,null,"R1.3","3. Seguridad","Riesgos derivados de las condiciones de seguridad del personal involucrado en el proyecto y la población cercana","C1 Retraso"]
[null,null,null,null,null,"C2 Conflicto"]
[null,null,null,null,null,"C3 Sanciones"]
[null,null,"R1.4","4. Entorno laboral","Riesgos derivados de las condiciones Laborales del personal involucrado en el proyecto","C1 Retraso"]
[null,null,null,null,null,"C2 Conflicto"]
[null,null,null,null,null,"C3 Sanciones"]
[null,null,"R1.5","5. Inversión Social","Riesgos derivados de la negación de inversión social en la población con la que interactúa.","C1 Retraso"]
[null,null,null,null,null,"C2 Conflicto"]
[null,"Dimensión Sociopolítica","R2.1","1. Mecanismos de Participación / 2. Representatividad / 3. Uso del territorio y libertad para decidir sobre él. ","Riesgo derivado de los procedimientos que permiten a los individuos de una sociedad  involucrase en las decisiones relacionadas con el desarrollo del proyecto.","C1 Retraso"]
[null,null,null,null,null,"C2 Conflicto"]
[null,null,null,null,null,"C3 Sanciones"]
[null,null,null,null,null,"C4 Cancelación"]
[null,null,"R2.2","4. Formas de organización: Ejidos, comunidades agrarias, pueblos y comunidades indígenas y personas como propietarias del territorio. ","Riesgo derivado de ignorar las formas de organización\nlocal de: ejidos, comunidades agrarias, pueblos y comunidades indígenas.","C1 Retraso"]
[null,null,null,null,null,"C2 Conflicto"]
[null,null,null,null,null,"C3 Sanciones"]
[null,null,null,null,null,"C4 Cancelación"]
[null,"Dimensión Socioambiental","R3.1","1. Uso y aprovechamiento de los recursos naturales / 2. Regulación de los recursos naturales","Riesgo derivado del manejo sustentable y eficiente de\nlos recursos existentes.","C1 Retraso"]
[null,null,null,null,null,"C2 Conflicto"]
[null,null,null,null,null,"C3 Sanciones"]
[null,null,"R3.2","3. Manejo de Residuos / 4. Salud","Riesgo derivado de problemas de salud por incorrecto manejo de residuos.","C1 Retraso"]
[null,null,null,null,null,"C2 Conflicto"]
[null,null,null,null,null,"C3 Sanciones"]
[null,null,null,null,null,"C4 Cancelación"]
[null,"Dimensión Sociocultural","R4.1","1. Población Indígena","Riesgo por no realizar correctamente una consulta indígena.","C1 Retraso"]
[null,null,null,null,null,"C2 Conflicto"]
[null,null,null,null,null,"C3 Sanciones"]
[null,null,null,null,null,"C4 Cancelación"]
[null,null,"R4.2","2. Patrimonio cultural material / 3. Patrimonio Cultural Arqueológico / 4. Producción y reproducción del patrimonio cultural","Riesgo derivado de no identificar ni implementar mecanismos de resguardo y conservación al patrimonio cultural que tiene contacto con el proyecto. ","C1 Retraso"]
[null,null,null,null,null,"C2 Conflicto"]
[null,null,null,null,null,"C3 Sanciones"]
[null,null,null,null,null,"C4 Cancelación"]

{"sheet":"Matriz Gravedad Probabilidad EO","index":8,"n_rows":43,"n_cols":9,"rows_kept":43,"cut":false,"hidden":false,"merged":[[27,1,33,1],[27,2,29,2],[27,3,29,3],[30,2,33,2],[30,3,33,3],[34,1,41,1],[34,2,37,2],[34,3,37,3],[38,2,41,2],[38,3,41,3],[17,3,18,3],[19,1,26,1],[19,2,22,2],[19,3,22,3],[23,2,26,2],[23,3,26,3],[5,1,18,1],[5,2,6,2],[5,3,6,3],[7,2,10,2],[7,3,10,3],[11,2,13,2],[11,3,13,3],[14,2,16,2],[14,3,16,3],[17,2,18,2]]}
[]
[null,"Matriz de Gravedad y Probabilidad"]
[]
[null,null,null,null,null,null,0.5,0.5]
[null,"Dimensión","ID","Impacto Genérico","Riesgo Genérico Asociado",null,"Gravedad","Frecuencia","Ponderado Factores"]
[null,"Dimensión Socioeconómica","R1.1","1. Producción de bienes y servicios en lugares específicos","C1 Retraso","R1.1 C1",{"$f":"AVERAGE('Cuestionario Eólica'!G11,'Cuestionario Eólica'!J11,'Cuestionario Eólica'!M11,'Cuestionario Eólica'!P11,'Cuestionario Eólica'!S11,'Cuestionario Eólica'!V11,'Cuestionario Eólica'!Y11,'Cuestionario Eólica'!AB11,'Cuestionario Eólica'!AE11,'Cuestionario Eólica'!AH11)","v":7.75},{"$f":"AVERAGE('Cuestionario Eólica'!H11,'Cuestionario Eólica'!K11,'Cuestionario Eólica'!N11,'Cuestionario Eólica'!Q11,'Cuestionario Eólica'!T11,'Cuestionario Eólica'!W11,'Cuestionario Eólica'!Z11,'Cuestionario Eólica'!AC11,'Cuestionario Eólica'!AF11,'Cuestionario Eólica'!AI11)","v":4.25},{"$f":"G6*H6","v":32.9375}]
[null,null,null,null,"C2 Conflicto","R1.1 C2",{"$f":"AVERAGE('Cuestionario Eólica'!G12,'Cuestionario Eólica'!J12,'Cuestionario Eólica'!M12,'Cuestionario Eólica'!P12,'Cuestionario Eólica'!S12,'Cuestionario Eólica'!V12,'Cuestionario Eólica'!Y12,'Cuestionario Eólica'!AB12,'Cuestionario Eólica'!AE12,'Cuestionario Eólica'!AH12)","v":4.7142857142857144},{"$f":"AVERAGE('Cuestionario Eólica'!H12,'Cuestionario Eólica'!K12,'Cuestionario Eólica'!N12,'Cuestionario Eólica'!Q12,'Cuestionario Eólica'!T12,'Cuestionario Eólica'!W12,'Cuestionario Eólica'!Z12,'Cuestionario Eólica'!AC12,'Cuestionario Eólica'!AF12,'Cuestionario Eólica'!AI12)","v":4.8571428571428568},{"$f":"G7*H7","v":22.897959183673468}]
[null,null,"R1.2","2. Derrama económica por el usufructo y contraprestación de espacios o prestación de servicios. ","C1 Retraso","R1.2 C1",{"$f":"AVERAGE('Cuestionario Eólica'!G13,'Cuestionario Eólica'!J13,'Cuestionario Eólica'!M13,'Cuestionario Eólica'!P13,'Cuestionario Eólica'!S13,'Cuestionario Eólica'!V13,'Cuestionario Eólica'!Y13,'Cuestionario Eólica'!AB13,'Cuestionario Eólica'!AE13,'Cuestionario Eólica'!AH13)","v":7.25},{"$f":"AVERAGE('Cuestionario Eólica'!H13,'Cuestionario Eólica'!K13,'Cuestionario Eólica'!N13,'Cuestionario Eólica'!Q13,'Cuestionario Eólica'!T13,'Cuestionario Eólica'!W13,'Cuestionario Eólica'!Z13,'Cuestionario Eólica'!AC13,'Cuestionario Eólica'!AF13,'Cuestionario Eólica'!AI13)","v":5.125},37.15625]
[null,null,null,null,"C2 Conflicto","R1.2 C2",{"$f":"AVERAGE('Cuestionario Eólica'!G14,'Cuestionario Eólica'!J14,'Cuestionario Eólica'!M14,'Cuestionario Eólica'!P14,'Cuestionario Eólica'!S14,'Cuestionario Eólica'!V14,'Cuestionario Eólica'!Y14,'Cuestionario Eólica'!AB14,'Cuestionario Eólica'!AE14,'Cuestionario Eólica'!AH14)","v":5.375},{"$f":"AVERAGE('Cuestionario Eólica'!H14,'Cuestionario Eólica'!K14,'Cuestionario Eólica'!N14,'Cuestionario Eólica'!Q14,'Cuestionario Eólica'!T14,'Cuestionario Eólica'!W14,'Cuestionario Eólica'!Z14,'Cuestionario Eólica'!AC14,'Cuestionario Eólica'!AF14,'Cuestionario Eólica'!AI14)","v":5.75},30.90625]
[null,null,null,null,"C3 Sanciones","R1.2 C3",{"$f":"AVERAGE('Cuestionario Eólica'!G15,'Cuestionario Eólica'!J15,'Cuestionario Eólica'!M15,'Cuestionario Eólica'!P15,'Cuestionario Eólica'!S15,'Cuestionario Eólica'!V15,'Cuestionario Eólica'!Y15,'Cuestionario Eólica'!AB15,'Cuestionario Eólica'!AE15,'Cuestionario Eólica'!AH15)","v":5.7142857142857144},{"$f":"AVERAGE('Cuestionario Eólica'!H15,'Cuestionario Eólica'!K15,'Cuestionario Eólica'!N15,'Cuestionario Eólica'!Q15,'Cuestionario Eólica'!T15,'Cuestionario Eólica'!W15,'Cuestionario Eólica'!Z15,'Cuestionario Eólica'!AC15,'Cuestionario Eólica'!AF15,'Cuestionario Eólica'!AI15)","v":2.5714285714285716},14.69387755102041]
[null,null,null,null,"C4 Cancelación","R1.2 C4",{"$f":"AVERAGE('Cuestionario Eólica'!G16,'Cuestionario Eólica'!J16,'Cuestionario Eólica'!M16,'Cuestionario Eólica'!P16,'Cuestionario Eólica'!S16,'Cuestionario Eólica'!V16,'Cuestionario Eólica'!Y16,'Cuestionario Eólica'!AB16,'Cuestionario Eólica'!AE16,'Cuestionario Eólica'!AH16)","v":8.625},{"$f":"AVERAGE('Cuestionario Eólica'!H16,'Cuestionario Eólica'!K16,'Cuestionario Eólica'!N16,'Cuestionario Eólica'!Q16,'Cuestionario Eólica'!T16,'Cuestionario Eólica'!W16,'Cuestionario Eólica'!Z16,'Cuestionario Eólica'!AC16,'Cuestionario Eólica'!AF16,'Cuestionario Eólica'!AI16)","v":2.75},23.71875]
[null,null,"R1.3","3. Seguridad","C1 Retraso","R1.3 C1",{"$f":"AVERAGE('Cuestionario Eólica'!G17,'Cuestionario Eólica'!J17,'Cuestionario Eólica'!M17,'Cuestionario Eólica'!P17,'Cuestionario Eólica'!S17,'Cuestionario Eólica'!V17,'Cuestionario Eólica'!Y17,'Cuestionario Eólica'!AB17,'Cuestionario Eólica'!AE17,'Cuestionario Eólica'!AH17)","v":5.625},{"$f":"AVERAGE('Cuestionario Eólica'!H17,'Cuestionario Eólica'!K17,'Cuestionario Eólica'!N17,'Cuestionario Eólica'!Q17,'Cuestionario Eólica'!T17,'Cuestionario Eólica'!W17,'Cuestionario Eólica'!Z17,'Cuestionario Eólica'!AC17,'Cuestionario Eólica'!AF17,'Cuestionario Eólica'!AI17)","v":2.875},16.171875]
[null,null,null,null,"C2 Conflicto","R1.3 C2",{"$f":"AVERAGE('Cuestionario Eólica'!G18,'Cuestionario Eólica'!J18,'Cuestionario Eólica'!M18,'Cuestionario Eólica'!P18,'Cuestionario Eólica'!S18,'Cuestionario Eólica'!V18,'Cuestionario Eólica'!Y18,'Cuestionario Eólica'!AB18,'Cuestionario Eólica'!AE18,'Cuestionario Eólica'!AH18)","v":6},{"$f":"AVERAGE('Cuestionario Eólica'!H18,'Cuestionario Eólica'!K18,'Cuestionario Eólica'!N18,'Cuestionario Eólica'!Q18,'Cuestionario Eólica'!T18,'Cuestionario Eólica'!W18,'Cuestionario Eólica'!Z18,'Cuestionario Eólica'!AC18,'Cuestionario Eólica'!AF18,'Cuestionario Eólica'!AI18)","v":3.75},22.5]
[null,null,null,null,"C3 Sanciones","R1.3 C3",{"$f":"AVERAGE('Cuestionario Eólica'!G19,'Cuestionario Eólica'!J19,'Cuestionario Eólica'!M19,'Cuestionario Eólica'!P19,'Cuestionario Eólica'!S19,'Cuestionario Eólica'!V19,'Cuestionario Eólica'!Y19,'Cuestionario Eólica'!AB19,'Cuestionario Eólica'!AE19,'Cuestionario Eólica'!AH19)","v":6.2857142857142856},{"$f":"AVERAGE('Cuestionario Eólica'!H19,'Cuestionario Eólica'!K19,'Cuestionario Eólica'!N19,'Cuestionario Eólica'!Q19,'Cuestionario Eólica'!T19,'Cuestionario Eólica'!W19,'Cuestionario Eólica'!Z19,'Cuestionario Eólica'!AC19,'Cuestionario Eólica'!AF19,'Cuestionario Eólica'!AI19)","v":2.8571428571428572},17.959183673469386]
[null,null,"R1.4","4. Entorno laboral","C1 Retraso","R1.4 C1",{"$f":"AVERAGE('Cuestionario Eólica'!G20,'Cuestionario Eólica'!J20,'Cuestionario Eólica'!M20,'Cuestionario Eólica'!P20,'Cuestionario Eólica'!S20,'Cuestionario Eólica'!V20,'Cuestionario Eólica'!Y20,'Cuestionario Eólica'!AB20,'Cuestionario Eólica'!AE20,'Cuestionario Eólica'!AH20)","v":6.875},{"$f":"AVERAGE('Cuestionario Eólica'!H20,'Cuestionario Eólica'!K20,'Cuestionario Eólica'!N20,'Cuestionario Eólica'!Q20,'Cuestionario Eólica'!T20,'Cuestionario Eólica'!W20,'Cuestionario Eólica'!Z20,'Cuestionario Eólica'!AC20,'Cuestionario Eólica'!AF20,'Cuestionario Eólica'!AI20)","v":3.5},24.0625]
[null,null,null,null,"C2 Conflicto","R1.4 C2",{"$f":"AVERAGE('Cuestionario Eólica'!G21,'Cuestionario Eólica'!J21,'Cuestionario Eólica'!M21,'Cuestionario Eólica'!P21,'Cuestionario Eólica'!S21,'Cuestionario Eólica'!V21,'Cuestionario Eólica'!Y21,'Cuestionario Eólica'!AB21,'Cuestionario Eólica'!AE21,'Cuestionario Eólica'!AH21)","v":6},{"$f":"AVERAGE('Cuestionario Eólica'!H21,'Cuestionario Eólica'!K21,'Cuestionario Eólica'!N21,'Cuestionario Eólica'!Q21,'Cuestionario Eólica'!T21,'Cuestionario Eólica'!W21,'Cuestionario Eólica'!Z21,'Cuestionario Eólica'!AC21,'Cuestionario Eólica'!AF21,'Cuestionario Eólica'!AI21)","v":3.25},19.5]
[null,null,null,null,"C3 Sanciones","R1.4 C3",{"$f":"AVERAGE('Cuestionario Eólica'!G22,'Cuestionario Eólica'!J22,'Cuestionario Eólica'!M22,'Cuestionario Eólica'!P22,'Cuestionario Eólica'!S22,'Cuestionario Eólica'!V22,'Cuestionario Eólica'!Y22,'Cuestionario Eólica'!AB22,'Cuestionario Eólica'!AE22,'Cuestionario Eólica'!AH22)","v":6.1428571428571432},{"$f":"AVERAGE('Cuestionario Eólica'!H22,'Cuestionario Eólica'!K22,'Cuestionario Eólica'!N22,'Cuestionario Eólica'!Q22,'Cuestionario Eólica'!T22,'Cuestionario Eólica'!W22,'Cuestionario Eólica'!Z22,'Cuestionario Eólica'!AC22,'Cuestionario Eólica'!AF22,'Cuestionario Eólica'!AI22)","v":2.4285714285714284},14.918367346938775]
[null,null,"R1.5","5. Inversión Social","C1 Retraso","R1.4 C1",{"$f":"AVERAGE('Cuestionario Eólica'!G23,'Cuestionario Eólica'!J23,'Cuestionario Eólica'!M23,'Cuestionario Eólica'!P23,'Cuestionario Eólica'!S23,'Cuestionario Eólica'!V23,'Cuestionario Eólica'!Y23,'Cuestionario Eólica'!AB23,'Cuestionario Eólica'!AE23,'Cuestionario Eólica'!AH23)","v":5.125},{"$f":"AVERAGE('Cuestionario Eólica'!H23,'Cuestionario Eólica'!K23,'Cuestionario Eólica'!N23,'Cuestionario Eólica'!Q23,'Cuestionario Eólica'!T23,'Cuestionario Eólica'!W23,'Cuestionario Eólica'!Z23,'Cuestionario Eólica'!AC23,'Cuestionario Eólica'!AF23,'Cuestionario Eólica'!AI23)","v":3.625},18.578125]
[null,null,null,null,"C2 Conflicto","R1.4 C2",{"$f":"AVERAGE('Cuestionario Eólica'!G24,'Cuestionario Eólica'!J24,'Cuestionario Eólica'!M24,'Cuestionario Eólica'!P24,'Cuestionario Eólica'!S24,'Cuestionario Eólica'!V24,'Cuestionario Eólica'!Y24,'Cuestionario Eólica'!AB24,'Cuestionario Eólica'!AE24,'Cuestionario Eólica'!AH24)","v":4.75},{"$f":"AVERAGE('Cuestionario Eólica'!H24,'Cuestionario Eólica'!K24,'Cuestionario Eólica'!N24,'Cuestionario Eólica'!Q24,'Cuestionario Eólica'!T24,'Cuestionario Eólica'!W24,'Cuestionario Eólica'!Z24,'Cuestionario Eólica'!AC24,'Cuestionario Eólica'!AF24,'Cuestionario Eólica'!AI24)","v":3.625},17.21875]
[null,"Dimensión Sociopolítica","R2.1","1. Mecanismos de Participación / 2. Representatividad / 3. Uso del territorio y libertad para decidir sobre él. ","C1 Retraso","R2.1 C1",{"$f":"AVERAGE('Cuestionario Eólica'!G25,'Cuestionario Eólica'!J25,'Cuestionario Eólica'!M25,'Cuestionario Eólica'!P25,'Cuestionario Eólica'!S25,'Cuestionario Eólica'!V25,'Cuestionario Eólica'!Y25,'Cuestionario Eólica'!AB25,'Cuestionario Eólica'!AE25,'Cuestionario Eólica'!AH25)","v":5.875},{"$f":"AVERAGE('Cuestionario Eólica'!H25,'Cuestionario Eólica'!K25,'Cuestionario Eólica'!N25,'Cuestionario Eólica'!Q25,'Cuestionario Eólica'!T25,'Cuestionario Eólica'!W25,'Cuestionario Eólica'!Z25,'Cuestionario Eólica'!AC25,'Cuestionario Eólica'!AF25,'Cuestionario Eólica'!AI25)","v":4.5},26.4375]
[null,null,null,null,"C2 Conflicto","R2.1 C2",{"$f":"AVERAGE('Cuestionario Eólica'!G26,'Cuestionario Eólica'!J26,'Cuestionario Eólica'!M26,'Cuestionario Eólica'!P26,'Cuestionario Eólica'!S26,'Cuestionario Eólica'!V26,'Cuestionario Eólica'!Y26,'Cuestionario Eólica'!AB26,'Cuestionario Eólica'!AE26,'Cuestionario Eólica'!AH26)","v":4.5},{"$f":"AVERAGE('Cuestionario Eólica'!H26,'Cuestionario Eólica'!K26,'Cuestionario Eólica'!N26,'Cuestionario Eólica'!Q26,'Cuestionario Eólica'!T26,'Cuestionario Eólica'!W26,'Cuestionario Eólica'!Z26,'Cuestionario Eólica'!AC26,'Cuestionario Eólica'!AF26,'Cuestionario Eólica'!AI26)","v":4},18]
[null,null,null,null,"C3 Sanciones","R2.1 C3",{"$f":"AVERAGE('Cuestionario Eólica'!G27,'Cuestionario Eólica'!J27,'Cuestionario Eólica'!M27,'Cuestionario Eólica'!P27,'Cuestionario Eólica'!S27,'Cuestionario Eólica'!V27,'Cuestionario Eólica'!Y27,'Cuestionario Eólica'!AB27,'Cuestionario Eólica'!AE27,'Cuestionario Eólica'!AH27)","v":5},{"$f":"AVERAGE('Cuestionario Eólica'!H27,'Cuestionario Eólica'!K27,'Cuestionario Eólica'!N27,'Cuestionario Eólica'!Q27,'Cuestionario Eólica'!T27,'Cuestionario Eólica'!W27,'Cuestionario Eólica'!Z27,'Cuestionario Eólica'!AC27,'Cuestionario Eólica'!AF27,'Cuestionario Eólica'!AI27)","v":2.5714285714285716},12.857142857142858]
[null,null,null,null,"C4 Cancelación","R2.1 C4",{"$f":"AVERAGE('Cuestionario Eólica'!G28,'Cuestionario Eólica'!J28,'Cuestionario Eólica'!M28,'Cuestionario Eólica'!P28,'Cuestionario Eólica'!S28,'Cuestionario Eólica'!V28,'Cuestionario Eólica'!Y28,'Cuestionario Eólica'!AB28,'Cuestionario Eólica'!AE28,'Cuestionario Eólica'!AH28)","v":7.75},{"$f":"AVERAGE('Cuestionario Eólica'!H28,'Cuestionario Eólica'!K28,'Cuestionario Eólica'!N28,'Cuestionario Eólica'!Q28,'Cuestionario Eólica'!T28,'Cuestionario Eólica'!W28,'Cuestionario Eólica'!Z28,'Cuestionario Eólica'!AC28,'Cuestionario Eólica'!AF28,'Cuestionario Eólica'!AI28)","v":2.5},19.375]
[null,null,"R2.2","4. Formas de organización: Ejidos, comunidades agrarias, pueblos y comunidades indígenas y personas como propietarias del territorio. ","C1 Retraso","R2.2 C1",{"$f":"AVERAGE('Cuestionario Eólica'!G29,'Cuestionario Eólica'!J29,'Cuestionario Eólica'!M29,'Cuestionario Eólica'!P29,'Cuestionario Eólica'!S29,'Cuestionario Eólica'!V29,'Cuestionario Eólica'!Y29,'Cuestionario Eólica'!AB29,'Cuestionario Eólica'!AE29,'Cuestionario Eólica'!AH29)","v":6.75},{"$f":"AVERAGE('Cuestionario Eólica'!H29,'Cuestionario Eólica'!K29,'Cuestionario Eólica'!N29,'Cuestionario Eólica'!Q29,'Cuestionario Eólica'!T29,'Cuestionario Eólica'!W29,'Cuestionario Eólica'!Z29,'Cuestionario Eólica'!AC29,'Cuestionario Eólica'!AF29,'Cuestionario Eólica'!AI29)","v":4.25},28.6875]
[null,null,null,null,"C2 Conflicto","R2.2 C2",{"$f":"AVERAGE('Cuestionario Eólica'!G30,'Cuestionario Eólica'!J30,'Cuestionario Eólica'!M30,'Cuestionario Eólica'!P30,'Cuestionario Eólica'!S30,'Cuestionario Eólica'!V30,'Cuestionario Eólica'!Y30,'Cuestionario Eólica'!AB30,'Cuestionario Eólica'!AE30,'Cuestionario Eólica'!AH30)","v":5.75},{"$f":"AVERAGE('Cuestionario Eólica'!H30,'Cuestionario Eólica'!K30,'Cuestionario Eólica'!N30,'Cuestionario Eólica'!Q30,'Cuestionario Eólica'!T30,'Cuestionario Eólica'!W30,'Cuestionario Eólica'!Z30,'Cuestionario Eólica'!AC30,'Cuestionario Eólica'!AF30,'Cuestionario Eólica'!AI30)","v":4},23]
[null,null,null,null,"C3 Sanciones","R2.2 C3",{"$f":"AVERAGE('Cuestionario Eólica'!G31,'Cuestionario Eólica'!J31,'Cuestionario Eólica'!M31,'Cuestionario Eólica'!P31,'Cuestionario Eólica'!S31,'Cuestionario Eólica'!V31,'Cuestionario Eólica'!Y31,'Cuestionario Eólica'!AB31,'Cuestionario Eólica'!AE31,'Cuestionario Eólica'!AH31)","v":5},{"$f":"AVERAGE('Cuestionario Eólica'!H31,'Cuestionario Eólica'!K31,'Cuestionario Eólica'!N31,'Cuestionario Eólica'!Q31,'Cuestionario Eólica'!T31,'Cuestionario Eólica'!W31,'Cuestionario Eólica'!Z31,'Cuestionario Eólica'!AC31,'Cuestionario Eólica'!AF31,'Cuestionario Eólica'!AI31)","v":2.5714285714285716},12.857142857142858]
[null,null,null,null,"C4 Cancelación","R2.2 C4",{"$f":"AVERAGE('Cuestionario Eólica'!G32,'Cuestionario Eólica'!J32,'Cuestionario Eólica'!M32,'Cuestionario Eólica'!P32,'Cuestionario Eólica'!S32,'Cuestionario Eólica'!V32,'Cuestionario Eólica'!Y32,'Cuestionario Eólica'!AB32,'Cuestionario Eólica'!AE32,'Cuestionario Eólica'!AH32)","v":7.625},{"$f":"AVERAGE('Cuestionario Eólica'!H32,'Cuestionario Eólica'!K32,'Cuestionario Eólica'!N32,'Cuestionario Eólica'!Q32,'Cuestionario Eólica'!T32,'Cuestionario Eólica'!W32,'Cuestionario Eólica'!Z32,'Cuestionario Eólica'!AC32,'Cuestionario Eólica'!AF32,'Cuestionario Eólica'!AI32)","v":2.375},18.109375]
[null,"Dimensión Socioambiental","R3.1","1. Uso y aprovechamiento de los recursos naturales / 2. Regulación de los recursos naturales","C1 Retraso","R3.1 C1",{"$f":"AVERAGE('Cuestionario Eólica'!G33,'Cuestionario Eólica'!J33,'Cuestionario Eólica'!M33,'Cuestionario Eólica'!P33,'Cuestionario Eólica'!S33,'Cuestionario Eólica'!V33,'Cuestionario Eólica'!Y33,'Cuestionario Eólica'!AB33,'Cuestionario Eólica'!AE33,'Cuestionario Eólica'!AH33)","v":6.75},{"$f":"AVERAGE('Cuestionario Eólica'!H33,'Cuestionario Eólica'!K33,'Cuestionario Eólica'!N33,'Cuestionario Eólica'!Q33,'Cuestionario Eólica'!T33,'Cuestionario Eólica'!W33,'Cuestionario Eólica'!Z33,'Cuestionario Eólica'!AC33,'Cuestionario Eólica'!AF33,'Cuestionario Eólica'!AI33)","v":3.25},21.9375]
[null,null,null,null,"C2 Conflicto","R3.1 C2",{"$f":"AVERAGE('Cuestionario Eólica'!G34,'Cuestionario Eólica'!J34,'Cuestionario Eólica'!M34,'Cuestionario Eólica'!P34,'Cuestionario Eólica'!S34,'Cuestionario Eólica'!V34,'Cuestionario Eólica'!Y34,'Cuestionario Eólica'!AB34,'Cuestionario Eólica'!AE34,'Cuestionario Eólica'!AH34)","v":6.125},{"$f":"AVERAGE('Cuestionario Eólica'!H34,'Cuestionario Eólica'!K34,'Cuestionario Eólica'!N34,'Cuestionario Eólica'!Q34,'Cuestionario Eólica'!T34,'Cuestionario Eólica'!W34,'Cuestionario Eólica'!Z34,'Cuestionario Eólica'!AC34,'Cuestionario Eólica'!AF34,'Cuestionario Eólica'!AI34)","v":3.125},19.140625]
[null,null,null,null,"C3 Sanciones","R3.1 C3",{"$f":"AVERAGE('Cuestionario Eólica'!G35,'Cuestionario Eólica'!J35,'Cuestionario Eólica'!M35,'Cuestionario Eólica'!P35,'Cuestionario Eólica'!S35,'Cuestionario Eólica'!V35,'Cuestionario Eólica'!Y35,'Cuestionario Eólica'!AB35,'Cuestionario Eólica'!AE35,'Cuestionario Eólica'!AH35)","v":7},{"$f":"AVERAGE('Cuestionario Eólica'!H35,'Cuestionario Eólica'!K35,'Cuestionario Eólica'!N35,'Cuestionario Eólica'!Q35,'Cuestionario Eólica'!T35,'Cuestionario Eólica'!W35,'Cuestionario Eólica'!Z35,'Cuestionario Eólica'!AC35,'Cuestionario Eólica'!AF35,'Cuestionario Eólica'!AI35)","v":2.8571428571428572},20]
[null,null,"R3.2","3. Manejo de Residuos / 4. Salud","C1 Retraso","R3.2 C1",{"$f":"AVERAGE('Cuestionario Eólica'!G36,'Cuestionario Eólica'!J36,'Cuestionario Eólica'!M36,'Cuestionario Eólica'!P36,'Cuestionario Eólica'!S36,'Cuestionario Eólica'!V36,'Cuestionario Eólica'!Y36,'Cuestionario Eólica'!AB36,'Cuestionario Eólica'!AE36,'Cuestionario Eólica'!AH36)","v":6.25},{"$f":"AVERAGE('Cuestionario Eólica'!H36,'Cuestionario Eólica'!K36,'Cuestionario Eólica'!N36,'Cuestionario Eólica'!Q36,'Cuestionario Eólica'!T36,'Cuestionario Eólica'!W36,'Cuestionario Eólica'!Z36,'Cuestionario Eólica'!AC36,'Cuestionario Eólica'!AF36,'Cuestionario Eólica'!AI36)","v":3.875},24.21875]
[null,null,null,null,"C2 Conflicto","R3.2 C2",{"$f":"AVERAGE('Cuestionario Eólica'!G37,'Cuestionario Eólica'!J37,'Cuestionario Eólica'!M37,'Cuestionario Eólica'!P37,'Cuestionario Eólica'!S37,'Cuestionario Eólica'!V37,'Cuestionario Eólica'!Y37,'Cuestionario Eólica'!AB37,'Cuestionario Eólica'!AE37,'Cuestionario Eólica'!AH37)","v":6.25},{"$f":"AVERAGE('Cuestionario Eólica'!H37,'Cuestionario Eólica'!K37,'Cuestionario Eólica'!N37,'Cuestionario Eólica'!Q37,'Cuestionario Eólica'!T37,'Cuestionario Eólica'!W37,'Cuestionario Eólica'!Z37,'Cuestionario Eólica'!AC37,'Cuestionario Eólica'!AF37,'Cuestionario Eólica'!AI37)","v":3.625},22.65625]
[null,null,null,null,"C3 Sanciones","R3.2 C3",{"$f":"AVERAGE('Cuestionario Eólica'!G38,'Cuestionario Eólica'!J38,'Cuestionario Eólica'!M38,'Cuestionario Eólica'!P38,'Cuestionario Eólica'!S38,'Cuestionario Eólica'!V38,'Cuestionario Eólica'!Y38,'Cuestionario Eólica'!AB38,'Cuestionario Eólica'!AE38,'Cuestionario Eólica'!AH38)","v":6.7142857142857144},{"$f":"AVERAGE('Cuestionario Eólica'!H38,'Cuestionario Eólica'!K38,'Cuestionario Eólica'!N38,'Cuestionario Eólica'!Q38,'Cuestionario Eólica'!T38,'Cuestionario Eólica'!W38,'Cuestionario Eólica'!Z38,'Cuestionario Eólica'!AC38,'Cuestionario Eólica'!AF38,'Cuestionario Eólica'!AI38)","v":2.7142857142857144},18.22448979591837]
[null,null,null,null,"C4 Cancelación","R3.2 C4",{"$f":"AVERAGE('Cuestionario Eólica'!G39,'Cuestionario Eólica'!J39,'Cuestionario Eólica'!M39,'Cuestionario Eólica'!P39,'Cuestionario Eólica'!S39,'Cuestionario Eólica'!V39,'Cuestionario Eólica'!Y39,'Cuestionario Eólica'!AB39,'Cuestionario Eólica'!AE39,'Cuestionario Eólica'!AH39)","v":9},{"$f":"AVERAGE('Cuestionario Eólica'!H39,'Cuestionario Eólica'!K39,'Cuestionario Eólica'!N39,'Cuestionario Eólica'!Q39,'Cuestionario Eólica'!T39,'Cuestionario Eólica'!W39,'Cuestionario Eólica'!Z39,'Cuestionario Eólica'!AC39,'Cuestionario Eólica'!AF39,'Cuestionario Eólica'!AI39)","v":3.125},28.125]
[null,"Dimensión Sociocultural","R4.1","1. Población Indígena","C1 Retraso","R4.1 C1",{"$f":"AVERAGE('Cuestionario Eólica'!G40,'Cuestionario Eólica'!J40,'Cuestionario Eólica'!M40,'Cuestionario Eólica'!P40,'Cuestionario Eólica'!S40,'Cuestionario Eólica'!V40,'Cuestionario Eólica'!Y40,'Cuestionario Eólica'!AB40,'Cuestionario Eólica'!AE40,'Cuestionario Eólica'!AH40)","v":7.375},{"$f":"AVERAGE('Cuestionario Eólica'!H40,'Cuestionario Eólica'!K40,'Cuestionario Eólica'!N40,'Cuestionario Eólica'!Q40,'Cuestionario Eólica'!T40,'Cuestionario Eólica'!W40,'Cuestionario Eólica'!Z40,'Cuestionario Eólica'!AC40,'Cuestionario Eólica'!AF40,'Cuestionario Eólica'!AI40)","v":4.625},34.109375]
[null,null,null,null,"C2 Conflicto","R4.1 C2",{"$f":"AVERAGE('Cuestionario Eólica'!G41,'Cuestionario Eólica'!J41,'Cuestionario Eólica'!M41,'Cuestionario Eólica'!P41,'Cuestionario Eólica'!S41,'Cuestionario Eólica'!V41,'Cuestionario Eólica'!Y41,'Cuestionario Eólica'!AB41,'Cuestionario Eólica'!AE41,'Cuestionario Eólica'!AH41)","v":6.25},{"$f":"AVERAGE('Cuestionario Eólica'!H41,'Cuestionario Eólica'!K41,'Cuestionario Eólica'!N41,'Cuestionario Eólica'!Q41,'Cuestionario Eólica'!T41,'Cuestionario Eólica'!W41,'Cuestionario Eólica'!Z41,'Cuestionario Eólica'!AC41,'Cuestionario Eólica'!AF41,'Cuestionario Eólica'!AI41)","v":5.125},32.03125]
[null,null,null,null,"C3 Sanciones","R4.1 C3",{"$f":"AVERAGE('Cuestionario Eólica'!G42,'Cuestionario Eólica'!J42,'Cuestionario Eólica'!M42,'Cuestionario Eólica'!P42,'Cuestionario Eólica'!S42,'Cuestionario Eólica'!V42,'Cuestionario Eólica'!Y42,'Cuestionario Eólica'!AB42,'Cuestionario Eólica'!AE42,'Cuestionario Eólica'!AH42)","v":6.8571428571428568},{"$f":"AVERAGE('Cuestionario Eólica'!H42,'Cuestionario Eólica'!K42,'Cuestionario Eólica'!N42,'Cuestionario Eólica'!Q42,'Cuestionario Eólica'!T42,'Cuestionario Eólica'!W42,'Cuestionario Eólica'!Z42,'Cuestionario Eólica'!AC42,'Cuestionario Eólica'!AF42,'Cuestionario Eólica'!AI42)","v":2.4285714285714284},16.653061224489793]
[null,null,null,null,"C4 Cancelación","R4.4 C4",{"$f":"AVERAGE('Cuestionario Eólica'!G43,'Cuestionario Eólica'!J43,'Cuestionario Eólica'!M43,'Cuestionario Eólica'!P43,'Cuestionario Eólica'!S43,'Cuestionario Eólica'!V43,'Cuestionario Eólica'!Y43,'Cuestionario Eólica'!AB43,'Cuestionario Eólica'!AE43,'Cuestionario Eólica'!AH43)","v":8.75},{"$f":"AVERAGE('Cuestionario Eólica'!H43,'Cuestionario Eólica'!K43,'Cuestionario Eólica'!N43,'Cuestionario Eólica'!Q43,'Cuestionario Eólica'!T43,'Cuestionario Eólica'!W43,'Cuestionario Eólica'!Z43,'Cuestionario Eólica'!AC43,'Cuestionario Eólica'!AF43,'Cuestionario Eólica'!AI43)","v":2.625},22.96875]
[null,null,"R4.2","2. Patrimonio cultural material / 3. Patrimonio Cultural Arqueológico / 4. Producción y reproducción del patrimonio cultural","C1 Retraso","R4.2 C1",{"$f":"AVERAGE('Cuestionario Eólica'!G44,'Cuestionario Eólica'!J44,'Cuestionario Eólica'!M44,'Cuestionario Eólica'!P44,'Cuestionario Eólica'!S44,'Cuestionario Eólica'!V44,'Cuestionario Eólica'!Y44,'Cuestionario Eólica'!AB44,'Cuestionario Eólica'!AE44,'Cuestionario Eólica'!AH44)","v":6.625},{"$f":"AVERAGE('Cuestionario Eólica'!H44,'Cuestionario Eólica'!K44,'Cuestionario Eólica'!N44,'Cuestionario Eólica'!Q44,'Cuestionario Eólica'!T44,'Cuestionario Eólica'!W44,'Cuestionario Eólica'!Z44,'Cuestionario Eólica'!AC44,'Cuestionario Eólica'!AF44,'Cuestionario Eólica'!AI44)","v":3.375},22.359375]
[null,null,null,null,"C2 Conflicto","R4.2 C2",{"$f":"AVERAGE('Cuestionario Eólica'!G45,'Cuestionario Eólica'!J45,'Cuestionario Eólica'!M45,'Cuestionario Eólica'!P45,'Cuestionario Eólica'!S45,'Cuestionario Eólica'!V45,'Cuestionario Eólica'!Y45,'Cuestionario Eólica'!AB45,'Cuestionario Eólica'!AE45,'Cuestionario Eólica'!AH45)","v":5},{"$f":"AVERAGE('Cuestionario Eólica'!H45,'Cuestionario Eólica'!K45,'Cuestionario Eólica'!N45,'Cuestionario Eólica'!Q45,'Cuestionario Eólica'!T45,'Cuestionario Eólica'!W45,'Cuestionario Eólica'!Z45,'Cuestionario Eólica'!AC45,'Cuestionario Eólica'!AF45,'Cuestionario Eólica'!AI45)","v":3.1428571428571428},15.714285714285714]
[null,null,null,null,"C3 Sanciones","R4.2 C3",{"$f":"AVERAGE('Cuestionario Eólica'!G46,'Cuestionario Eólica'!J46,'Cuestionario Eólica'!M46,'Cuestionario Eólica'!P46,'Cuestionario Eólica'!S46,'Cuestionario Eólica'!V46,'Cuestionario Eólica'!Y46,'Cuestionario Eólica'!AB46,'Cuestionario Eólica'!AE46,'Cuestionario Eólica'!AH46)","v":5.4285714285714288},{"$f":"AVERAGE('Cuestionario Eólica'!H46,'Cuestionario Eólica'!K46,'Cuestionario Eólica'!N46,'Cuestionario Eólica'!Q46,'Cuestionario Eólica'!T46,'Cuestionario Eólica'!W46,'Cuestionario Eólica'!Z46,'Cuestionario Eólica'!AC46,'Cuestionario Eólica'!AF46,'Cuestionario Eólica'!AI46)","v":2.4285714285714284},13.183673469387754]
[null,null,null,null,"C4 Cancelación","R4.2 C4",{"$f":"AVERAGE('Cuestionario Eólica'!G47,'Cuestionario Eólica'!J47,'Cuestionario Eólica'!M47,'Cuestionario Eólica'!P47,'Cuestionario Eólica'!S47,'Cuestionario Eólica'!V47,'Cuestionario Eólica'!Y47,'Cuestionario Eólica'!AB47,'Cuestionario Eólica'!AE47,'Cuestionario Eólica'!AH47)","v":7.75},{"$f":"AVERAGE('Cuestionario Eólica'!H47,'Cuestionario Eólica'!K47,'Cuestionario Eólica'!N47,'Cuestionario Eólica'!Q47,'Cuestionario Eólica'!T47,'Cuestionario Eólica'!W47,'Cuestionario Eólica'!Z47,'Cuestionario Eólica'!AC47,'Cuestionario Eólica'!AF47,'Cuestionario Eólica'!AI47)","v":2.375},18.40625]
[null,null,null,null,null,"TOTAL",{"$f":"SUM(G6:G42)","v":236.60714285714286},{"$f":"SUM(H6:H42)","v":126.67857142857142},{"$f":"SUM(I6:I42)","v":802.27168367346917}]

{"sheet":"Matriz Gravedad Probabilidad FV","index":9,"n_rows":43,"n_cols":9,"rows_kept":43,"cut":false,"hidden":false,"merged":[[27,1,33,1],[27,2,29,2],[27,3,29,3],[30,2,33,2],[30,3,33,3],[34,1,41,1],[34,2,37,2],[34,3,37,3],[38,2,41,2],[38,3,41,3],[17,3,18,3],[19,1,26,1],[19,2,22,2],[19,3,22,3],[23,2,26,2],[23,3,26,3],[5,1,18,1],[5,2,6,2],[5,3,6,3],[7,2,10,2],[7,3,10,3],[11,2,13,2],[11,3,13,3],[14,2,16,2],[14,3,16,3],[17,2,18,2]]}
[]
[null,"Matriz de Gravedad y Probabilidad"]
[]
[null,null,null,null,null,null,0.5,0.5]
[null,"Dimensión","ID","Impacto Genérico","Riesgo Genérico Asociado",null,"Gravedad","Frecuencia","Ponderado Factores"]
[null,"Dimensión Socioeconómica","R1.1","1. Producción de bienes y servicios en lugares específicos","C1 Retraso","R1.1 C1",{"$f":"AVERAGE('Cuestionario FV'!G11,'Cuestionario FV'!J11,'Cuestionario FV'!M11,'Cuestionario FV'!P11,'Cuestionario FV'!S11,'Cuestionario FV'!V11,'Cuestionario FV'!Y11,'Cuestionario FV'!AB11,'Cuestionario FV'!AE11,'Cuestionario FV'!AH11)","v":7.7142857142857144},{"$f":"AVERAGE('Cuestionario FV'!H11,'Cuestionario FV'!K11,'Cuestionario FV'!N11,'Cuestionario FV'!Q11,'Cuestionario FV'!T11,'Cuestionario FV'!W11,'Cuestionario FV'!Z11,'Cuestionario FV'!AC11,'Cuestionario FV'!AF11,'Cuestionario FV'!AI11)","v":3.4285714285714284},{"$f":"H6*G6","v":26.448979591836732}]
[null,null,null,null,"C2 Conflicto","R1.1 C2",{"$f":"AVERAGE('Cuestionario FV'!G12,'Cuestionario FV'!J12,'Cuestionario FV'!M12,'Cuestionario FV'!P12,'Cuestionario FV'!S12,'Cuestionario FV'!V12,'Cuestionario FV'!Y12,'Cuestionario FV'!AB12,'Cuestionario FV'!AE12,'Cuestionario FV'!AH12)","v":5},{"$f":"AVERAGE('Cuestionario FV'!H12,'Cuestionario FV'!K12,'Cuestionario FV'!N12,'Cuestionario FV'!Q12,'Cuestionario FV'!T12,'Cuestionario FV'!W12,'Cuestionario FV'!Z12,'Cuestionario FV'!AC12,'Cuestionario FV'!AF12,'Cuestionario FV'!AI12)","v":4},{"$f":"H7*G7","v":20}]
[null,null,"R1.2","2. Derrama económica por el usufructo y contraprestación de espacios o prestación de servicios. ","C1 Retraso","R1.2 C1",{"$f":"AVERAGE('Cuestionario FV'!G13,'Cuestionario FV'!J13,'Cuestionario FV'!M13,'Cuestionario FV'!P13,'Cuestionario FV'!S13,'Cuestionario FV'!V13,'Cuestionario FV'!Y13,'Cuestionario FV'!AB13,'Cuestionario FV'!AE13,'Cuestionario FV'!AH13)","v":7.1428571428571432},{"$f":"AVERAGE('Cuestionario FV'!H13,'Cuestionario FV'!K13,'Cuestionario FV'!N13,'Cuestionario FV'!Q13,'Cuestionario FV'!T13,'Cuestionario FV'!W13,'Cuestionario FV'!Z13,'Cuestionario FV'!AC13,'Cuestionario FV'!AF13,'Cuestionario FV'!AI13)","v":4.4285714285714288},31.632653061224492]
[null,null,null,null,"C2 Conflicto","R1.2 C2",{"$f":"AVERAGE('Cuestionario FV'!G14,'Cuestionario FV'!J14,'Cuestionario FV'!M14,'Cuestionario FV'!P14,'Cuestionario FV'!S14,'Cuestionario FV'!V14,'Cuestionario FV'!Y14,'Cuestionario FV'!AB14,'Cuestionario FV'!AE14,'Cuestionario FV'!AH14)","v":5.7142857142857144},{"$f":"AVERAGE('Cuestionario FV'!H14,'Cuestionario FV'!K14,'Cuestionario FV'!N14,'Cuestionario FV'!Q14,'Cuestionario FV'!T14,'Cuestionario FV'!W14,'Cuestionario FV'!Z14,'Cuestionario FV'!AC14,'Cuestionario FV'!AF14,'Cuestionario FV'!AI14)","v":5.1428571428571432},29.387755102040821]
[null,null,null,null,"C3 Sanciones","R1.2 C3",{"$f":"AVERAGE('Cuestionario FV'!G15,'Cuestionario FV'!J15,'Cuestionario FV'!M15,'Cuestionario FV'!P15,'Cuestionario FV'!S15,'Cuestionario FV'!V15,'Cuestionario FV'!Y15,'Cuestionario FV'!AB15,'Cuestionario FV'!AE15,'Cuestionario FV'!AH15)","v":6.166666666666667},{"$f":"AVERAGE('Cuestionario FV'!H15,'Cuestionario FV'!K15,'Cuestionario FV'!N15,'Cuestionario FV'!Q15,'Cuestionario FV'!T15,'Cuestionario FV'!W15,'Cuestionario FV'!Z15,'Cuestionario FV'!AC15,'Cuestionario FV'!AF15,'Cuestionario FV'!AI15)","v":1.3333333333333333},8.2222222222222214]
[null,null,null,null,"C4 Cancelación","R1.2 C4",{"$f":"AVERAGE('Cuestionario FV'!G16,'Cuestionario FV'!J16,'Cuestionario FV'!M16,'Cuestionario FV'!P16,'Cuestionario FV'!S16,'Cuestionario FV'!V16,'Cuestionario FV'!Y16,'Cuestionario FV'!AB16,'Cuestionario FV'!AE16,'Cuestionario FV'!AH16)","v":8.4285714285714288},{"$f":"AVERAGE('Cuestionario FV'!H16,'Cuestionario FV'!K16,'Cuestionario FV'!N16,'Cuestionario FV'!Q16,'Cuestionario FV'!T16,'Cuestionario FV'!W16,'Cuestionario FV'!Z16,'Cuestionario FV'!AC16,'Cuestionario FV'!AF16,'Cuestionario FV'!AI16)","v":1.7142857142857142},14.448979591836734]
[null,null,"R1.3","3. Seguridad","C1 Retraso","R1.3 C1",{"$f":"AVERAGE('Cuestionario FV'!G17,'Cuestionario FV'!J17,'Cuestionario FV'!M17,'Cuestionario FV'!P17,'Cuestionario FV'!S17,'Cuestionario FV'!V17,'Cuestionario FV'!Y17,'Cuestionario FV'!AB17,'Cuestionario FV'!AE17,'Cuestionario FV'!AH17)","v":5.8571428571428568},{"$f":"AVERAGE('Cuestionario FV'!H17,'Cuestionario FV'!K17,'Cuestionario FV'!N17,'Cuestionario FV'!Q17,'Cuestionario FV'!T17,'Cuestionario FV'!W17,'Cuestionario FV'!Z17,'Cuestionario FV'!AC17,'Cuestionario FV'!AF17,'Cuestionario FV'!AI17)","v":1.8571428571428572},10.877551020408163]
[null,null,null,null,"C2 Conflicto","R1.3 C2",{"$f":"AVERAGE('Cuestionario FV'!G18,'Cuestionario FV'!J18,'Cuestionario FV'!M18,'Cuestionario FV'!P18,'Cuestionario FV'!S18,'Cuestionario FV'!V18,'Cuestionario FV'!Y18,'Cuestionario FV'!AB18,'Cuestionario FV'!AE18,'Cuestionario FV'!AH18)","v":6.4285714285714288},{"$f":"AVERAGE('Cuestionario FV'!H18,'Cuestionario FV'!K18,'Cuestionario FV'!N18,'Cuestionario FV'!Q18,'Cuestionario FV'!T18,'Cuestionario FV'!W18,'Cuestionario FV'!Z18,'Cuestionario FV'!AC18,'Cuestionario FV'!AF18,'Cuestionario FV'!AI18)","v":2.8571428571428572},18.367346938775512]
[null,null,null,null,"C3 Sanciones","R1.3 C3",{"$f":"AVERAGE('Cuestionario FV'!G19,'Cuestionario FV'!J19,'Cuestionario FV'!M19,'Cuestionario FV'!P19,'Cuestionario FV'!S19,'Cuestionario FV'!V19,'Cuestionario FV'!Y19,'Cuestionario FV'!AB19,'Cuestionario FV'!AE19,'Cuestionario FV'!AH19)","v":6.833333333333333},{"$f":"AVERAGE('Cuestionario FV'!H19,'Cuestionario FV'!K19,'Cuestionario FV'!N19,'Cuestionario FV'!Q19,'Cuestionario FV'!T19,'Cuestionario FV'!W19,'Cuestionario FV'!Z19,'Cuestionario FV'!AC19,'Cuestionario FV'!AF19,'Cuestionario FV'!AI19)","v":1.6666666666666667},11.388888888888889]
[null,null,"R1.4","4. Entorno laboral","C1 Retraso","R1.4 C1",{"$f":"AVERAGE('Cuestionario FV'!G20,'Cuestionario FV'!J20,'Cuestionario FV'!M20,'Cuestionario FV'!P20,'Cuestionario FV'!S20,'Cuestionario FV'!V20,'Cuestionario FV'!Y20,'Cuestionario FV'!AB20,'Cuestionario FV'!AE20,'Cuestionario FV'!AH20)","v":7},{"$f":"AVERAGE('Cuestionario FV'!H20,'Cuestionario FV'!K20,'Cuestionario FV'!N20,'Cuestionario FV'!Q20,'Cuestionario FV'!T20,'Cuestionario FV'!W20,'Cuestionario FV'!Z20,'Cuestionario FV'!AC20,'Cuestionario FV'!AF20,'Cuestionario FV'!AI20)","v":2.5714285714285716},18]
[null,null,null,null,"C2 Conflicto","R1.4 C2",{"$f":"AVERAGE('Cuestionario FV'!G21,'Cuestionario FV'!J21,'Cuestionario FV'!M21,'Cuestionario FV'!P21,'Cuestionario FV'!S21,'Cuestionario FV'!V21,'Cuestionario FV'!Y21,'Cuestionario FV'!AB21,'Cuestionario FV'!AE21,'Cuestionario FV'!AH21)","v":6.4285714285714288},{"$f":"AVERAGE('Cuestionario FV'!H21,'Cuestionario FV'!K21,'Cuestionario FV'!N21,'Cuestionario FV'!Q21,'Cuestionario FV'!T21,'Cuestionario FV'!W21,'Cuestionario FV'!Z21,'Cuestionario FV'!AC21,'Cuestionario FV'!AF21,'Cuestionario FV'!AI21)","v":2.2857142857142856},14.693877551020408]
[null,null,null,null,"C3 Sanciones","R1.4 C3",{"$f":"AVERAGE('Cuestionario FV'!G22,'Cuestionario FV'!J22,'Cuestionario FV'!M22,'Cuestionario FV'!P22,'Cuestionario FV'!S22,'Cuestionario FV'!V22,'Cuestionario FV'!Y22,'Cuestionario FV'!AB22,'Cuestionario FV'!AE22,'Cuestionario FV'!AH22)","v":6.666666666666667},{"$f":"AVERAGE('Cuestionario FV'!H22,'Cuestionario FV'!K22,'Cuestionario FV'!N22,'Cuestionario FV'!Q22,'Cuestionario FV'!T22,'Cuestionario FV'!W22,'Cuestionario FV'!Z22,'Cuestionario FV'!AC22,'Cuestionario FV'!AF22,'Cuestionario FV'!AI22)","v":1.1666666666666667},7.7777777777777786]
[null,null,"R1.5","5. Inversión Social","C1 Retraso","R1.4 C1",{"$f":"AVERAGE('Cuestionario FV'!G23,'Cuestionario FV'!J23,'Cuestionario FV'!M23,'Cuestionario FV'!P23,'Cuestionario FV'!S23,'Cuestionario FV'!V23,'Cuestionario FV'!Y23,'Cuestionario FV'!AB23,'Cuestionario FV'!AE23,'Cuestionario FV'!AH23)","v":5.5714285714285712},{"$f":"AVERAGE('Cuestionario FV'!H23,'Cuestionario FV'!K23,'Cuestionario FV'!N23,'Cuestionario FV'!Q23,'Cuestionario FV'!T23,'Cuestionario FV'!W23,'Cuestionario FV'!Z23,'Cuestionario FV'!AC23,'Cuestionario FV'!AF23,'Cuestionario FV'!AI23)","v":2.7142857142857144},15.122448979591837]
[null,null,null,null,"C2 Conflicto","R1.4 C2",{"$f":"AVERAGE('Cuestionario FV'!G24,'Cuestionario FV'!J24,'Cuestionario FV'!M24,'Cuestionario FV'!P24,'Cuestionario FV'!S24,'Cuestionario FV'!V24,'Cuestionario FV'!Y24,'Cuestionario FV'!AB24,'Cuestionario FV'!AE24,'Cuestionario FV'!AH24)","v":5.1428571428571432},{"$f":"AVERAGE('Cuestionario FV'!H24,'Cuestionario FV'!K24,'Cuestionario FV'!N24,'Cuestionario FV'!Q24,'Cuestionario FV'!T24,'Cuestionario FV'!W24,'Cuestionario FV'!Z24,'Cuestionario FV'!AC24,'Cuestionario FV'!AF24,'Cuestionario FV'!AI24)","v":2.7142857142857144},13.95918367346939]
[null,"Dimensión Sociopolítica","R2.1","1. Mecanismos de Participación / 2. Representatividad / 3. Uso del territorio y libertad para decidir sobre él. ","C1 Retraso","R2.1 C1",{"$f":"AVERAGE('Cuestionario FV'!G25,'Cuestionario FV'!J25,'Cuestionario FV'!M25,'Cuestionario FV'!P25,'Cuestionario FV'!S25,'Cuestionario FV'!V25,'Cuestionario FV'!Y25,'Cuestionario FV'!AB25,'Cuestionario FV'!AE25,'Cuestionario FV'!AH25)","v":6.4285714285714288},{"$f":"AVERAGE('Cuestionario FV'!H25,'Cuestionario FV'!K25,'Cuestionario FV'!N25,'Cuestionario FV'!Q25,'Cuestionario FV'!T25,'Cuestionario FV'!W25,'Cuestionario FV'!Z25,'Cuestionario FV'!AC25,'Cuestionario FV'!AF25,'Cuestionario FV'!AI25)","v":3.7142857142857144},23.877551020408166]
[null,null,null,null,"C2 Conflicto","R2.1 C2",{"$f":"AVERAGE('Cuestionario FV'!G26,'Cuestionario FV'!J26,'Cuestionario FV'!M26,'Cuestionario FV'!P26,'Cuestionario FV'!S26,'Cuestionario FV'!V26,'Cuestionario FV'!Y26,'Cuestionario FV'!AB26,'Cuestionario FV'!AE26,'Cuestionario FV'!AH26)","v":4.8571428571428568},{"$f":"AVERAGE('Cuestionario FV'!H26,'Cuestionario FV'!K26,'Cuestionario FV'!N26,'Cuestionario FV'!Q26,'Cuestionario FV'!T26,'Cuestionario FV'!W26,'Cuestionario FV'!Z26,'Cuestionario FV'!AC26,'Cuestionario FV'!AF26,'Cuestionario FV'!AI26)","v":3.1428571428571428},15.265306122448978]
[null,null,null,null,"C3 Sanciones","R2.1 C3",{"$f":"AVERAGE('Cuestionario FV'!G27,'Cuestionario FV'!J27,'Cuestionario FV'!M27,'Cuestionario FV'!P27,'Cuestionario FV'!S27,'Cuestionario FV'!V27,'Cuestionario FV'!Y27,'Cuestionario FV'!AB27,'Cuestionario FV'!AE27,'Cuestionario FV'!AH27)","v":5.166666666666667},{"$f":"AVERAGE('Cuestionario FV'!H27,'Cuestionario FV'!K27,'Cuestionario FV'!N27,'Cuestionario FV'!Q27,'Cuestionario FV'!T27,'Cuestionario FV'!W27,'Cuestionario FV'!Z27,'Cuestionario FV'!AC27,'Cuestionario FV'!AF27,'Cuestionario FV'!AI27)","v":1.3333333333333333},6.8888888888888893]
[null,null,null,null,"C4 Cancelación","R2.1 C4",{"$f":"AVERAGE('Cuestionario FV'!G28,'Cuestionario FV'!J28,'Cuestionario FV'!M28,'Cuestionario FV'!P28,'Cuestionario FV'!S28,'Cuestionario FV'!V28,'Cuestionario FV'!Y28,'Cuestionario FV'!AB28,'Cuestionario FV'!AE28,'Cuestionario FV'!AH28)","v":7.7142857142857144},{"$f":"AVERAGE('Cuestionario FV'!H28,'Cuestionario FV'!K28,'Cuestionario FV'!N28,'Cuestionario FV'!Q28,'Cuestionario FV'!T28,'Cuestionario FV'!W28,'Cuestionario FV'!Z28,'Cuestionario FV'!AC28,'Cuestionario FV'!AF28,'Cuestionario FV'!AI28)","v":1.4285714285714286},11.020408163265307]
[null,null,"R2.2","4. Formas de organización: Ejidos, comunidades agrarias, pueblos y comunidades indígenas y personas como propietarias del territorio. ","C1 Retraso","R2.2 C1",{"$f":"AVERAGE('Cuestionario FV'!G29,'Cuestionario FV'!J29,'Cuestionario FV'!M29,'Cuestionario FV'!P29,'Cuestionario FV'!S29,'Cuestionario FV'!V29,'Cuestionario FV'!Y29,'Cuestionario FV'!AB29,'Cuestionario FV'!AE29,'Cuestionario FV'!AH29)","v":7},{"$f":"AVERAGE('Cuestionario FV'!H29,'Cuestionario FV'!K29,'Cuestionario FV'!N29,'Cuestionario FV'!Q29,'Cuestionario FV'!T29,'Cuestionario FV'!W29,'Cuestionario FV'!Z29,'Cuestionario FV'!AC29,'Cuestionario FV'!AF29,'Cuestionario FV'!AI29)","v":3.4285714285714284},24]
[null,null,null,null,"C2 Conflicto","R2.2 C2",{"$f":"AVERAGE('Cuestionario FV'!G30,'Cuestionario FV'!J30,'Cuestionario FV'!M30,'Cuestionario FV'!P30,'Cuestionario FV'!S30,'Cuestionario FV'!V30,'Cuestionario FV'!Y30,'Cuestionario FV'!AB30,'Cuestionario FV'!AE30,'Cuestionario FV'!AH30)","v":6},{"$f":"AVERAGE('Cuestionario FV'!H30,'Cuestionario FV'!K30,'Cuestionario FV'!N30,'Cuestionario FV'!Q30,'Cuestionario FV'!T30,'Cuestionario FV'!W30,'Cuestionario FV'!Z30,'Cuestionario FV'!AC30,'Cuestionario FV'!AF30,'Cuestionario FV'!AI30)","v":3.1428571428571428},18.857142857142858]
[null,null,null,null,"C3 Sanciones","R2.2 C3",{"$f":"AVERAGE('Cuestionario FV'!G31,'Cuestionario FV'!J31,'Cuestionario FV'!M31,'Cuestionario FV'!P31,'Cuestionario FV'!S31,'Cuestionario FV'!V31,'Cuestionario FV'!Y31,'Cuestionario FV'!AB31,'Cuestionario FV'!AE31,'Cuestionario FV'!AH31)","v":5.166666666666667},{"$f":"AVERAGE('Cuestionario FV'!H31,'Cuestionario FV'!K31,'Cuestionario FV'!N31,'Cuestionario FV'!Q31,'Cuestionario FV'!T31,'Cuestionario FV'!W31,'Cuestionario FV'!Z31,'Cuestionario FV'!AC31,'Cuestionario FV'!AF31,'Cuestionario FV'!AI31)","v":1.3333333333333333},6.8888888888888893]
[null,null,null,null,"C4 Cancelación","R2.2 C4",{"$f":"AVERAGE('Cuestionario FV'!G32,'Cuestionario FV'!J32,'Cuestionario FV'!M32,'Cuestionario FV'!P32,'Cuestionario FV'!S32,'Cuestionario FV'!V32,'Cuestionario FV'!Y32,'Cuestionario FV'!AB32,'Cuestionario FV'!AE32,'Cuestionario FV'!AH32)","v":7.5714285714285712},{"$f":"AVERAGE('Cuestionario FV'!H32,'Cuestionario FV'!K32,'Cuestionario FV'!N32,'Cuestionario FV'!Q32,'Cuestionario FV'!T32,'Cuestionario FV'!W32,'Cuestionario FV'!Z32,'Cuestionario FV'!AC32,'Cuestionario FV'!AF32,'Cuestionario FV'!AI32)","v":1.2857142857142858},9.7346938775510203]
[null,"Dimensión Socioambiental","R3.1","1. Uso y aprovechamiento de los recursos naturales / 2. Regulación de los recursos naturales","C1 Retraso","R3.1 C1",{"$f":"AVERAGE('Cuestionario FV'!G33,'Cuestionario FV'!J33,'Cuestionario FV'!M33,'Cuestionario FV'!P33,'Cuestionario FV'!S33,'Cuestionario FV'!V33,'Cuestionario FV'!Y33,'Cuestionario FV'!AB33,'Cuestionario FV'!AE33,'Cuestionario FV'!AH33)","v":6.8571428571428568},{"$f":"AVERAGE('Cuestionario FV'!H33,'Cuestionario FV'!K33,'Cuestionario FV'!N33,'Cuestionario FV'!Q33,'Cuestionario FV'!T33,'Cuestionario FV'!W33,'Cuestionario FV'!Z33,'Cuestionario FV'!AC33,'Cuestionario FV'!AF33,'Cuestionario FV'!AI33)","v":2.2857142857142856},15.6734693877551]
[null,null,null,null,"C2 Conflicto","R3.1 C2",{"$f":"AVERAGE('Cuestionario FV'!G34,'Cuestionario FV'!J34,'Cuestionario FV'!M34,'Cuestionario FV'!P34,'Cuestionario FV'!S34,'Cuestionario FV'!V34,'Cuestionario FV'!Y34,'Cuestionario FV'!AB34,'Cuestionario FV'!AE34,'Cuestionario FV'!AH34)","v":6.4285714285714288},{"$f":"AVERAGE('Cuestionario FV'!H34,'Cuestionario FV'!K34,'Cuestionario FV'!N34,'Cuestionario FV'!Q34,'Cuestionario FV'!T34,'Cuestionario FV'!W34,'Cuestionario FV'!Z34,'Cuestionario FV'!AC34,'Cuestionario FV'!AF34,'Cuestionario FV'!AI34)","v":2.1428571428571428},13.775510204081632]
[null,null,null,null,"C3 Sanciones","R3.1 C3",{"$f":"AVERAGE('Cuestionario FV'!G35,'Cuestionario FV'!J35,'Cuestionario FV'!M35,'Cuestionario FV'!P35,'Cuestionario FV'!S35,'Cuestionario FV'!V35,'Cuestionario FV'!Y35,'Cuestionario FV'!AB35,'Cuestionario FV'!AE35,'Cuestionario FV'!AH35)","v":7.166666666666667},{"$f":"AVERAGE('Cuestionario FV'!H35,'Cuestionario FV'!K35,'Cuestionario FV'!N35,'Cuestionario FV'!Q35,'Cuestionario FV'!T35,'Cuestionario FV'!W35,'Cuestionario FV'!Z35,'Cuestionario FV'!AC35,'Cuestionario FV'!AF35,'Cuestionario FV'!AI35)","v":1.6666666666666667},11.944444444444445]
[null,null,"R3.2","3. Manejo de Residuos / 4. Salud","C1 Retraso","R3.2 C1",{"$f":"AVERAGE('Cuestionario FV'!G36,'Cuestionario FV'!J36,'Cuestionario FV'!M36,'Cuestionario FV'!P36,'Cuestionario FV'!S36,'Cuestionario FV'!V36,'Cuestionario FV'!Y36,'Cuestionario FV'!AB36,'Cuestionario FV'!AE36,'Cuestionario FV'!AH36)","v":6.5714285714285712},{"$f":"AVERAGE('Cuestionario FV'!H36,'Cuestionario FV'!K36,'Cuestionario FV'!N36,'Cuestionario FV'!Q36,'Cuestionario FV'!T36,'Cuestionario FV'!W36,'Cuestionario FV'!Z36,'Cuestionario FV'!AC36,'Cuestionario FV'!AF36,'Cuestionario FV'!AI36)","v":3},19.714285714285715]
[null,null,null,null,"C2 Conflicto","R3.2 C2",{"$f":"AVERAGE('Cuestionario FV'!G37,'Cuestionario FV'!J37,'Cuestionario FV'!M37,'Cuestionario FV'!P37,'Cuestionario FV'!S37,'Cuestionario FV'!V37,'Cuestionario FV'!Y37,'Cuestionario FV'!AB37,'Cuestionario FV'!AE37,'Cuestionario FV'!AH37)","v":6.5714285714285712},{"$f":"AVERAGE('Cuestionario FV'!H37,'Cuestionario FV'!K37,'Cuestionario FV'!N37,'Cuestionario FV'!Q37,'Cuestionario FV'!T37,'Cuestionario FV'!W37,'Cuestionario FV'!Z37,'Cuestionario FV'!AC37,'Cuestionario FV'!AF37,'Cuestionario FV'!AI37)","v":2.7142857142857144},17.836734693877553]
[null,null,null,null,"C3 Sanciones","R3.2 C3",{"$f":"AVERAGE('Cuestionario FV'!G38,'Cuestionario FV'!J38,'Cuestionario FV'!M38,'Cuestionario FV'!P38,'Cuestionario FV'!S38,'Cuestionario FV'!V38,'Cuestionario FV'!Y38,'Cuestionario FV'!AB38,'Cuestionario FV'!AE38,'Cuestionario FV'!AH38)","v":7},{"$f":"AVERAGE('Cuestionario FV'!H38,'Cuestionario FV'!K38,'Cuestionario FV'!N38,'Cuestionario FV'!Q38,'Cuestionario FV'!T38,'Cuestionario FV'!W38,'Cuestionario FV'!Z38,'Cuestionario FV'!AC38,'Cuestionario FV'!AF38,'Cuestionario FV'!AI38)","v":1.5},10.5]
[null,null,null,null,"C4 Cancelación","R3.2 C4",{"$f":"AVERAGE('Cuestionario FV'!G39,'Cuestionario FV'!J39,'Cuestionario FV'!M39,'Cuestionario FV'!P39,'Cuestionario FV'!S39,'Cuestionario FV'!V39,'Cuestionario FV'!Y39,'Cuestionario FV'!AB39,'Cuestionario FV'!AE39,'Cuestionario FV'!AH39)","v":8.8571428571428577},{"$f":"AVERAGE('Cuestionario FV'!H39,'Cuestionario FV'!K39,'Cuestionario FV'!N39,'Cuestionario FV'!Q39,'Cuestionario FV'!T39,'Cuestionario FV'!W39,'Cuestionario FV'!Z39,'Cuestionario FV'!AC39,'Cuestionario FV'!AF39,'Cuestionario FV'!AI39)","v":2.1428571428571428},18.979591836734695]
[null,"Dimensión Sociocultural","R4.1","1. Población Indígena","C1 Retraso","R4.1 C1",{"$f":"AVERAGE('Cuestionario FV'!G40,'Cuestionario FV'!J40,'Cuestionario FV'!M40,'Cuestionario FV'!P40,'Cuestionario FV'!S40,'Cuestionario FV'!V40,'Cuestionario FV'!Y40,'Cuestionario FV'!AB40,'Cuestionario FV'!AE40,'Cuestionario FV'!AH40)","v":7.7142857142857144},{"$f":"AVERAGE('Cuestionario FV'!H40,'Cuestionario FV'!K40,'Cuestionario FV'!N40,'Cuestionario FV'!Q40,'Cuestionario FV'!T40,'Cuestionario FV'!W40,'Cuestionario FV'!Z40,'Cuestionario FV'!AC40,'Cuestionario FV'!AF40,'Cuestionario FV'!AI40)","v":3.8571428571428572},29.755102040816329]
[null,null,null,null,"C2 Conflicto","R4.1 C2",{"$f":"AVERAGE('Cuestionario FV'!G41,'Cuestionario FV'!J41,'Cuestionario FV'!M41,'Cuestionario FV'!P41,'Cuestionario FV'!S41,'Cuestionario FV'!V41,'Cuestionario FV'!Y41,'Cuestionario FV'!AB41,'Cuestionario FV'!AE41,'Cuestionario FV'!AH41)","v":6.5714285714285712},{"$f":"AVERAGE('Cuestionario FV'!H41,'Cuestionario FV'!K41,'Cuestionario FV'!N41,'Cuestionario FV'!Q41,'Cuestionario FV'!T41,'Cuestionario FV'!W41,'Cuestionario FV'!Z41,'Cuestionario FV'!AC41,'Cuestionario FV'!AF41,'Cuestionario FV'!AI41)","v":4.4285714285714288},29.102040816326532]
[null,null,null,null,"C3 Sanciones","R4.1 C3",{"$f":"AVERAGE('Cuestionario FV'!G42,'Cuestionario FV'!J42,'Cuestionario FV'!M42,'Cuestionario FV'!P42,'Cuestionario FV'!S42,'Cuestionario FV'!V42,'Cuestionario FV'!Y42,'Cuestionario FV'!AB42,'Cuestionario FV'!AE42,'Cuestionario FV'!AH42)","v":7.166666666666667},{"$f":"AVERAGE('Cuestionario FV'!H42,'Cuestionario FV'!K42,'Cuestionario FV'!N42,'Cuestionario FV'!Q42,'Cuestionario FV'!T42,'Cuestionario FV'!W42,'Cuestionario FV'!Z42,'Cuestionario FV'!AC42,'Cuestionario FV'!AF42,'Cuestionario FV'!AI42)","v":1.1666666666666667},8.3611111111111125]
[null,null,null,null,"C4 Cancelación","R4.4 C4",{"$f":"AVERAGE('Cuestionario FV'!G43,'Cuestionario FV'!J43,'Cuestionario FV'!M43,'Cuestionario FV'!P43,'Cuestionario FV'!S43,'Cuestionario FV'!V43,'Cuestionario FV'!Y43,'Cuestionario FV'!AB43,'Cuestionario FV'!AE43,'Cuestionario FV'!AH43)","v":8.5714285714285712},{"$f":"AVERAGE('Cuestionario FV'!H43,'Cuestionario FV'!K43,'Cuestionario FV'!N43,'Cuestionario FV'!Q43,'Cuestionario FV'!T43,'Cuestionario FV'!W43,'Cuestionario FV'!Z43,'Cuestionario FV'!AC43,'Cuestionario FV'!AF43,'Cuestionario FV'!AI43)","v":1.5714285714285714},13.469387755102041]
[null,null,"R4.2","2. Patrimonio cultural material / 3. Patrimonio Cultural Arqueológico / 4. Producción y reproducción del patrimonio cultural","C1 Retraso","R4.2 C1",{"$f":"AVERAGE('Cuestionario FV'!G44,'Cuestionario FV'!J44,'Cuestionario FV'!M44,'Cuestionario FV'!P44,'Cuestionario FV'!S44,'Cuestionario FV'!V44,'Cuestionario FV'!Y44,'Cuestionario FV'!AB44,'Cuestionario FV'!AE44,'Cuestionario FV'!AH44)","v":6.5714285714285712},{"$f":"AVERAGE('Cuestionario FV'!H44,'Cuestionario FV'!K44,'Cuestionario FV'!N44,'Cuestionario FV'!Q44,'Cuestionario FV'!T44,'Cuestionario FV'!W44,'Cuestionario FV'!Z44,'Cuestionario FV'!AC44,'Cuestionario FV'!AF44,'Cuestionario FV'!AI44)","v":2.4285714285714284},15.959183673469386]
[null,null,null,null,"C2 Conflicto","R4.2 C2",{"$f":"AVERAGE('Cuestionario FV'!G45,'Cuestionario FV'!J45,'Cuestionario FV'!M45,'Cuestionario FV'!P45,'Cuestionario FV'!S45,'Cuestionario FV'!V45,'Cuestionario FV'!Y45,'Cuestionario FV'!AB45,'Cuestionario FV'!AE45,'Cuestionario FV'!AH45)","v":5.333333333333333},{"$f":"AVERAGE('Cuestionario FV'!H45,'Cuestionario FV'!K45,'Cuestionario FV'!N45,'Cuestionario FV'!Q45,'Cuestionario FV'!T45,'Cuestionario FV'!W45,'Cuestionario FV'!Z45,'Cuestionario FV'!AC45,'Cuestionario FV'!AF45,'Cuestionario FV'!AI45)","v":2},10.666666666666666]
[null,null,null,null,"C3 Sanciones","R4.2 C3",{"$f":"AVERAGE('Cuestionario FV'!G46,'Cuestionario FV'!J46,'Cuestionario FV'!M46,'Cuestionario FV'!P46,'Cuestionario FV'!S46,'Cuestionario FV'!V46,'Cuestionario FV'!Y46,'Cuestionario FV'!AB46,'Cuestionario FV'!AE46,'Cuestionario FV'!AH46)","v":5.833333333333333},{"$f":"AVERAGE('Cuestionario FV'!H46,'Cuestionario FV'!K46,'Cuestionario FV'!N46,'Cuestionario FV'!Q46,'Cuestionario FV'!T46,'Cuestionario FV'!W46,'Cuestionario FV'!Z46,'Cuestionario FV'!AC46,'Cuestionario FV'!AF46,'Cuestionario FV'!AI46)","v":1.1666666666666667},6.8055555555555554]
[null,null,null,null,"C4 Cancelación","R4.2 C4",{"$f":"AVERAGE('Cuestionario FV'!G47,'Cuestionario FV'!J47,'Cuestionario FV'!M47,'Cuestionario FV'!P47,'Cuestionario FV'!S47,'Cuestionario FV'!V47,'Cuestionario FV'!Y47,'Cuestionario FV'!AB47,'Cuestionario FV'!AE47,'Cuestionario FV'!AH47)","v":7.7142857142857144},{"$f":"AVERAGE('Cuestionario FV'!H47,'Cuestionario FV'!K47,'Cuestionario FV'!N47,'Cuestionario FV'!Q47,'Cuestionario FV'!T47,'Cuestionario FV'!W47,'Cuestionario FV'!Z47,'Cuestionario FV'!AC47,'Cuestionario FV'!AF47,'Cuestionario FV'!AI47)","v":1.2857142857142858},9.9183673469387763]
[null,null,null,null,null,"TOTAL",{"$f":"SUM(G6:G42)","v":244.92857142857153},{"$f":"SUM(H6:H42)","v":90.047619047619079},{"$f":"SUM(I6:I42)","v":589.32199546485265}]

{"sheet":"DESVEST Cuestionario Probabilid","index":10,"n_rows":48,"n_cols":12,"rows_kept":48,"cut":false,"hidden":true,"merged":[[11,2,14,2],[11,3,14,3],[15,3,17,3],[15,4,17,4],[18,2,20,2],[18,3,20,3],[18,4,20,4],[21,2,22,2],[21,3,22,3],[21,4,22,4],[23,1,30,1],[23,2,26,2],[23,3,26,3],[23,4,26,4],[27,2,30,2],[27,3,30,3],[27,4,30,4],[9,1,22,1],[9,2,10,2],[9,3,10,3],[9,4,10,4],[11,4,14,4],[15,2,17,2],[31,1,37,1],[31,2,33,2],[31,3,33,3],[31,4,33,4],[34,2,37,2],[34,3,37,3],[34,4,37,4],[38,1,45,1],[38,2,41,2],[38,3,41,3],[38,4,41,4],[42,2,45,2],[42,3,45,3],[42,4,45,4]]}
[]
[null,"Cuestionario para cuantificación de Riesgos Ambientales y Sociales en Proyectos Energéticos"]
[]
[null,"Empresa: ",null,"MULTIPLES EMPRESAS"]
[]
[null,"PASO 1: Califica en una escala del 1 - 10 donde 10 es MUY SEVERO y 1 es POCO SEVERO los riesgos derivados de los impactos Sociales y Ambientales definidos a continuación: "]
[null,"PASO 2: Califica en una escala del 1 - 10 donde 10 es MUY PROBABLE y 1 es POCO PROBABLE los riesgos derivados de los impactos Sociales y Ambientales definidos a continuación: "]
[]
[null,"Naturaleza ","ID","IMPACTO","Definición del Impacto","Posible Riesgo","Probabilidad","Probabilidad","Probabilidad","Probabilidad"]
[null,"Riesgos Socioeconómicos","R1.1","1. Producción de bienes y servicios en lugares específicos","Riesgos derivados de la modificación del área","C1 Retraso",2,3,5,7,null,{"$f":"STDEV(G10:J10)","v":2.2173557826083452}]
[null,null,null,null,null,"C2 Conflicto",2,6,null,8,null,{"$f":"STDEV(G11:J11)","v":3.0550504633038935}]
[null,null,"R1.2","2. Derrama económica por el usufructo y contraprestación de espacios. ","Riesgos derivados de renta o compra-venta del área dónde se desarrollará el proyecto","C1 Retraso",8,3,3,3,null,2.5]
[null,null,null,null,null,"C2 Conflicto",2,4,3,6,null,1.707825127659933]
[null,null,null,null,null,"C3 Sanciones",0,2,null,1,null,1]
[null,null,null,null,null,"C4 Cancelación",2,2,2,1,null,0.5]
[null,null,"R1.3","3. Seguridad","Riesgos derivados de las condiciones de seguridad del personal involucrado en el proyecto y la población cercana","C1 Retraso",1,1,1,2,null,0.5]
[null,null,null,null,null,"C2 Conflicto",1,4,5,3,null,1.707825127659933]
[null,null,null,null,null,"C3 Sanciones",5,2,null,1,null,2.0816659994661331]
[null,null,"R1.4","4. Entorno laboral","Riesgos derivados de las condiciones Laborales del personal involucrado en el proyecto","C1 Retraso",3,1,4,1,null,1.5]
[null,null,null,null,null,"C2 Conflicto",0,2,5,3,null,2.0816659994661326]
[null,null,null,null,null,"C3 Sanciones",0,2,null,1,null,1]
[null,null,"R1.5","5. Inversión Social","Riesgos derivados de la negación de inversión social en la población con la que interactúa.","C1 Retraso",3,2,2,3,null,0.57735026918962573]
[null,null,null,null,null,"C2 Conflicto",3,2,6,2,null,1.8929694486000912]
[null,"Riesgos Sociopolíticos","R2.1","1. Mecanismos de Participación / 2. Representatividad / 3. Uso del territorio y libertad para decidir sobre él. ","Riesgo derivado de los procedimientos que permiten a los individuos de una sociedad  involucrase en las decisiones relacionadas con el desarrollo del proyecto.","C1 Retraso",8,3,5,3,null,2.3629078131263039]
[null,null,null,null,null,"C2 Conflicto",4,1,6,4,null,2.0615528128088303]
[null,null,null,null,null,"C3 Sanciones",0,3,null,1,null,1.5275252316519468]
[null,null,null,null,null,"C4 Cancelación",0,2,3,1,null,1.2909944487358056]
[null,null,"R2.2","4. Formas de organización: Ejidos, comunidades agrarias, pueblos y comunidades indígenas y personas como propietarias del territorio. ","Riesgo derivado de ignorar las formas de organización\nlocal de: ejidos, comunidades agrarias, pueblos y comunidades indígenas.","C1 Retraso",5,3,4,5,null,0.9574271077563381]
[null,null,null,null,null,"C2 Conflicto",5,3,6,1,null,2.2173557826083452]
[null,null,null,null,null,"C3 Sanciones",1,3,null,1,null,1.1547005383792515]
[null,null,null,null,null,"C4 Cancelación",0,2,3,1,null,1.2909944487358056]
[null,"Socioambiental","R3.1","1. Uso y aprovechamiento de los recursos naturales / 2. Regulación de los recursos naturales","Riesgo derivado del manejo sustentable y eficiente de\nlos recursos existentes.","C1 Retraso",0,3,4,1,null,1.8257418583505538]
[null,null,null,null,null,"C2 Conflicto",0,4,3,1,null,1.8257418583505538]
[null,null,null,null,null,"C3 Sanciones",2,2,null,1,null,0.57735026918962551]
[null,null,"R3.2","3. Manejo de Residuos / 4. Salud","Riesgo derivado de problemas de salud por incorrecto manejo de residuos.","C1 Retraso",10,3,2,1,null,4.0824829046386304]
[null,null,null,null,null,"C2 Conflicto",10,3,2,1,null,4.0824829046386304]
[null,null,null,null,null,"C3 Sanciones",2,2,null,1,null,0.57735026918962551]
[null,null,null,null,null,"C4 Cancelación",2,3,1,1,null,0.9574271077563381]
[null,"Sociocultural","R4.1","1. Población Indígena","Riesgo por no realizar correctamente una consulta indígena.","C1 Retraso",8,2,5,3,null,2.6457513110645907]
[null,null,null,null,null,"C2 Conflicto",7,3,6,2,null,2.3804761428476167]
[null,null,null,null,null,"C3 Sanciones",0,3,null,1,null,1.5275252316519468]
[null,null,null,null,null,"C4 Cancelación",3,3,1,1,null,1.1547005383792515]
[null,null,"R4.2","2. Patrimonio cultural material / 3. Patrimonio Cultural Arqueológico / 4. Producción y reproducción del patrimonio cultural","Riesgo derivado de no identificar ni implementar mecanismos de resguardo y conservación al patrimonio cultural que tiene contacto con el proyecto. ","C1 Retraso",5,1,4,5,null,1.8929694486000912]
[null,null,null,null,null,"C2 Conflicto",1,4,null,2,null,1.5275252316519468]
[null,null,null,null,null,"C3 Sanciones",0,3,null,1,null,1.5275252316519468]
[null,null,null,null,null,"C4 Cancelación",2,2,3,1,null,0.81649658092772603]
[]
[null,null,null,null,null,null,null,null,null,null,null,{"$f":"AVERAGE(L10:L46)","v":1.6915327916390759}]

{"sheet":"DESVEST Cuestionario Gravedad","index":11,"n_rows":50,"n_cols":12,"rows_kept":50,"cut":false,"hidden":true,"merged":[[11,2,14,2],[11,3,14,3],[15,3,17,3],[15,4,17,4],[18,2,20,2],[18,3,20,3],[18,4,20,4],[21,2,22,2],[21,3,22,3],[21,4,22,4],[23,1,30,1],[23,2,26,2],[23,3,26,3],[23,4,26,4],[27,2,30,2],[27,3,30,3],[27,4,30,4],[9,1,22,1],[9,2,10,2],[9,3,10,3],[9,4,10,4],[11,4,14,4],[15,2,17,2],[31,1,37,1],[31,2,33,2],[31,3,33,3],[31,4,33,4],[34,2,37,2],[34,3,37,3],[34,4,37,4],[38,1,45,1],[38,2,41,2],[38,3,41,3],[38,4,41,4],[42,2,45,2],[42,3,45,3],[42,4,45,4]]}
[]
[null,"Cuestionario para cuantificación de Riesgos Ambientales y Sociales en Proyectos Energéticos"]
[]
[null,"Empresa: ",null,"MULTIPLES EMPRESAS"]
[]
[null,"PASO 1: Califica en una escala del 1 - 10 donde 10 es MUY SEVERO y 1 es POCO SEVERO los riesgos derivados de los impactos Sociales y Ambientales definidos a continuación: "]
[null,"PASO 2: Califica en una escala del 1 - 10 donde 10 es MUY PROBABLE y 1 es POCO PROBABLE los riesgos derivados de los impactos Sociales y Ambientales definidos a continuación: "]
[null,null,null,null,null,null,1,2,3,4]
[null,"Naturaleza ","ID","IMPACTO","Definición del Impacto","Posible Riesgo","Gravedad","Gravedad","Gravedad","Gravedad"]
[null,"Riesgos Socioeconómicos","R1.1","1. Producción de bienes y servicios en lugares específicos","Riesgos derivados de la modificación del área","C1 Retraso",10,8,5,10,null,{"$f":"STDEV(G10:J10)","v":2.3629078131263039}]
[null,null,null,null,null,"C2 Conflicto",5,7,null,4,null,{"$f":"STDEV(G11:J11)","v":1.5275252316519474}]
[null,null,"R1.2","2. Derrama económica por el usufructo y contraprestación de espacios. ","Riesgos derivados de renta o compra-venta del área dónde se desarrollará el proyecto","C1 Retraso",5,7,8,4,null,{"$f":"STDEV(G12:J12)","v":1.8257418583505538}]
[null,null,null,null,null,"C2 Conflicto",4,7,7,4,null,1.7320508075688772]
[null,null,null,null,null,"C3 Sanciones",6,9,null,8,null,1.5275252316519452]
[null,null,null,null,null,"C4 Cancelación",9,9,10,10,null,0.57735026918962573]
[null,null,"R1.3","3. Seguridad","Riesgos derivados de las condiciones de seguridad del personal involucrado en el proyecto y la población cercana","C1 Retraso",9,6,5,4,null,2.1602468994692869]
[null,null,null,null,null,"C2 Conflicto",6,7,8,4,null,1.707825127659933]
[null,null,null,null,null,"C3 Sanciones",10,9,null,8,null,1]
[null,null,"R1.4","4. Entorno laboral","Riesgos derivados de las condiciones Laborales del personal involucrado en el proyecto","C1 Retraso",10,6,4,3,null,3.0956959368344519]
[null,null,null,null,null,"C2 Conflicto",8,8,6,4,null,1.9148542155126762]
[null,null,null,null,null,"C3 Sanciones",8,10,null,8,null,1.1547005383792495]
[null,null,"R1.5","5. Inversión Social","Riesgos derivados de la negación de inversión social en la población con la que interactúa.","C1 Retraso",7,6,7,6,null,0.57735026918962573]
[null,null,null,null,null,"C2 Conflicto",7,6,4,3,null,1.8257418583505538]
[null,"Riesgos Sociopolíticos","R2.1","1. Mecanismos de Participación / 2. Representatividad / 3. Uso del territorio y libertad para decidir sobre él. ","Riesgo derivado de los procedimientos que permiten a los individuos de una sociedad  involucrase en las decisiones relacionadas con el desarrollo del proyecto.","C1 Retraso",10,7,9,5,null,2.2173557826083452]
[null,null,null,null,null,"C2 Conflicto",5,5,4,4,null,0.57735026918962573]
[null,null,null,null,null,"C3 Sanciones",2,9,null,7,null,3.6055512754639891]
[null,null,null,null,null,"C4 Cancelación",6,9,10,10,null,1.8929694486000912]
[null,null,"R2.2","4. Formas de organización: Ejidos, comunidades agrarias, pueblos y comunidades indígenas y personas como propietarias del territorio. ","Riesgo derivado de ignorar las formas de organización\nlocal de: ejidos, comunidades agrarias, pueblos y comunidades indígenas.","C1 Retraso",10,8,7,5,null,2.0816659994661326]
[null,null,null,null,null,"C2 Conflicto",9,7,4,3,null,2.753785273643051]
[null,null,null,null,null,"C3 Sanciones",2,9,null,7,null,3.6055512754639891]
[null,null,null,null,null,"C4 Cancelación",4,10,10,10,null,3]
[null,"Socioambiental","R3.1","1. Uso y aprovechamiento de los recursos naturales / 2. Regulación de los recursos naturales","Riesgo derivado del manejo sustentable y eficiente de\nlos recursos existentes.","C1 Retraso",7,9,5,3,null,2.5819888974716112]
[null,null,null,null,null,"C2 Conflicto",7,7,3,8,null,2.2173557826083452]
[null,null,null,null,null,"C3 Sanciones",8,10,null,8,null,1.1547005383792495]
[null,null,"R3.2","3. Manejo de Residuos / 4. Salud","Riesgo derivado de problemas de salud por incorrecto manejo de residuos.","C1 Retraso",10,9,2,3,null,4.0824829046386304]
[null,null,null,null,null,"C2 Conflicto",10,7,2,8,null,3.4034296427770228]
[null,null,null,null,null,"C3 Sanciones",8,10,null,8,null,1.1547005383792495]
[null,null,null,null,null,"C4 Cancelación",10,9,10,10,null,0.5]
[null,"Sociocultural","R4.1","1. Población Indígena","Riesgo por no realizar correctamente una consulta indígena.","C1 Retraso",5,9,9,6,null,2.0615528128088303]
[null,null,null,null,null,"C2 Conflicto",10,7,4,4,null,2.8722813232690143]
[null,null,null,null,null,"C3 Sanciones",10,9,null,8,null,1]
[null,null,null,null,null,"C4 Cancelación",10,9,10,10,null,0.5]
[null,null,"R4.2","2. Patrimonio cultural material / 3. Patrimonio Cultural Arqueológico / 4. Producción y reproducción del patrimonio cultural","Riesgo derivado de no identificar ni implementar mecanismos de resguardo y conservación al patrimonio cultural que tiene contacto con el proyecto. ","C1 Retraso",5,9,8,7,null,1.707825127659933]
[null,null,null,null,null,"C2 Conflicto",5,7,null,4,null,1.5275252316519474]
[null,null,null,null,null,"C3 Sanciones",6,10,null,5,null,2.6457513110645907]
[null,null,null,null,null,"C4 Cancelación",7,9,10,10,null,1.4142135623730951]
[]
[null,null,null,null,null,null,null,null,null,"Desvest",null,{"$f":"AVERAGE(L10:L46)","v":1.9337176501203182}]
[]
[null,null,null,null,null,null,null,null,null,"Analisis ANOVA",null,"Si son estadisticamente iguales"]

{"sheet":"Matriz Gravedad Probabilidad MH","index":12,"n_rows":43,"n_cols":9,"rows_kept":43,"cut":false,"hidden":true,"merged":[[27,1,33,1],[27,2,29,2],[27,3,29,3],[30,2,33,2],[30,3,33,3],[34,1,41,1],[34,2,37,2],[34,3,37,3],[38,2,41,2],[38,3,41,3],[17,3,18,3],[19,1,26,1],[19,2,22,2],[19,3,22,3],[23,2,26,2],[23,3,26,3],[5,1,18,1],[5,2,6,2],[5,3,6,3],[7,2,10,2],[7,3,10,3],[11,2,13,2],[11,3,13,3],[14,2,16,2],[14,3,16,3],[17,2,18,2]]}
[]
[null,"Matriz de Gravedad y Probabilidad"]
[]
[null,null,null,null,null,null,0.5,0.5]
[null,"Dimensión","ID","Impacto Genérico","Riesgo Genérico Asociado",null,"Gravedad","Frecuencia","Promedio Factores"]
[null,"Dimensión Socioeconómica","R1.1","1. Producción de bienes y servicios en lugares específicos","C1 Retraso","R1.1 C1",{"$f":"AVERAGE(#REF!,#REF!,#REF!,#REF!,#REF!,#REF!,#REF!,#REF!,#REF!,#REF!)","v":{"$error":"#REF!"}},{"$f":"AVERAGE(#REF!,#REF!,#REF!,#REF!,#REF!,#REF!,#REF!,#REF!,#REF!,#REF!)","v":{"$error":"#REF!"}},{"$f":"(G6*$G$4)+(H6*$H$4)","v":{"$error":"#REF!"}}]
[null,null,null,null,"C2 Conflicto","R1.1 C2",{"$f":"AVERAGE(#REF!,#REF!,#REF!,#REF!,#REF!,#REF!,#REF!,#REF!,#REF!,#REF!)","v":{"$error":"#REF!"}},{"$f":"AVERAGE(#REF!,#REF!,#REF!,#REF!,#REF!,#REF!,#REF!,#REF!,#REF!,#REF!)","v":{"$error":"#REF!"}},{"$error":"#REF!"}]
[null,null,"R1.2","2. Derrama económica por el usufructo y contraprestación de espacios o prestación de servicios. ","C1 Retraso","R1.2 C1",{"$f":"AVERAGE(#REF!,#REF!,#REF!,#REF!,#REF!,#REF!,#REF!,#REF!,#REF!,#REF!)","v":{"$error":"#REF!"}},{"$f":"AVERAGE(#REF!,#REF!,#REF!,#REF!,#REF!,#REF!,#REF!,#REF!,#REF!,#REF!)","v":{"$error":"#REF!"}},{"$error":"#REF!"}]
[null,null,null,null,"C2 Conflicto","R1.2 C2",{"$f":"AVERAGE(#REF!,#REF!,#REF!,#REF!,#REF!,#REF!,#REF!,#REF!,#REF!,#REF!)","v":{"$error":"#REF!"}},{"$f":"AVERAGE(#REF!,#REF!,#REF!,#REF!,#REF!,#REF!,#REF!,#REF!,#REF!,#REF!)","v":{"$error":"#REF!"}},{"$error":"#REF!"}]
[null,null,null,null,"C3 Sanciones","R1.2 C3",{"$f":"AVERAGE(#REF!,#REF!,#REF!,#REF!,#REF!,#REF!,#REF!,#REF!,#REF!,#REF!)","v":{"$error":"#REF!"}},{"$f":"AVERAGE(#REF!,#REF!,#REF!,#REF!,#REF!,#REF!,#REF!,#REF!,#REF!,#REF!)","v":{"$error":"#REF!"}},{"$error":"#REF!"}]
[null,null,null,null,"C4 Cancelación","R1.2 C4",{"$f":"AVERAGE(#REF!,#REF!,#REF!,#REF!,#REF!,#REF!,#REF!,#REF!,#REF!,#REF!)","v":{"$error":"#REF!"}},{"$f":"AVERAGE(#REF!,#REF!,#REF!,#REF!,#REF!,#REF!,#REF!,#REF!,#REF!,#REF!)","v":{"$error":"#REF!"}},{"$error":"#REF!"}]
[null,null,"R1.3","3. Seguridad","C1 Retraso","R1.3 C1",{"$f":"AVERAGE(#REF!,#REF!,#REF!,#REF!,#REF!,#REF!,#REF!,#REF!,#REF!,#REF!)","v":{"$error":"#REF!"}},{"$f":"AVERAGE(#REF!,#REF!,#REF!,#REF!,#REF!,#REF!,#REF!,#REF!,#REF!,#REF!)","v":{"$error":"#REF!"}},{"$error":"#REF!"}]
[null,null,null,null,"C2 Conflicto","R1.3 C2",{"$f":"AVERAGE(#REF!,#REF!,#REF!,#REF!,#REF!,#REF!,#REF!,#REF!,#REF!,#REF!)","v":{"$error":"#REF!"}},{"$f":"AVERAGE(#REF!,#REF!,#REF!,#REF!,#REF!,#REF!,#REF!,#REF!,#REF!,#REF!)","v":{"$error":"#REF!"}},{"$error":"#REF!"}]
[null,null,null,null,"C3 Sanciones","R1.3 C3",{"$f":"AVERAGE(#REF!,#REF!,#REF!,#REF!,#REF!,#REF!,#REF!,#REF!,#REF!,#REF!)","v":{"$error":"#REF!"}},{"$f":"AVERAGE(#REF!,#REF!,#REF!,#REF!,#REF!,#REF!,#REF!,#REF!,#REF!,#REF!)","v":{"$error":"#REF!"}},{"$error":"#REF!"}]
[null,null,"R1.4","4. Entorno laboral","C1 Retraso","R1.4 C1",{"$f":"AVERAGE(#REF!,#REF!,#REF!,#REF!,#REF!,#REF!,#REF!,#REF!,#REF!,#REF!)","v":{"$error":"#REF!"}},{"$f":"AVERAGE(#REF!,#REF!,#REF!,#REF!,#REF!,#REF!,#REF!,#REF!,#REF!,#REF!)","v":{"$error":"#REF!"}},{"$error":"#REF!"}]
[null,null,null,null,"C2 Conflicto","R1.4 C2",{"$f":"AVERAGE(#REF!,#REF!,#REF!,#REF!,#REF!,#REF!,#REF!,#REF!,#REF!,#REF!)","v":{"$error":"#REF!"}},{"$f":"AVERAGE(#REF!,#REF!,#REF!,#REF!,#REF!,#REF!,#REF!,#REF!,#REF!,#REF!)","v":{"$error":"#REF!"}},{"$error":"#REF!"}]
[null,null,null,null,"C3 Sanciones","R1.4 C3",{"$f":"AVERAGE(#REF!,#REF!,#REF!,#REF!,#REF!,#REF!,#REF!,#REF!,#REF!,#REF!)","v":{"$error":"#REF!"}},{"$f":"AVERAGE(#REF!,#REF!,#REF!,#REF!,#REF!,#REF!,#REF!,#REF!,#REF!,#REF!)","v":{"$error":"#REF!"}},{"$error":"#REF!"}]
[null,null,"R1.5","5. Inversión Social","C1 Retraso","R1.4 C1",{"$f":"AVERAGE(#REF!,#REF!,#REF!,#REF!,#REF!,#REF!,#REF!,#REF!,#REF!,#REF!)","v":{"$error":"#REF!"}},{"$f":"AVERAGE(#REF!,#REF!,#REF!,#REF!,#REF!,#REF!,#REF!,#REF!,#REF!,#REF!)","v":{"$error":"#REF!"}},{"$error":"#REF!"}]
[null,null,null,null,"C2 Conflicto","R1.4 C2",{"$f":"AVERAGE(#REF!,#REF!,#REF!,#REF!,#REF!,#REF!,#REF!,#REF!,#REF!,#REF!)","v":{"$error":"#REF!"}},{"$f":"AVERAGE(#REF!,#REF!,#REF!,#REF!,#REF!,#REF!,#REF!,#REF!,#REF!,#REF!)","v":{"$error":"#REF!"}},{"$error":"#REF!"}]
[null,"Dimensión Sociopolítica","R2.1","1. Mecanismos de Participación / 2. Representatividad / 3. Uso del territorio y libertad para decidir sobre él. ","C1 Retraso","R2.1 C1",{"$f":"AVERAGE(#REF!,#REF!,#REF!,#REF!,#REF!,#REF!,#REF!,#REF!,#REF!,#REF!)","v":{"$error":"#REF!"}},{"$f":"AVERAGE(#REF!,#REF!,#REF!,#REF!,#REF!,#REF!,#REF!,#REF!,#REF!,#REF!)","v":{"$error":"#REF!"}},{"$error":"#REF!"}]
[null,null,null,null,"C2 Conflicto","R2.1 C2",{"$f":"AVERAGE(#REF!,#REF!,#REF!,#REF!,#REF!,#REF!,#REF!,#REF!,#REF!,#REF!)","v":{"$error":"#REF!"}},{"$f":"AVERAGE(#REF!,#REF!,#REF!,#REF!,#REF!,#REF!,#REF!,#REF!,#REF!,#REF!)","v":{"$error":"#REF!"}},{"$error":"#REF!"}]
[null,null,null,null,"C3 Sanciones","R2.1 C3",{"$f":"AVERAGE(#REF!,#REF!,#REF!,#REF!,#REF!,#REF!,#REF!,#REF!,#REF!,#REF!)","v":{"$error":"#REF!"}},{"$f":"AVERAGE(#REF!,#REF!,#REF!,#REF!,#REF!,#REF!,#REF!,#REF!,#REF!,#REF!)","v":{"$error":"#REF!"}},{"$error":"#REF!"}]
[null,null,null,null,"C4 Cancelación","R2.1 C4",{"$f":"AVERAGE(#REF!,#REF!,#REF!,#REF!,#REF!,#REF!,#REF!,#REF!,#REF!,#REF!)","v":{"$error":"#REF!"}},{"$f":"AVERAGE(#REF!,#REF!,#REF!,#REF!,#REF!,#REF!,#REF!,#REF!,#REF!,#REF!)","v":{"$error":"#REF!"}},{"$error":"#REF!"}]
[null,null,"R2.2","4. Formas de organización: Ejidos, comunidades agrarias, pueblos y comunidades indígenas y personas como propietarias del territorio. ","C1 Retraso","R2.2 C1",{"$f":"AVERAGE(#REF!,#REF!,#REF!,#REF!,#REF!,#REF!,#REF!,#REF!,#REF!,#REF!)","v":{"$error":"#REF!"}},{"$f":"AVERAGE(#REF!,#REF!,#REF!,#REF!,#REF!,#REF!,#REF!,#REF!,#REF!,#REF!)","v":{"$error":"#REF!"}},{"$error":"#REF!"}]
[null,null,null,null,"C2 Conflicto","R2.2 C2",{"$f":"AVERAGE(#REF!,#REF!,#REF!,#REF!,#REF!,#REF!,#REF!,#REF!,#REF!,#REF!)","v":{"$error":"#REF!"}},{"$f":"AVERAGE(#REF!,#REF!,#REF!,#REF!,#REF!,#REF!,#REF!,#REF!,#REF!,#REF!)","v":{"$error":"#REF!"}},{"$error":"#REF!"}]
[null,null,null,null,"C3 Sanciones","R2.2 C3",{"$f":"AVERAGE(#REF!,#REF!,#REF!,#REF!,#REF!,#REF!,#REF!,#REF!,#REF!,#REF!)","v":{"$error":"#REF!"}},{"$f":"AVERAGE(#REF!,#REF!,#REF!,#REF!,#REF!,#REF!,#REF!,#REF!,#REF!,#REF!)","v":{"$error":"#REF!"}},{"$error":"#REF!"}]
[null,null,null,null,"C4 Cancelación","R2.2 C4",{"$f":"AVERAGE(#REF!,#REF!,#REF!,#REF!,#REF!,#REF!,#REF!,#REF!,#REF!,#REF!)","v":{"$error":"#REF!"}},{"$f":"AVERAGE(#REF!,#REF!,#REF!,#REF!,#REF!,#REF!,#REF!,#REF!,#REF!,#REF!)","v":{"$error":"#REF!"}},{"$error":"#REF!"}]
[null,"Dimensión Socioambiental","R3.1","1. Uso y aprovechamiento de los recursos naturales / 2. Regulación de los recursos naturales","C1 Retraso","R3.1 C1",{"$f":"AVERAGE(#REF!,#REF!,#REF!,#REF!,#REF!,#REF!,#REF!,#REF!,#REF!,#REF!)","v":{"$error":"#REF!"}},{"$f":"AVERAGE(#REF!,#REF!,#REF!,#REF!,#REF!,#REF!,#REF!,#REF!,#REF!,#REF!)","v":{"$error":"#REF!"}},{"$error":"#REF!"}]
[null,null,null,null,"C2 Conflicto","R3.1 C2",{"$f":"AVERAGE(#REF!,#REF!,#REF!,#REF!,#REF!,#REF!,#REF!,#REF!,#REF!,#REF!)","v":{"$error":"#REF!"}},{"$f":"AVERAGE(#REF!,#REF!,#REF!,#REF!,#REF!,#REF!,#REF!,#REF!,#REF!,#REF!)","v":{"$error":"#REF!"}},{"$error":"#REF!"}]
[null,null,null,null,"C3 Sanciones","R3.1 C3",{"$f":"AVERAGE(#REF!,#REF!,#REF!,#REF!,#REF!,#REF!,#REF!,#REF!,#REF!,#REF!)","v":{"$error":"#REF!"}},{"$f":"AVERAGE(#REF!,#REF!,#REF!,#REF!,#REF!,#REF!,#REF!,#REF!,#REF!,#REF!)","v":{"$error":"#REF!"}},{"$error":"#REF!"}]
[null,null,"R3.2","3. Manejo de Residuos / 4. Salud","C1 Retraso","R3.2 C1",{"$f":"AVERAGE(#REF!,#REF!,#REF!,#REF!,#REF!,#REF!,#REF!,#REF!,#REF!,#REF!)","v":{"$error":"#REF!"}},{"$f":"AVERAGE(#REF!,#REF!,#REF!,#REF!,#REF!,#REF!,#REF!,#REF!,#REF!,#REF!)","v":{"$error":"#REF!"}},{"$error":"#REF!"}]
[null,null,null,null,"C2 Conflicto","R3.2 C2",{"$f":"AVERAGE(#REF!,#REF!,#REF!,#REF!,#REF!,#REF!,#REF!,#REF!,#REF!,#REF!)","v":{"$error":"#REF!"}},{"$f":"AVERAGE(#REF!,#REF!,#REF!,#REF!,#REF!,#REF!,#REF!,#REF!,#REF!,#REF!)","v":{"$error":"#REF!"}},{"$error":"#REF!"}]
[null,null,null,null,"C3 Sanciones","R3.2 C3",{"$f":"AVERAGE(#REF!,#REF!,#REF!,#REF!,#REF!,#REF!,#REF!,#REF!,#REF!,#REF!)","v":{"$error":"#REF!"}},{"$f":"AVERAGE(#REF!,#REF!,#REF!,#REF!,#REF!,#REF!,#REF!,#REF!,#REF!,#REF!)","v":{"$error":"#REF!"}},{"$error":"#REF!"}]
[null,null,null,null,"C4 Cancelación","R3.2 C4",{"$f":"AVERAGE(#REF!,#REF!,#REF!,#REF!,#REF!,#REF!,#REF!,#REF!,#REF!,#REF!)","v":{"$error":"#REF!"}},{"$f":"AVERAGE(#REF!,#REF!,#REF!,#REF!,#REF!,#REF!,#REF!,#REF!,#REF!,#REF!)","v":{"$error":"#REF!"}},{"$error":"#REF!"}]
[null,"Dimensión Sociocultural","R4.1","1. Población Indígena","C1 Retraso","R4.1 C1",{"$f":"AVERAGE(#REF!,#REF!,#REF!,#REF!,#REF!,#REF!,#REF!,#REF!,#REF!,#REF!)","v":{"$error":"#REF!"}},{"$f":"AVERAGE(#REF!,#REF!,#REF!,#REF!,#REF!,#REF!,#REF!,#REF!,#REF!,#REF!)","v":{"$error":"#REF!"}},{"$error":"#REF!"}]
[null,null,null,null,"C2 Conflicto","R4.1 C2",{"$f":"AVERAGE(#REF!,#REF!,#REF!,#REF!,#REF!,#REF!,#REF!,#REF!,#REF!,#REF!)","v":{"$error":"#REF!"}},{"$f":"AVERAGE(#REF!,#REF!,#REF!,#REF!,#REF!,#REF!,#REF!,#REF!,#REF!,#REF!)","v":{"$error":"#REF!"}},{"$error":"#REF!"}]
[null,null,null,null,"C3 Sanciones","R4.1 C3",{"$f":"AVERAGE(#REF!,#REF!,#REF!,#REF!,#REF!,#REF!,#REF!,#REF!,#REF!,#REF!)","v":{"$error":"#REF!"}},{"$f":"AVERAGE(#REF!,#REF!,#REF!,#REF!,#REF!,#REF!,#REF!,#REF!,#REF!,#REF!)","v":{"$error":"#REF!"}},{"$error":"#REF!"}]
[null,null,null,null,"C4 Cancelación","R4.4 C4",{"$f":"AVERAGE(#REF!,#REF!,#REF!,#REF!,#REF!,#REF!,#REF!,#REF!,#REF!,#REF!)","v":{"$error":"#REF!"}},{"$f":"AVERAGE(#REF!,#REF!,#REF!,#REF!,#REF!,#REF!,#REF!,#REF!,#REF!,#REF!)","v":{"$error":"#REF!"}},{"$error":"#REF!"}]
[null,null,"R4.2","2. Patrimonio cultural material / 3. Patrimonio Cultural Arqueológico / 4. Producción y reproducción del patrimonio cultural","C1 Retraso","R4.2 C1",{"$f":"AVERAGE(#REF!,#REF!,#REF!,#REF!,#REF!,#REF!,#REF!,#REF!,#REF!,#REF!)","v":{"$error":"#REF!"}},{"$f":"AVERAGE(#REF!,#REF!,#REF!,#REF!,#REF!,#REF!,#REF!,#REF!,#REF!,#REF!)","v":{"$error":"#REF!"}},{"$error":"#REF!"}]
[null,null,null,null,"C2 Conflicto","R4.2 C2",{"$f":"AVERAGE(#REF!,#REF!,#REF!,#REF!,#REF!,#REF!,#REF!,#REF!,#REF!,#REF!)","v":{"$error":"#REF!"}},{"$f":"AVERAGE(#REF!,#REF!,#REF!,#REF!,#REF!,#REF!,#REF!,#REF!,#REF!,#REF!)","v":{"$error":"#REF!"}},{"$error":"#REF!"}]
[null,null,null,null,"C3 Sanciones","R4.2 C3",{"$f":"AVERAGE(#REF!,#REF!,#REF!,#REF!,#REF!,#REF!,#REF!,#REF!,#REF!,#REF!)","v":{"$error":"#REF!"}},{"$f":"AVERAGE(#REF!,#REF!,#REF!,#REF!,#REF!,#REF!,#REF!,#REF!,#REF!,#REF!)","v":{"$error":"#REF!"}},{"$error":"#REF!"}]
[null,null,null,null,"C4 Cancelación","R4.2 C4",{"$f":"AVERAGE(#REF!,#REF!,#REF!,#REF!,#REF!,#REF!,#REF!,#REF!,#REF!,#REF!)","v":{"$error":"#REF!"}},{"$f":"AVERAGE(#REF!,#REF!,#REF!,#REF!,#REF!,#REF!,#REF!,#REF!,#REF!,#REF!)","v":{"$error":"#REF!"}},{"$error":"#REF!"}]
[null,null,null,null,null,"TOTAL",{"$f":"SUM(G6:G42)","v":{"$error":"#REF!"}},{"$f":"SUM(H6:H42)","v":{"$error":"#REF!"}},{"$f":"SUM(I6:I42)","v":{"$error":"#REF!"}}]

{"sheet":"Cuestionario Eólica","index":13,"n_rows":47,"n_cols":35,"rows_kept":47,"cut":false,"hidden":false,"merged":[[39,1,46,1],[39,2,42,2],[39,3,42,3],[39,4,42,4],[43,2,46,2],[43,3,46,3],[43,4,46,4],[32,1,38,1],[32,2,34,2],[32,3,34,3],[32,4,34,4],[35,2,38,2],[35,3,38,3],[35,4,38,4],[24,1,31,1],[24,2,27,2],[24,3,27,3],[24,4,27,4],[28,2,31,2],[28,3,31,3],[28,4,31,4],[10,1,23,1],[10,2,11,2],[10,3,11,3],[10,4,11,4],[12,2,15,2],[12,3,15,3],[19,2,21,2],[19,3,21,3],[19,4,21,4],[22,2,23,2],[22,3,23,3],[22,4,23,4],[12,4,15,4],[16,2,18,2],[16,3,18,3],[16,4,18,4]]}
[1,2,3,4,5,6,7,8,9,10,11,12,13,14,15,16,17,18,19,20,21,22,23,24,25,26,27,28,29,30,31,32,33]
[null,"Cuestionario para cuantificación de Riesgos Ambientales y Sociales en Proyectos Energéticos"]
[]
[null,"Empresa: ",null,"EMPRESAS ENCUESTADAS"]
[]
[null,"PASO 1: Califica en una escala del 0 - 10 donde 10 es MUY GRAVE y o es NADA GRAVE los riesgos derivados de los impactos Sociales y Ambientales definidos a continuación: "]
[null,"PASO 2: Califica en una escala del 0 - 10 donde 10 es MUY FRECUENTE y 0 es NADA FRECUENTE los riesgos derivados de los impactos Sociales y Ambientales definidos a continuación: "]
[null,null,null,null,"Empresas",{"$f":"COUNT(G9:XFD9)","v":8},"Empresa","Número de Proyectos",null,"Empresa","Número de Proyectos",null,"Empresa","Número de Proyectos",null,"Empresa","Número de Proyectos",null,"Empresa","Número de Proyectos",null,"Empresa","Número de Proyectos",null,"Empresa","Número de Proyectos",null,"Empresa","Número de Proyectos",null,"Empresa","Número de Proyectos",null,"Empresa","Número de Proyectos"]
[null,null,null,null,"Proyectos totales",{"$f":"SUM(G9:XFD9)","v":8},"E1",1,null,"E1",1,null,"E1",1,null,"E1",1,null,"E1",1,null,"E1",1,null,"E1",1,null,"Dragon",1,null,null,null,null,"E1"]
[null,"Dimensión","ID","Impacto Genérico","Relación Impacto - Riesgo","Riesgo Genérico Asociado","Gravedad","Frecuencia",null,"Gravedad","Frecuencia",null,"Gravedad","Frecuencia",null,"Gravedad","Frecuencia",null,"Gravedad","Frecuencia",null,"Gravedad","Frecuencia",null,"Gravedad","Frecuencia",null,"Gravedad","Frecuencia",null,"Gravedad","Frecuencia",null,"Gravedad","Frecuencia"]
[null,"Dimensión Socioeconómica","R1.1","1. Producción de bienes y servicios en lugares específicos","Riesgos derivados de la modificación del área","C1 Retraso",10,2,null,8,4,null,4,4,null,10,4,null,4,4,null,10,1,null,8,5,null,8,10]
[null,null,null,null,null,"C2 Conflicto",5,2,null,7,7,null,null,null,null,4,4,null,6,6,null,5,0,null,3,5,null,3,10]
[null,null,"R1.2","2. Derrama económica por el usufructo y contraprestación de espacios. ","Riesgos derivados de renta o compra-venta del área dónde se desarrollará el proyecto","C1 Retraso",5,8,null,7,4,null,8,3,null,4,3,null,8,7,null,10,1,null,8,5,null,8,10]
[null,null,null,null,null,"C2 Conflicto",4,2,null,7,5,null,7,3,null,4,6,null,5,5,null,10,10,null,3,5,null,3,10]
[null,null,null,null,null,"C3 Sanciones",6,0,null,9,3,null,null,null,null,8,1,null,1,1,null,10,0,null,3,3,null,3,10]
[null,null,null,null,null,"C4 Cancelación",9,2,null,9,3,null,10,2,null,10,1,null,1,1,null,10,0,null,10,3,null,10,10]
[null,null,"R1.3","3. Seguridad","Riesgos derivados de las condiciones de seguridad del personal involucrado en el proyecto y la población cercana","C1 Retraso",9,1,null,6,2,null,5,2,null,4,2,null,4,1,null,9,1,null,4,4,null,4,10]
[null,null,null,null,null,"C2 Conflicto",8,1,null,7,5,null,8,5,null,4,3,null,8,2,null,7,0,null,3,4,null,3,10]
[null,null,null,null,null,"C3 Sanciones",10,3,null,9,3,null,null,null,null,8,1,null,1,1,null,10,0,null,3,2,null,3,10]
[null,null,"R1.4","4. Entorno laboral","Riesgos derivados de las condiciones Laborales del personal involucrado en el proyecto","C1 Retraso",10,3,null,6,2,null,4,5,null,3,1,null,10,1,null,10,0,null,6,6,null,6,10]
[null,null,null,null,null,"C2 Conflicto",8,0,null,8,3,null,6,5,null,4,3,null,8,2,null,8,0,null,3,3,null,3,10]
[null,null,null,null,null,"C3 Sanciones",8,0,null,10,3,null,null,null,null,8,1,null,1,1,null,10,0,null,3,2,null,3,10]
[null,null,"R1.5","5. Inversión Social","Riesgos derivados de la negación de inversión social en la población con la que interactúa.","C1 Retraso",7,6,null,6,3,null,7,2,null,5,1,null,5,5,null,7,0,null,2,2,null,2,10]
[null,null,null,null,null,"C2 Conflicto",7,3,null,6,3,null,4,6,null,3,2,null,7,3,null,7,0,null,2,2,null,2,10]
[null,"Dimensión Sociopolítica","R2.1","1. Mecanismos de Participación / 2. Representatividad / 3. Uso del territorio y libertad para decidir sobre él. ","Riesgo derivado de los procedimientos que permiten a los individuos de una sociedad  involucrase en las decisiones relacionadas con el desarrollo del proyecto.","C1 Retraso",10,8,null,7,4,null,9,5,null,5,3,null,5,5,null,7,0,null,2,1,null,2,10]
[null,null,null,null,null,"C2 Conflicto",7,4,null,5,2,null,4,6,null,4,4,null,5,5,null,7,0,null,2,1,null,2,10]
[null,null,null,null,null,"C3 Sanciones",2,0,null,9,4,null,null,null,null,7,1,null,1,1,null,8,0,null,4,2,null,4,10]
[null,null,null,null,null,"C4 Cancelación",6,0,null,9,3,null,10,3,null,10,1,null,1,1,null,10,0,null,8,2,null,8,10]
[null,null,"R2.2","4. Formas de organización: Ejidos, comunidades agrarias, pueblos y comunidades indígenas y personas como propietarias del territorio. ","Riesgo derivado de ignorar las formas de organización\nlocal de: ejidos, comunidades agrarias, pueblos y comunidades indígenas.","C1 Retraso",10,5,null,8,4,null,6,3,null,5,5,null,8,6,null,7,0,null,5,1,null,5,10]
[null,null,null,null,null,"C2 Conflicto",9,2,null,7,4,null,4,6,null,3,1,null,8,8,null,7,0,null,4,1,null,4,10]
[null,null,null,null,null,"C3 Sanciones",2,1,null,9,4,null,null,null,null,7,1,null,1,1,null,8,0,null,4,1,null,4,10]
[null,null,null,null,null,"C4 Cancelación",4,0,null,10,3,null,10,3,null,10,1,null,1,1,null,10,0,null,8,1,null,8,10]
[null,"Dimensión Socioambiental","R3.1","1. Uso y aprovechamiento de los recursos naturales / 2. Regulación de los recursos naturales","Riesgo derivado del manejo sustentable y eficiente de\nlos recursos existentes.","C1 Retraso",7,0,null,9,4,null,5,4,null,3,1,null,10,3,null,8,0,null,6,4,null,6,10]
[null,null,null,null,null,"C2 Conflicto",7,0,null,7,5,null,3,2,null,8,1,null,7,5,null,9,0,null,4,2,null,4,10]
[null,null,null,null,null,"C3 Sanciones",8,2,null,10,3,null,null,null,null,8,1,null,1,1,null,10,0,null,6,3,null,6,10]
[null,null,"R3.2","3. Manejo de Residuos / 4. Salud","Riesgo derivado de problemas de salud por incorrecto manejo de residuos.","C1 Retraso",10,10,null,9,4,null,2,2,null,3,1,null,10,2,null,8,0,null,4,2,null,4,10]
[null,null,null,null,null,"C2 Conflicto",10,10,null,7,4,null,2,2,null,8,1,null,6,1,null,9,0,null,4,1,null,4,10]
[null,null,null,null,null,"C3 Sanciones",8,2,null,10,3,null,null,null,null,8,1,null,1,1,null,10,0,null,5,2,null,5,10]
[null,null,null,null,null,"C4 Cancelación",10,3,null,9,4,null,10,1,null,10,1,null,3,3,null,10,0,null,10,3,null,10,10]
[null,"Dimensión Sociocultural","R4.1","1. Población Indígena","Riesgo por no realizar correctamente una consulta indígena.","C1 Retraso",5,8,null,9,3,null,9,5,null,6,3,null,10,6,null,10,0,null,5,2,null,5,10]
[null,null,null,null,null,"C2 Conflicto",10,10,null,7,4,null,4,6,null,4,2,null,7,7,null,10,0,null,4,2,null,4,10]
[null,null,null,null,null,"C3 Sanciones",10,0,null,9,4,null,null,null,null,8,1,null,1,1,null,10,0,null,5,1,null,5,10]
[null,null,null,null,null,"C4 Cancelación",10,3,null,9,4,null,10,1,null,10,1,null,1,1,null,10,0,null,10,1,null,10,10]
[null,null,"R4.2","2. Patrimonio cultural material / 3. Patrimonio Cultural Arqueológico / 4. Producción y reproducción del patrimonio cultural","Riesgo derivado de no identificar ni implementar mecanismos de resguardo y conservación al patrimonio cultural que tiene contacto con el proyecto. ","C1 Retraso",5,5,null,9,2,null,8,4,null,7,5,null,0,0,null,10,0,null,7,1,null,7,10]
[null,null,null,null,null,"C2 Conflicto",3,1,null,7,5,null,null,null,null,4,2,null,5,3,null,10,0,null,3,1,null,3,10]
[null,null,null,null,null,"C3 Sanciones",6,0,null,10,4,null,null,null,null,5,1,null,1,1,null,10,0,null,3,1,null,3,10]
[null,null,null,null,null,"C4 Cancelación",7,1,null,9,3,null,10,3,null,10,1,null,0,0,null,10,0,null,8,1,null,8,10]

{"sheet":"Cuestionario FV","index":14,"n_rows":47,"n_cols":35,"rows_kept":47,"cut":false,"hidden":false,"merged":[[10,1,23,1],[10,2,11,2],[10,3,11,3],[10,4,11,4],[12,2,15,2],[12,3,15,3],[12,4,15,4],[16,2,18,2],[16,3,18,3],[16,4,18,4],[19,2,21,2],[19,3,21,3],[19,4,21,4],[22,2,23,2],[22,3,23,3],[22,4,23,4],[24,1,31,1],[24,2,27,2],[24,3,27,3],[24,4,27,4],[28,2,31,2],[28,3,31,3],[28,4,31,4],[32,1,38,1],[32,2,34,2],[32,3,34,3],[32,4,34,4],[35,2,38,2],[35,3,38,3],[35,4,38,4],[39,1,46,1],[39,2,42,2],[39,3,42,3],[39,4,42,4],[43,2,46,2],[43,3,46,3],[43,4,46,4]]}
[]
[null,"Cuestionario para cuantificación de Riesgos Ambientales y Sociales en Proyectos Energéticos"]
[]
[null,"Empresa: ",null,"EMPRESAS ENCUESTADAS"]
[]
[null,"PASO 1: Califica en una escala del 0 - 10 donde 10 es MUY GRAVE y o es NADA GRAVE los riesgos derivados de los impactos Sociales y Ambientales definidos a continuación: "]
[null,"PASO 2: Califica en una escala del 0 - 10 donde 10 es MUY FRECUENTE y 0 es NADA FRECUENTE los riesgos derivados de los impactos Sociales y Ambientales definidos a continuación: "]
[null,null,null,null,"Empresas",{"$f":"COUNT(G9:XFD9)","v":7},"Empresa","Número de Proyectos",null,"Empresa","Número de Proyectos",null,"Empresa","Número de Proyectos",null,"Empresa","Número de Proyectos",null,"Empresa","Número de Proyectos",null,"Empresa","Número de Proyectos",null,"Empresa","Número de Proyectos",null,"Empresa","Número de Proyectos",null,"Empresa","Número de Proyectos",null,"Empresa","Número de Proyectos"]
[null,null,null,null,"Proyectos totales",{"$f":"SUM(G9:XFD9)","v":7},"E1",1,null,"E1",1,null,"E1",1,null,"E1",1,null,"E1",1,null,"E1",1,null,"E1",1]
[null,"Dimensión","ID","Impacto Genérico","Relación Impacto - Riesgo","Riesgo Genérico Asociado","Gravedad","Frecuencia",null,"Gravedad","Frecuencia",null,"Gravedad","Frecuencia",null,"Gravedad","Frecuencia",null,"Gravedad","Frecuencia",null,"Gravedad","Frecuencia",null,"Gravedad","Frecuencia",null,"Gravedad","Frecuencia",null,"Gravedad","Frecuencia",null,"Gravedad","Frecuencia"]
[null,"Dimensión Socioeconómica","R1.1","1. Producción de bienes y servicios en lugares específicos","Riesgos derivados de la modificación del área","C1 Retraso",10,2,null,8,4,null,4,4,null,10,4,null,4,4,null,10,1,null,8,5]
[null,null,null,null,null,"C2 Conflicto",5,2,null,7,7,null,null,null,null,4,4,null,6,6,null,5,0,null,3,5]
[null,null,"R1.2","2. Derrama económica por el usufructo y contraprestación de espacios. ","Riesgos derivados de renta o compra-venta del área dónde se desarrollará el proyecto","C1 Retraso",5,8,null,7,4,null,8,3,null,4,3,null,8,7,null,10,1,null,8,5]
[null,null,null,null,null,"C2 Conflicto",4,2,null,7,5,null,7,3,null,4,6,null,5,5,null,10,10,null,3,5]
[null,null,null,null,null,"C3 Sanciones",6,0,null,9,3,null,null,null,null,8,1,null,1,1,null,10,0,null,3,3]
[null,null,null,null,null,"C4 Cancelación",9,2,null,9,3,null,10,2,null,10,1,null,1,1,null,10,0,null,10,3]
[null,null,"R1.3","3. Seguridad","Riesgos derivados de las condiciones de seguridad del personal involucrado en el proyecto y la población cercana","C1 Retraso",9,1,null,6,2,null,5,2,null,4,2,null,4,1,null,9,1,null,4,4]
[null,null,null,null,null,"C2 Conflicto",8,1,null,7,5,null,8,5,null,4,3,null,8,2,null,7,0,null,3,4]
[null,null,null,null,null,"C3 Sanciones",10,3,null,9,3,null,null,null,null,8,1,null,1,1,null,10,0,null,3,2]
[null,null,"R1.4","4. Entorno laboral","Riesgos derivados de las condiciones Laborales del personal involucrado en el proyecto","C1 Retraso",10,3,null,6,2,null,4,5,null,3,1,null,10,1,null,10,0,null,6,6]
[null,null,null,null,null,"C2 Conflicto",8,0,null,8,3,null,6,5,null,4,3,null,8,2,null,8,0,null,3,3]
[null,null,null,null,null,"C3 Sanciones",8,0,null,10,3,null,null,null,null,8,1,null,1,1,null,10,0,null,3,2]
[null,null,"R1.5","5. Inversión Social","Riesgos derivados de la negación de inversión social en la población con la que interactúa.","C1 Retraso",7,6,null,6,3,null,7,2,null,5,1,null,5,5,null,7,0,null,2,2]
[null,null,null,null,null,"C2 Conflicto",7,3,null,6,3,null,4,6,null,3,2,null,7,3,null,7,0,null,2,2]
[null,"Dimensión Sociopolítica","R2.1","1. Mecanismos de Participación / 2. Representatividad / 3. Uso del territorio y libertad para decidir sobre él. ","Riesgo derivado de los procedimientos que permiten a los individuos de una sociedad  involucrase en las decisiones relacionadas con el desarrollo del proyecto.","C1 Retraso",10,8,null,7,4,null,9,5,null,5,3,null,5,5,null,7,0,null,2,1]
[null,null,null,null,null,"C2 Conflicto",7,4,null,5,2,null,4,6,null,4,4,null,5,5,null,7,0,null,2,1]
[null,null,null,null,null,"C3 Sanciones",2,0,null,9,4,null,null,null,null,7,1,null,1,1,null,8,0,null,4,2]
[null,null,null,null,null,"C4 Cancelación",6,0,null,9,3,null,10,3,null,10,1,null,1,1,null,10,0,null,8,2]
[null,null,"R2.2","4. Formas de organización: Ejidos, comunidades agrarias, pueblos y comunidades indígenas y personas como propietarias del territorio. ","Riesgo derivado de ignorar las formas de organización\nlocal de: ejidos, comunidades agrarias, pueblos y comunidades indígenas.","C1 Retraso",10,5,null,8,4,null,6,3,null,5,5,null,8,6,null,7,0,null,5,1]
[null,null,null,null,null,"C2 Conflicto",9,2,null,7,4,null,4,6,null,3,1,null,8,8,null,7,0,null,4,1]
[null,null,null,null,null,"C3 Sanciones",2,1,null,9,4,null,null,null,null,7,1,null,1,1,null,8,0,null,4,1]
[null,null,null,null,null,"C4 Cancelación",4,0,null,10,3,null,10,3,null,10,1,null,1,1,null,10,0,null,8,1]
[null,"Dimensión Socioambiental","R3.1","1. Uso y aprovechamiento de los recursos naturales / 2. Regulación de los recursos naturales","Riesgo derivado del manejo sustentable y eficiente de\nlos recursos existentes.","C1 Retraso",7,0,null,9,4,null,5,4,null,3,1,null,10,3,null,8,0,null,6,4]
[null,null,null,null,null,"C2 Conflicto",7,0,null,7,5,null,3,2,null,8,1,null,7,5,null,9,0,null,4,2]
[null,null,null,null,null,"C3 Sanciones",8,2,null,10,3,null,null,null,null,8,1,null,1,1,null,10,0,null,6,3]
[null,null,"R3.2","3. Manejo de Residuos / 4. Salud","Riesgo derivado de problemas de salud por incorrecto manejo de residuos.","C1 Retraso",10,10,null,9,4,null,2,2,null,3,1,null,10,2,null,8,0,null,4,2]
[null,null,null,null,null,"C2 Conflicto",10,10,null,7,4,null,2,2,null,8,1,null,6,1,null,9,0,null,4,1]
[null,null,null,null,null,"C3 Sanciones",8,2,null,10,3,null,null,null,null,8,1,null,1,1,null,10,0,null,5,2]
[null,null,null,null,null,"C4 Cancelación",10,3,null,9,4,null,10,1,null,10,1,null,3,3,null,10,0,null,10,3]
[null,"Dimensión Sociocultural","R4.1","1. Población Indígena","Riesgo por no realizar correctamente una consulta indígena.","C1 Retraso",5,8,null,9,3,null,9,5,null,6,3,null,10,6,null,10,0,null,5,2]
[null,null,null,null,null,"C2 Conflicto",10,10,null,7,4,null,4,6,null,4,2,null,7,7,null,10,0,null,4,2]
[null,null,null,null,null,"C3 Sanciones",10,0,null,9,4,null,null,null,null,8,1,null,1,1,null,10,0,null,5,1]
[null,null,null,null,null,"C4 Cancelación",10,3,null,9,4,null,10,1,null,10,1,null,1,1,null,10,0,null,10,1]
[null,null,"R4.2","2. Patrimonio cultural material / 3. Patrimonio Cultural Arqueológico / 4. Producción y reproducción del patrimonio cultural","Riesgo derivado de no identificar ni implementar mecanismos de resguardo y conservación al patrimonio cultural que tiene contacto con el proyecto. ","C1 Retraso",5,5,null,9,2,null,8,4,null,7,5,null,0,0,null,10,0,null,7,1]
[null,null,null,null,null,"C2 Conflicto",3,1,null,7,5,null,null,null,null,4,2,null,5,3,null,10,0,null,3,1]
[null,null,null,null,null,"C3 Sanciones",6,0,null,10,4,null,null,null,null,5,1,null,1,1,null,10,0,null,3,1]
[null,null,null,null,null,"C4 Cancelación",7,1,null,9,3,null,10,3,null,10,1,null,0,0,null,10,0,null,8,1]

{"sheet":"Cuestionario MiniHidro","index":15,"n_rows":47,"n_cols":35,"rows_kept":47,"cut":false,"hidden":true,"merged":[[10,1,23,1],[10,2,11,2],[10,3,11,3],[10,4,11,4],[12,2,15,2],[12,3,15,3],[12,4,15,4],[16,2,18,2],[16,3,18,3],[16,4,18,4],[19,2,21,2],[19,3,21,3],[19,4,21,4],[22,2,23,2],[22,3,23,3],[22,4,23,4],[24,1,31,1],[24,2,27,2],[24,3,27,3],[24,4,27,4],[28,2,31,2],[28,3,31,3],[28,4,31,4],[32,1,38,1],[32,2,34,2],[32,3,34,3],[32,4,34,4],[35,2,38,2],[35,3,38,3],[35,4,38,4],[39,1,46,1],[39,2,42,2],[39,3,42,3],[39,4,42,4],[43,2,46,2],[43,3,46,3],[43,4,46,4]]}
[]
[null,"Cuestionario para cuantificación de Riesgos Ambientales y Sociales en Proyectos Energéticos"]
[]
[null,"Empresa: ",null,"EMPRESAS ENCUESTADAS"]
[]
[null,"PASO 1: Califica en una escala del 0 - 10 donde 10 es MUY GRAVE y o es NADA GRAVE los riesgos derivados de los impactos Sociales y Ambientales definidos a continuación: "]
[null,"PASO 2: Califica en una escala del 0 - 10 donde 10 es MUY FRECUENTE y 0 es NADA FRECUENTE los riesgos derivados de los impactos Sociales y Ambientales definidos a continuación: "]
[null,null,null,null,"Empresas",{"$f":"COUNT(G9:XFD9)","v":0},"Empresa","Número de Proyectos",null,"Empresa","Número de Proyectos",null,"Empresa","Número de Proyectos",null,"Empresa","Número de Proyectos",null,"Empresa","Número de Proyectos",null,"Empresa","Número de Proyectos",null,"Empresa","Número de Proyectos",null,"Empresa","Número de Proyectos",null,"Empresa","Número de Proyectos",null,"Empresa","Número de Proyectos"]
[null,null,null,null,"Proyectos totales",{"$f":"SUM(G9:XFD9)","v":0},null,null,null,null,null,null,null,null,null,null,null,null,null,null,null,null,null,null,null,null,null,null,null,null,null,null,null,"E1"]
[null,"Dimensión","ID","Impacto Genérico","Relación Impacto - Riesgo","Riesgo Genérico Asociado","Gravedad","Frecuencia",null,"Gravedad","Frecuencia",null,"Gravedad","Frecuencia",null,"Gravedad","Frecuencia",null,"Gravedad","Frecuencia",null,"Gravedad","Frecuencia",null,"Gravedad","Frecuencia",null,"Gravedad","Frecuencia",null,"Gravedad","Frecuencia",null,"Gravedad","Frecuencia"]
[null,"Dimensión Socioeconómica","R1.1","1. Producción de bienes y servicios en lugares específicos","Riesgos derivados de la modificación del área","C1 Retraso"]
[null,null,null,null,null,"C2 Conflicto"]
[null,null,"R1.2","2. Derrama económica por el usufructo y contraprestación de espacios. ","Riesgos derivados de renta o compra-venta del área dónde se desarrollará el proyecto","C1 Retraso"]
[null,null,null,null,null,"C2 Conflicto"]
[null,null,null,null,null,"C3 Sanciones"]
[null,null,null,null,null,"C4 Cancelación"]
[null,null,"R1.3","3. Seguridad","Riesgos derivados de las condiciones de seguridad del personal involucrado en el proyecto y la población cercana","C1 Retraso"]
[null,null,null,null,null,"C2 Conflicto"]
[null,null,null,null,null,"C3 Sanciones"]
[null,null,"R1.4","4. Entorno laboral","Riesgos derivados de las condiciones Laborales del personal involucrado en el proyecto","C1 Retraso"]
[null,null,null,null,null,"C2 Conflicto"]
[null,null,null,null,null,"C3 Sanciones"]
[null,null,"R1.5","5. Inversión Social","Riesgos derivados de la negación de inversión social en la población con la que interactúa.","C1 Retraso"]
[null,null,null,null,null,"C2 Conflicto"]
[null,"Dimensión Sociopolítica","R2.1","1. Mecanismos de Participación / 2. Representatividad / 3. Uso del territorio y libertad para decidir sobre él. ","Riesgo derivado de los procedimientos que permiten a los individuos de una sociedad  involucrase en las decisiones relacionadas con el desarrollo del proyecto.","C1 Retraso"]
[null,null,null,null,null,"C2 Conflicto"]
[null,null,null,null,null,"C3 Sanciones"]
[null,null,null,null,null,"C4 Cancelación"]
[null,null,"R2.2","4. Formas de organización: Ejidos, comunidades agrarias, pueblos y comunidades indígenas y personas como propietarias del territorio. ","Riesgo derivado de ignorar las formas de organización\nlocal de: ejidos, comunidades agrarias, pueblos y comunidades indígenas.","C1 Retraso"]
[null,null,null,null,null,"C2 Conflicto"]
[null,null,null,null,null,"C3 Sanciones"]
[null,null,null,null,null,"C4 Cancelación"]
[null,"Dimensión Socioambiental","R3.1","1. Uso y aprovechamiento de los recursos naturales / 2. Regulación de los recursos naturales","Riesgo derivado del manejo sustentable y eficiente de\nlos recursos existentes.","C1 Retraso"]
[null,null,null,null,null,"C2 Conflicto"]
[null,null,null,null,null,"C3 Sanciones"]
[null,null,"R3.2","3. Manejo de Residuos / 4. Salud","Riesgo derivado de problemas de salud por incorrecto manejo de residuos.","C1 Retraso"]
[null,null,null,null,null,"C2 Conflicto"]
[null,null,null,null,null,"C3 Sanciones"]
[null,null,null,null,null,"C4 Cancelación"]
[null,"Dimensión Sociocultural","R4.1","1. Población Indígena","Riesgo por no realizar correctamente una consulta indígena.","C1 Retraso"]
[null,null,null,null,null,"C2 Conflicto"]
[null,null,null,null,null,"C3 Sanciones"]
[null,null,null,null,null,"C4 Cancelación"]
[null,null,"R4.2","2. Patrimonio cultural material / 3. Patrimonio Cultural Arqueológico / 4. Producción y reproducción del patrimonio cultural","Riesgo derivado de no identificar ni implementar mecanismos de resguardo y conservación al patrimonio cultural que tiene contacto con el proyecto. ","C1 Retraso"]
[null,null,null,null,null,"C2 Conflicto"]
[null,null,null,null,null,"C3 Sanciones"]
[null,null,null,null,null,"C4 Cancelación"]

{"sheet":"Mitigación","index":16,"n_rows":10,"n_cols":6,"rows_kept":10,"cut":false,"hidden":true,"merged":[]}
[]
[null,"ID","Posible actividad de Mitigación","Descripción","Impacto","Disminuye el riesgo"]
[null,"M1 Fondo de Contingencia","Establecer un fondo de contingencia por el acreditado.","Cantidad reservada para resolver imprevistos. ","Bajo",0.05]
[null,"M2 Garantías","Definir montos de garantía.","Cantidad definida en el contrato de crédito para dotar de una mayor seguridad al cumplimiento de ciertas condiciones.","Bajo",0.05]
[null,"M3 Acciones Correctivas","Presupuesto Asignado a Acciones Corretivas","Una vez que el riesgo ha sido detectado o ha ocurrido, el acreditado deberá de demostrar que ha asignado recursos para aplicar medidas correctivas y dar seguimiento de las mismas.","Bajo",0.05]
[null,"M4 Seguro (Si aplicable)","Seguro Aplicable","La organización deberá contar con un seguro que contemple futuro incidentes donde tenga que pagar o liquidar a la fecha de protocolo del siniestro, constituye la primera valoración de la reserva.","Medio",0.1]
[null,"M5 Programas de Atención y Prevención","Programas o campañas de atención y prevención","El programa está relacionado con un inversión social definida por el acreditado, con el propósito de reducir los riesgos laborales y de salud. Estos programas están relacionados con los programas internos.","Medio",0.1]
[null,"M6 Canales efectivos de cominicación","Definir canales de comunicación con la comunidad/personal","Mantener diversos canales de comunicación que le permitan acreditado identificar posibles riesgos e inconformidades previo a  y durante el desarrollo del proyecto.","Medio",0.1]
[null,"M7 Establecimiento de Proyectos Sociales ","Establecer proyectos sociales por el acreditado.","Definir proyectos en materia de salud, seguridad, ambiental, etc. para generar capacidades y habilidades determinadas con el fin de prevenir y disminuir riesgos que interrumpan el proyecto. ","Alto",0.15]
[null,"M8 Programa de Monitoreo de Cumplimiento Regulatorio","Acciones de monitoreo de cumplimiento regulatorio por parte del acreditado.","Definición de un sistema de gestión por parte del acreditado que permita confirmar que los riesgos sociales se están atendiendo y no existen riesgos.","Alto",0.15]

{"sheet":"PASOS LISTS","index":17,"n_rows":23,"n_cols":8,"rows_kept":23,"cut":false,"hidden":true,"merged":[]}
[null,"Paso 1",null,"Paso 3 IARCS",null,"IMPACTO DE LA MITIGACIÓN"]
[]
[null,"Aplica",null,"M1 Fondo de Contingencia",null,"Alto "]
[null,"No Aplica",null,"M2 Garantías",null,"Medio "]
[null,null,null,"M3 Acciones Correctivas",null,"Bajo"]
[null,null,null,"M4 Seguro (Si aplicable)"]
[null,"Fotovoltaica",null,"M5 Programas de Atención y Prevención"]
[null,"Eólica",null,"M6 Canales efectivos de comunicación"]
[null,"Mini-Hidro",null,"M7 Establecimiento de Proyectos Sociales"]
[null,null,null,"M8 Programa de Monitoreo de Cumplimiento Regulatorio"]
[]
[]
[null,null,null,null,null,"No ocurrió",null,0]
[null,null,null,null,null,1,null,1]
[null,null,null,null,null,2,null,2]
[null,null,null,null,null,3,null,3]
[null,null,null,null,null,4,null,4]
[null,null,null,null,null,5,null,5]
[null,null,null,null,null,6,null,6]
[null,null,null,null,null,7,null,7]
[null,null,null,null,null,8,null,8]
[null,null,null,null,null,9,null,9]
[null,null,null,null,null,10,null,10]